Workbook

Sheet Design Regulator
A1: LM25141-Q1 Synchronous Buck Controller Design Tool
O2: http://www.ti.com/product/lm5175
A3: About | C3: xx | F3: = Input Box | O3: TERMS OF USE
A5: Step 1: Operating Specifications
D6: Input Voltage – Min, VIN(min) | E6: 16 | F6: V
D7: Input Voltage – Nom, VIN(nom) | E7: 24 | F7: V
D8: Input Voltage – Max, VIN(max) | E8: 36 | F8: V
D9: Output Voltage, VOUT | E9: 12 | F9: V
D10: Full Load Output Current, IOUT | E10: 9 | F10: A
D11: =IF(OSC=1, "* Tie OSC to VDDA", "* Tie OSC to AGND") -> * Tie OSC to AGND
D12: Switching Frequency, FSW | E12: 440 | F12: kHz
D13: Frequency Set Resistor, RT | E13: ='Variable Management'!C364 -> N/A | F13: kΩ
D14: Ambient Temperature, TA | E14: 25 | F14: °C
A16: Step 2: Current Sense Resistor
D17: Required IOCP Setpoint at VIN(nom) | E17: 12 | F17: A
D18: Recommended Sense Resistance | E18: =Rs_ideal*1000 -> 5.767044562 | F18: mΩ
D19: Sense Resistance, RS | E19: 2 | F19: mΩ
D20: Min Inductor Sat Current, ILO(SAT) | E20: ='Variable Management'!B95 -> 37.5 | F20: A
D21: Max power loss in shunt | E21: ='Variable Management'!B105 -> 2.737831372 | F21: W
D22: VIN(min) | E22: ='Variable Management'!B97 -> 36.99772415 | F22: A
C23: IOUT(typ) at OCP Inception: | D23: VIN(nom) | E23: ='Variable Management'!B98 -> 36.49507188 | F23: A
D24: VIN(max) | E24: ='Variable Management'!B99 -> 36.15976103 | F24: A
A26: Step 3: Buck Inductance
D27: Recommended Inductance | E27: =Lopt*1000000 -> 2.272727273 | F27: µH
D28: Inductance, LO | E28: 6.8 | F28: µH
D29: Inductor DCR | E29: 2 | F29: mΩ
D30: DIL as a % at VIN(nom) | E30: ='Variable Management'!B68*100 -> 22.33173605 | F30: %
A34: Step 4: Output Capacitors
D35: Output Voltage Ripple Spec | E35: 100 | F35: mVpk-pk
D36: Minimum Output Capacitance | E36: ='Variable Management'!B121 -> 5.709818876 | F36: µF
D37: Output Capacitance (derated), COUT | E37: 240 | F37: µF | L37: =CHOOSE(SCH_MODE, "", "** For Single-Output Operation in 2-Phase Mode, tie MODE to VDDA and use FB1 to set VOUT **", "** For Single-Output Operation in 3-Phase Mode, tie both MODE pins to VDDA. Use FB1 of master IC to set VOUT. Connect FB2 of master IC to AGND. Connect FB2 of slave IC to VDDA to configure it as a slave **", "** For Single-Output Operation in 4-Phase Mode, tie both MODE pins to VDDA. Use FB1 of master IC to set VOUT. Connect FB2 of master IC to AGND. Connect FB2 of slave IC to VDDA to configure it as a slave **") -> 
D38: Maximum Permitted ESR | E38: ='Variable Management'!B125 -> 49.74071947 | F38: mΩ
D39: Output Capacitor ESR | E39: 1 | F39: mΩ | L39: =CHOOSE(SCH_MODE, "", "** Tie VCCX to GND if not used **", "** Slave controller (CNTRL2) not shown **","** Slave controller (CNTRL2) not shown **") -> 
D40: Resulting Output Voltage Ripple (max) | E40: ='Variable Management'!B127*1000 -> 3.11441761 | F40: mVpk-pk | L40: =IF(OR(SCH_MODE=3, SCH_MODE=4),"** Tie VCCX to GND if not used **", "") -> 
D41: Output Capacitor RMS Current (max) | E41: ='Variable Management'!B114 -> 0.7737873309 | F41: A (rms)
A43: Step 5: Input Capacitors
D44: Input Voltage Ripple Spec | E44: 500 | F44: mVpk-pk
D45: Minimum Input Capacitance | E45: ='Variable Management'!B145 -> 10.22727273 | F45: µF
D46: Input Capacitance (derated), CIN | E46: 20 | F46: µF
D47: Maximum Permitted ESR | E47: ='Variable Management'!B150 -> 23.62790478 | F47: mΩ
D48: Input Capacitor ESR | E48: 2 | F48: mΩ
D49: Resulting Input Voltage Ripple (max) | E49: ='Variable Management'!B155*1000 -> 276.3622961 | F49: mVpk-pk
D50: Input Capacitor RMS Current (max) | E50: ='Variable Management'!B138 -> 4.518693338 | F50: A (rms)
A52: Step 6: Soft-start, Hiccup, Dither, Diode Emulation Mode
D53: Soft-Start Time, tSS | E53: 3 | F53: ms
D54: Soft-Start Capacitance, CSS | E54: =IF(Tss>0.5/1000,Css_u*1000000000,"N/A") -> 56 | F54: nF
D55: Hiccup Fault Time, tRES | E55: 20 | F55: ms
D56: RES Capacitance, CRES | E56: =IF(Tres>1/1000,Cres_u*1000000000,"N/A") -> 330 | F56: nF
D57: Modulating Frequency | E57: 8 | F57: =IF(DITHER=1, "kHz", "") -> kHz
D58: =IF(DITHER=1, "DITH Capacitance, Cd", "* Tie DITH to VDDA") -> DITH Capacitance, Cd | E58: =IF(DITHER=1,IF(E57>0,'Standard Value Calculator'!O22*1000000000,"N/A"),"") -> 10 | F58: =IF(DITHER=1, "nF", "") -> nF
D59: =IF(DEMB=1, "* Tie DEMB to VDDA", "* Tie DEMB to AGND") -> * Tie DEMB to VDDA
A62: Step 7: Compensation Design
D63: Load Pole Frequency | E63: =Fp_dominant -> 831.279049 | F63: Hz
D64: ESR Zero Frequency | E64: =Fesr/1000 -> 663.145597 | F64: kHz
D65: Desired Crossover Frequency | E65: 54 | F65: =" kHz " -> kHz
D66: Error Amp Pole Frequency | E66: =Fp1_u -> 1.38120371 | F66: Hz
D67: =CHOOSE(VOUT_setting, "Upper Feedback Resistor", "* Tie FB to AGND for Fixed 5V Output", "* Tie FB to VDDA for Fixed 3.3V Output") -> Upper Feedback Resistor | E67: 49.9 | F67: kΩ
D68: =CHOOSE(VOUT_setting, "Lower Feedback Resistor", "", "") -> Lower Feedback Resistor | E68: =IF(Vout=Vref,"OPEN",Rfb2_u/1000) -> 5.49 | F68: =IF(Vout=Vref,"","kΩ") -> kΩ
A70: Compensation Components
B71: Calculated / | C71: Std Values | D71: =C71 -> Std Values | F71: Actual P/Z Frequencies
A72: RC1 | B72: =Rcea1/1000 -> 16.2860163 | C72: ='Standard Value Calculator'!O30 -> 16.2 | D72: =C72 -> 16.2 | E72: kΩ | F72: =Fp1_u -> 1.38120371 | G72: Hz (FPEA)
A73: CC1 | B73: =Cc1ea*1000000000 -> 1.809720505 | C73: ='Standard Value Calculator'!O31 -> 1.8 | D73: =C73 -> 1.8 | E73: nF | F73: =Fz1_u/1000 -> 5.457988452 | G73: kHz (FZCOMP)
A74: CC2 | B74: =IF(Cc2ea<0, "N/A", Cc2ea*1000000000000) -> 12.58942375 | C74: ='Standard Value Calculator'!O32 -> 12 | D74: =C74 -> 12 | E74: pF | F74: =Fp2_u/1000 -> 224.1423138 | G74: kHz (FPCOMP)
N75: ** Specify Inductor Core Loss ** | O75: 0.25 | P75: W
A77: Efficiency / Power Loss Analyzer
A79: Step 8: Efficiency
F80: Power MOSFETs | G80: (Q1, Q2)
E81: IAUC60N04S6L039, L032
E82: High-side | F82: Low-side
D83: On-State Resistance, RDS(on) | E83: 4.5 | F83: 3.65 | G83: mΩ
D84: Total Gate Charge, QG | E84: 8 | F84: 9 | G84: nC
D85: Gate-Drain Charge, QGD | E85: 3.1 | F85: 3.9 | G85: nC
D86: Gate-Source Charge, QGS | E86: 2.9 | F86: 3.8 | G86: nC
D87: Output Charge, QOSS | F87: 12 | G87: nC
D88: Output Capacitance, COSS | E88: 259 | F88: 330 | G88: pF
D89: Gate Resistance, RG | E89: 0 | F89: 0 | G89: Ω
D90: Transconductance, gFS | E90: 71 | F90: 71 | G90: S
D91: Gate-Source Threshold Voltage, VTH | E91: 3.2 | F91: 3.2 | G91: V
D92: Body Diode Forward Voltage, VBD | E92: 0.8 | F92: 0.8 | G92: V
D93: Body Diode Rev Recovery Charge, QRR | F93: 13 | G93: nC
D94: Thermal Resistance, θJA | E94: 50 | F94: 50 | G94: °C/W
A96: External Schottky Diode (if applicable)
D97: Schottky Fwd Voltage, VFWDsch | F97: 0 | G97: V
D98: Schottky Rev Recovery Charge, QRRsch | F98: 0 | G98: nC
A100: Step 9: IC Power Loss
D101: IC Power Dissipation | E101: ='Variable Management'!B305 -> 0.0374 | F101: W
D102: IC Junction Temperature (estimate) | E102: ='Variable Management'!B307 -> 26.27534 | F102: °C
E103: =CHOOSE(Ext_VCC, "* Tie VCCX to VOUT", "* Tie VCCX to PGND") -> * Tie VCCX to VOUT

Sheet BOM & Schematic
A36: ** Tie DEMB to VDDA for FPWM, AGND for DEM **
A37: ** Tie VCCX to GND if not used ** | I37: =IF(OR(SCH_MODE=3, SCH_MODE=4),"** Tie VCCX to GND if not used **", "") -> 
A38: ** Tie DITH to VDDA to disable spread spectrum **
A39: ** Tie OSC to VDDA for 2.2MHz, AGND for 440kHz **
A40: ="VIN = "&VIN_min&" V to "&VIN_max&" V, VOUT = "& Vout &" V, IOUT = " &Iout & " A, Fsw = " & Fsw/1000 &" kHz, Current Limit = "&ROUNDUP(Ilimit_DC,0)&" A" -> VIN = 16 V to 36 V, VOUT = 12 V, IOUT = 9 A, Fsw = 440 kHz, Current Limit = 12 A
A41: High Efficiency Synchronous Buck Regulator BOM
A42: Count | B42: Ref Des | C42: Value | D42: Description | H42: Size | I42: Part Number | J42: MFR
A43: 1 | B43: CBOOT | C43: 0.1 | D43: =C43 -> 0.1 | H43: 0603 | I43: Std | J43: Std
A44: 1 | B44: CC1 | C44: ='Design Regulator'!D73 -> 1.8 | D44: 1.8 | H44: 0603 | I44: Std | J44: Std
A45: 1 | B45: CC2 | C45: ='Design Regulator'!D74 -> 12 | D45: 12 | H45: 0603 | I45: Std | J45: Std
A46: 1 | B46: CRES | C46: =Cres_u*1000000000 -> 330 | D46: =C46 -> 330 | H46: 0603 | I46: Std | J46: Std
A47: 1 | B47: CDITH | C47: =Cdither*1000000000 -> 10 | D47: =C47 -> 10 | H47: 0603 | I47: Std | J47: Std
A48: =ROUNDUP('Design Regulator'!E46/10,0) -> 2 | B48: CIN | C48: 10 | D48: =C48 -> 10 | H48: 1210 | I48: Std | J48: Std
A49: =ROUNDUP('Design Regulator'!E37/47,0) -> 6 | B49: COUT | C49: 47 | D49: =C49 -> 47 | H49: 1210 | I49: Std | J49: Std
A50: 1 | B50: CSS | C50: ='Design Regulator'!E54 -> 56 | D50: =C50 -> 56 | H50: 0603 | I50: Std | J50: Std
A51: 2 | B51: CVCC, CVCCX | C51: 2.2 | D51: 2.2 | H51: 0603 | I51: Std | J51: Std
A52: 1 | B52: CVDDA | C52: 0.47 | D52: 0.47 | H52: 0603 | I52: Std | J52: Std
A53: 1 | B53: DBOOT | C53: See description | D53: Schottky Diode, 60V, 200mA | H53: - | I53: - | J53: Various
A54: 1 | B54: LO | C54: ='Design Regulator'!E28 -> 6.8 | D54: ="Inductor, "&Lf*1000000&"µH, "&Rdcr*1000&"mΩ, >"&ROUNDUP(Ilimit_DC*1.1,0)&"A" -> Inductor, 6.8µH, 2mΩ, >14A | H54: - | I54: - | J54: Various
A55: 2 | B55: Q1, Q2 | C55: See description | D55: ='Design Regulator'!E83 -> 4.5 | H55: Std | I55: ='Design Regulator'!E81 -> IAUC60N04S6L039, L032 | J55: -
A56: 1 | B56: RC1 | C56: ='Design Regulator'!D72 -> 16.2 | D56: =C56 -> 16.2 | H56: 0603 | I56: Std | J56: Std
A57: 1 | B57: RS | C57: =Rs*1000 -> 2 | D57: 2 | H57: 0508 | I57: Std | J57: Std
A58: 1 | B58: RT | C58: ='Design Regulator'!E13 -> N/A | D58: N/A | H58: 0603 | I58: Std | J58: Std
A59: 1 | B59: RFB1 | C59: ='Design Regulator'!E67 -> 49.9 | D59: 49.9 | H59: 0603 | I59: Std | J59: Std
A60: 1 | B60: RFB2 | C60: ='Design Regulator'!E68 -> 5.49 | D60: 5.49 | H60: 0603 | I60: Std | J60: Std
A61: 1 | B61: RPGOOD | C61: 100 | D61: 100 | H61: 0603 | I61: Std | J61: Std
A62: 1 | B62: RCS | C62: 100 | D62: 100 | H62: 0603 | I62: Std | J62: Std
A63: 1 | B63: RDEMB | C63: 100 | D63: 100 | H63: 0603 | I63: Std | J63: Std
A64: 1 | B64: RVIN | C64: 2.2 | D64: 2.2 | H64: 0603 | I64: Std | J64: Std
A65: 1 | B65: U1 | C65: LM25141-Q1 | D65: IC, LM25141-Q1, Synchronous Buck PWM Controller, 3.8V–42V Input | H65: VQFN-24 | I65: LM25141QRGEQ1 | J65: TI
A68: NOTES:
A69: ** For information on TI NexFETTM MOSFETs, see ** | D69: http://www.ti.com/nexfet | E69: **
A70: ** Inductor saturation current should be higher than the peak inductor current at the OCP setpoint for all input voltages and operating temperatures **
A71: ** Effective input and output capacitances should be appropriately derated for applied voltage and temperature, particularly with ceramics **

Sheet EVM (hidden)
A1: LM5143-Q1 Quickstart Design Tool
B6: LM5143-Q1EVM-2100 PCB Layout

Sheet Variable Management (hidden)
A1: EXCEL Variables Names/Calculations
B2: Input from user =
B3: Output =
B4: Constant
A5: Variable Name | B5: Value | C5: STD Units | E5: Notes | I5: Iteration
A6: Step 1: Operational Specs
A7: VIN_min | B7: ='Design Regulator'!E6 -> 16 | C7: V | D7: Minimum input voltage | I7: 1
A8: VIN_nom | B8: ='Design Regulator'!E7 -> 24 | C8: V | D8: Nominal input voltage | K8: =CHOOSE(SCH_MODE, "Efficiency vs. IOUT (Ch1)", "Efficiency vs. IOUT - 2 Ph", "Efficiency vs. IOUT - 3 Ph", "Efficiency vs. IOUT - 4 Ph") -> Efficiency vs. IOUT (Ch1) | L8: 1 | N8: DITHER Enabled | O8: 1 | T8: Dual Outputs | U8: 1 | W8: FPWM | X8: 1 | Z8: =CHOOSE(SCH_MODE, "Bode Plot (Ch1)", "Bode Plot - 2 Ph", "Bode Plot - 3 Ph", "Bode Plot - 4 Ph") -> Bode Plot (Ch1) | AA8: 1
A9: VIN_max | B9: ='Design Regulator'!E8 -> 36 | C9: V | D9: Maximum input voltage | K9: =IF(MODE=1, "Efficiency vs. IOUT (Ch2)", "N/A - Do Not Use") -> Efficiency vs. IOUT (Ch2) | L9: 2 | N9: DITHER Disabled | O9: 2 | T9: Single Output – 2 Phases | U9: 2 | W9: DEM | X9: 2 | Z9: =IF(MODE=1, "Bode Plot (Ch2)", "N/A - Do Not Use") -> Bode Plot (Ch2) | AA9: 2
K10: PLOT_TYPE | L10: 1 | N10: DITHER Yes/No | O10: 1 | P10: 1 = Yes, 2 = No | T10: Single Output – 3 Phases | U10: 3 | W10: FPWM/DEM | X10: 1 | Z10: BODE_PLOT_TYPE | AA10: 1
A11: Vout | B11: ='Design Regulator'!E9 -> 12 | C11: V | D11: Output voltage - channel 1 | T11: Single Output – 4 Phases | U11: 4
A12: Iout | B12: ='Design Regulator'!E10 -> 9 | C12: A | D12: Output current - channel 1 | I12: 1 | T12: Single/Dual Yes/No | U12: 1
I13: 1 | K13: Adjustable | L13: 1 | N13: 3.3V | O13: 1 | T13: MODE (Single/Dual), DUAL = 1, SINGLE = 2 | U13: =IF(U12=1, 1, 2) -> 1 | W13: VCCX Connected | X13: 1
A14: Rout | B14: =Vout/Iout -> 1.333333333 | C14: W | D14: Load resistance - Channel 1 | K14: 5V | L14: 2 | N14: 5V | O14: 2 | T14: SINGLE OUTPUT (1 = YES) | U14: =IF(U12=1, 2, 1) -> 2 | W14: No External VCC | X14: 2
K15: 3.3V | L15: 3 | N15: Adjustable | O15: 3 | T15: Number of Phases | U15: =SCH_MODE -> 1 | W15: Ext_VCC | X15: 1
A16: Pout | B16: =Vout*Iout -> 108 | C16: W | D16: Output power | K16: Output Voltage Setting | L16: =IF(Vout=3.3, 3, IF(Vout=5, 2, 1)) -> 1 | N16: Ch2 Output Setting | O16: =IF(Vout2=3.3, 1, IF(Vout2=5, 2, 3)) -> 3
A18: Efficiency | B18: 0.9 | D18: Estimate of efficiency
A19: Pin | B19: =Pout/Efficiency -> 120 | C19: W | D19: Calculate input power assuming finite efficiency | W19: 2.2 MHz Fsw Setting | X19: 1
W20: 440 kHz Fsw Setting | X20: 2
A21: Iin_Vinmin | B21: =Pin/VIN_min -> 7.5 | C21: A | L21: =Vout -> 12 | W21: OSC | X21: 2
A22: Iin_Vinnom | B22: =Pin/VIN_nom -> 5 | C22: A | D22: Input currents at min, nom, max Vin | H22: =AND(OSC=1, OR(Fsw/1000>2530, Fsw/1000<1800)) -> FALSE
A23: Iin_Vinmax | B23: =Pin/VIN_max -> 3.333333333 | C23: A | H23: =AND(OSC=2, OR(Fsw/1000>500, Fsw/1000<300)) -> FALSE
H24: =OR(H22,H23) -> FALSE
A25: OSC setting | B25: =CHOOSE(OSC, 2200, 440) -> 440 | C25: kHz
A26: Fsw | B26: ='Design Regulator'!E12*1000 -> 440000 | C26: Hz | D26: Nominal switching frequency - determines RT resistor (SYNCIN must be 80-120% of this) | N26: Min CS Gain - 11.4 | O26: 1
A27: RT resistor to AGND - 2.2MHz setting | B27: =(1/(Fsw/1000000)-0.0216)/0.0086 -> 261.7589852 | C27: kΩ | K27: Adjustable | L27: 1 | N27: Nom CS Gain - 12 | O27: 2
A28: RT resistor to AGND - 440kHz setting | B28: =(1/(Fsw/1000)-0.0000138)/0.000045 -> 50.19838384 | C28: kΩ | I28: 1 | K28: 5V | L28: 2 | N28: Max CS Gain - 12.6 | O28: 3
A29: Tsw | B29: =1/Fsw -> 2.272727273e-06 | C29: sec | D29: Switching period | K29: 3.3V | L29: 3 | N29: CS Gain | O29: 2
A30: Vref | B30: 1.2 | C30: V | D30: Reference voltage | K30: Adjustable_NoRT | L30: 4 | O30: =CHOOSE(O29, 11.4, 12, 12.6) -> 12
A31: Rt | B31: =CHOOSE(OSC, 'Standard Value Calculator'!O12/1000, 'Standard Value Calculator'!O13/1000) -> 49.9 | C31: kΩ | D31: Frequency set resistor | F31: =IF(OR((Fsw=440000),(Fsw=2200000)),"N/A",Rfadj/1000) -> N/A | K31: 5V_NoRT | L31: 5
K32: 3.3V_NoRT | L32: 6 | N32: Min EA gm - 1.01mS | O32: 1010
A33: Step 2: Buck Inductor | B33: Channel 1 | K33: Schematic setting | L33: =IF(No_RT, IF(Vout=3.3, 6, IF(Vout=5, 5, 4)),IF(Vout=3.3, 3, IF(Vout=5, 2, 1))) -> 4 | N33: Nom EA gm - 1.2mS | O33: 1200
A34: Don1 | B34: =Vout/VIN_nom -> 0.5 | F34: Ideal Duty Cycle at VIN(nom) | N34: Max EA gm - 1.4mS | O34: 1400
A35: Doff1 | B35: =1-34:34 -> 0.5 | F35: Ideal 1- Duty Cycle at VIN(nom) | N35: EA Transconductance | O35: 2
O36: =CHOOSE(O35, 0.000101, 0.0012, 0.0014) -> 0.0012
A37: D_Vinmin | B37: =Vout/VIN_min -> 0.75
A38: D_Vinnom | B38: =Vout/VIN_nom -> 0.5
A39: D_Vinmax | B39: =Vout/VIN_max -> 0.3333333333
A41: L_Vinnom | B41: =(VIN_nom-Vout)*D1_Vinnom/(Fsw*(Iout/Number_of_Phases)*0.35) -> 4.329004329e-06 | C41: H | F41: Calculated inductance for 35% ripple at VIN(nom)
A42: L_slopecomp | B42: =1000*Vout*Rs/24/Fsw -> 2.272727273e-06 | C42: H | F42: Calculated inductance based on one times inductor downslope
A44: Lopt | B44: =B42 -> 2.272727273e-06 | C44: H | F44: min of calculated inductances at VIN(min) and VIN(nom)
A46: Lo | B46: ='Design Regulator'!E28/1000000 -> 6.8e-06 | C46: H | F46: Chosen inductance
A47: Rdcr | B47: ='Design Regulator'!E29/1000 -> 0.002 | C47: W | F47: Chosen inductor DCR
A49: Don2 | B49: =(Vout+Iout*(Rdcr+Rs))/(Vin+Iout*Rs) -> 0.5011241569
A50: Doff2 | B50: =1-_Don2 -> 0.4988758431
A52: D_Vinmin_2 | B52: =CHOOSE(MODE, (Vout+Iout*(Rdcr+Rs))/(VIN_min+Iout*Rs), (Vout+Iout/Number_of_Phases*(Rdcr+Rs))/(VIN_min+Iout/Number_of_Phases*Rs)) -> 0.7514046697 | F52: Duty cycles adjusted for DCR/shunt voltage drops
A53: D_Vinnom_2 | B53: =CHOOSE(MODE, (Vout+Iout*(Rdcr+Rs))/(VIN_nom+Iout*Rs), (Vout+Iout/Number_of_Phases*(Rdcr+Rs))/(VIN_nom+Iout/Number_of_Phases*Rs)) -> 0.5011241569 | F53: need to include RDS(on) later
A54: D_Vinmax_2 | B54: =CHOOSE(MODE, (Vout+Iout*(Rdcr+Rs))/(VIN_max+Iout*Rs), (Vout+Iout/Number_of_Phases*(Rdcr+Rs))/(VIN_max+Iout/Number_of_Phases*Rs)) -> 0.3341662502
A56: Iripple_Vinmin | B56: =(VIN_min-Vout)*D1_Vinmin_2/(Fsw*Lf) -> 1.004551698 | C56: A
A57: Iripple_Vinnom | B57: =(VIN_nom-Vout)*D1_Vinnom_2/(Fsw*Lf) -> 2.009856244 | C57: A
A58: Iripple_Vinmax | B58: =(VIN_max-Vout)*D1_Vinmax_2/(Fsw*Lf) -> 2.680477943 | C58: A
A60: Ishunt_rms_Vinmin | B60: =SQRT((Iout/Number_of_Phases)^2+(Iripple_Vinmin^2)/12) -> 9.004670659 | C60: A
A61: Ishunt_rms_Vinnom | B61: =SQRT((Iout/Number_of_Phases)^2+(Iripple_Vinnom^2)/12) -> 9.018682101 | C61: A
A62: Ishunt_rms_Vinmax | B62: =SQRT((Iout/Number_of_Phases)^2+(Iripple_Vinmax^2)/12) -> 9.033202468 | C62: A
A63: Max shunt power loss at full load | B63: =B61^2*Rs -> 0.1626732537 | C63: W | F63: Note this is power loss at full load - not loss near OCP!
A65: Max inductor ripple current | B65: =MAX(B56:B58) -> 2.680477943 | C65: A | F65: Ripple current at Vin(max)
B67: =B56/(Iout/Number_of_Phases) -> 0.1116168553
A68: % ripple current | B68: =B57/(Iout/Number_of_Phases) -> 0.2233173605
B69: =B58/(Iout/Number_of_Phases) -> 0.2978308825
A71: Inductor copper temerature | B71: 100 | C71: °C
A72: DCR at hot | B72: =Rdcr*(1+0.0039*(B71-25)) -> 0.002585 | C72: W
A75: Step 3: Sense Resistors, Slope Comp, Current Limit
A77: Ilimit_DC | B77: ='Design Regulator'!E17 -> 12 | C77: A | F77: Chosen OCP level - based on output current
A79: Ilimit_inductor_Vinmin | B79: =CHOOSE(MODE, Ilimit_DC+Iripple_Vinmin/2, Ilimit_DC/Number_of_Phases+Iripple_Vinmin/2) -> 12.50227585 | C79: A | F79: Peak inductor current at current limit inception
A80: Ilimit_inductor_Vinnom | B80: =CHOOSE(MODE, Ilimit_DC+Iripple_Vinnom/2, Ilimit_DC/Number_of_Phases+Iripple_Vinnom/2) -> 13.00492812 | C80: A
A81: Ilimit_inductor_Vinmax | B81: =CHOOSE(MODE, Ilimit_DC+Iripple_Vinmax/2, Ilimit_DC/Number_of_Phases+Iripple_Vinmax/2) -> 13.34023897 | C81: A
A84: CS threshold_min | B84: 0.068 | C84: V
A85: CS threshold | B85: 0.075 | C85: V
A86: CS threshold_max | B86: 0.082 | C86: V
A88: Shunt required to get OCP at VIN(min) | B88: =Buck_CS_threshold/B79 -> 0.005998907791 | C88: W
A89: Shunt required to get OCP at VIN(nom) | B89: =Buck_CS_threshold/B80 -> 0.005767044562 | C89: W
A90: Shunt required to get OCP at VIN(max) | B90: =Buck_CS_threshold/B81 -> 0.005622088192 | C90: W
A92: Rs_ideal | B92: =B89 -> 0.005767044562 | C92: W | F92: Ideal Rs for the required OCP -- based on 73mV CL threshold
A93: Rs | B93: ='Design Regulator'!E19/1000 -> 0.002 | C93: W | F93: Selected (starndard value) current limit sense resistor
A95: Current limit - peak | B95: =Buck_CS_threshold/Rs -> 37.5 | C95: A | F95: Peak inductor current limit = min sat current
A97: Iout_OCP_Vinmin | B97: =Number_of_Phases*(Buck_CS_threshold/Rs-Iripple_Vinmin/2) -> 36.99772415 | C97: A | F97: Current limit setpoints (i.e. IOUT) after standard components are selected
A98: Iout_OCP_Vinnom | B98: =Number_of_Phases*(Buck_CS_threshold/Rs-Iripple_Vinnom/2) -> 36.49507188 | C98: A
A99: Iout_OCP_Vinmax | B99: =Number_of_Phases*(Buck_CS_threshold/Rs-Iripple_Vinmax/2) -> 36.15976103 | C99: A
A101: Irms_OCP_Vinmin | B101: =SQRT((Iout_OCP_Vinmin/Number_of_Phases)^2+(Iripple_Vinmin^2)/12) -> 36.9988606 | C101: A
A102: Irms_OCP_Vinnom | B102: =SQRT((Iout_OCP_Vinnom/Number_of_Phases)^2+(Iripple_Vinnom^2)/12) -> 36.49968354 | C102: A
A103: Irms_OCP_Vinmax | B103: =SQRT((Iout_OCP_Vinmax/Number_of_Phases)^2+(Iripple_Vinmax^2)/12) -> 36.16803927 | C103: A
A105: Pshunt_Vinmin | B105: =B101^2*Rs -> 2.737831372 | C105: W | F105: Max power dissipations in shunt
A106: Pshunt_Vinnom | B106: =B102^2*Rs -> 2.664453796 | C106: W
A107: Pshunt_Vinmax | B107: =B103^2*Rs -> 2.616254129 | C107: W
A110: Step 4: Output Capacitor
A111: Icoutrms_VINmin | B111: =Iripple_Vinmin/SQRT(12) -> 0.2899890965 | C111: A | F111: Output Cap RMS current
A112: Icoutrms_VINnom | B112: =Iripple_Vinnom/SQRT(12) -> 0.5801955218 | C112: A
A113: Icoutrms_VINmax | B113: =Iripple_Vinmax/SQRT(12) -> 0.7737873309 | C113: A
A114: Max Cout rms current | B114: =MAX(B111:B113) -> 0.7737873309 | C114: A
A116: Vripple1 | B116: ='Design Regulator'!E35/1000 -> 0.1 | C116: V | F116: Output voltage ripple spec(pk-pk)
A118: Output Ripple Spec (pk-pk) | B118: =Vo1_ripple*1000 -> 100 | C118: mV | F118: Vout ripple spec at Vin(nom)
A120: Coutmin | B120: =Iripple_Vinnom/(Fsw*8*Vo1_ripple) -> 5.709818876e-06 | C120: F | F120: Minimum output capacitnace | H120: =Vo2_ripple -> 0 | I120: 1
A121: Reported Coutmin | B121: =IF(Cout_min*1000000<2, 2.2,Cout_min*1000000) -> 5.709818876 | C121: uF
A122: Cout | B122: ='Design Regulator'!E37/1000000 -> 0.00024 | C122: F | F122: Chosen output capacitance | I122: 1
A123: Resrmax | B123: =SQRT((Vo1_ripple/Iripple_Vinnom)^2-(1/(Fsw*Cout*8))^2) -> 0.04974071947 | C123: W | F123: Max ESR before ripple exceeds Vripple1 | I123: 1
A125: Reported Cout ESR max | B125: =IF(OR(CoutEsrMax>0.3, CoutEsrMax<0, (ISERROR(CoutEsrMax))), "N/A", CoutEsrMax*1000) -> 49.74071947 | C125: mΩ
A126: CoutEsr | B126: ='Design Regulator'!E39/1000 -> 0.001 | C126: W | F126: Chosen ESR | I126: 1 | K126: =ISERROR(CoutEsrMax) -> FALSE | L126: =ISERROR(B125) -> FALSE
A127: Vripple | B127: =Iripple_Vinnom*SQRT(Cout_ESR^2+(1/(8*Fsw*Cout))^2) -> 0.00311441761 | C127: Vp-p | L127: =OR(CoutEsrMax>0.3,CoutEsrMax<0) -> FALSE
K128: =OR(TRUE, FALSE, TRUE) -> TRUE
A129: Step 5: Input Capacitor
K130: Two channels operating at full load
A131: Icinrms_VINmin | B131: =SQRT(D1_Vinmin_2*(Iout^2*(1-D1_Vinmin_2)+Iripple_Vinmin^2/12)) -> 3.897901927 | C131: A | F131: Calculate input cap rms current with one output unloaded | K131: =SQRT(Iout^2*D1_Vinmin*(1-D1_Vinmin)+Iout2^2*D2_Vinmin*(1-D2_Vinmin)-2*Iout*Iout2*D1_Vinmin*D2_Vinmin) ->  | L131: A | M131: =SQRT(Iout^2*D1_Vinmin*(1-D1_Vinmin)+Iout2^2*D2_Vinmin*(1-D2_Vinmin)-2*Iout*Iout2*(0.5-D2_Vinmin*(1-D1_Vinmin))) ->  | N131: A
A132: Icinrms_VINnom | B132: =SQRT(D1_Vinnom_2*(Iout^2*(1-D1_Vinnom_2)+Iripple_Vinnom^2/12)) -> 4.518693338 | C132: A | K132: =SQRT(Iout^2*D1_Vinnom*(1-D1_Vinnom)+Iout2^2*D2_Vinnom*(1-D2_Vinnom)-2*Iout*Iout2*D1_Vinnom*D2_Vinnom) ->  | L132: A
A133: Icinrms_VINmax | B133: =SQRT(D1_Vinmax_2*(Iout^2*(1-D1_Vinmax_2)+Iripple_Vinmax^2/12)) -> 4.268783614 | C133: A | K133: =SQRT(Iout^2*D1_Vinmax*(1-D1_Vinmax)+Iout2^2*D2_Vinmax*(1-D2_Vinmax)-2*Iout*Iout2*D1_Vinmax*D2_Vinmax) ->  | L133: A
A134: Max Cin rms current | B134: =MAX(B131:B133) -> 4.518693338 | C134: A | K134: =MAX(K131:K133) ->  | L134: A
F135: =Number_of_Phases*D1_Vinnom -> 0.5 | G135: N*D
A136: Icinrms - multiphase | B136: =Iout*SQRT((D1_Vinnom-F136/Number_of_Phases)*((F136+1)/Number_of_Phases-D1_Vinnom)) -> 4.5 | C136: A | F136: =FLOOR(Number_of_Phases*D1_Vinnom,1) -> 0 | G136: floor(N*D)
A137: Icinrms - multiphase - max | B137: =Iout/2/Number_of_Phases -> 4.5 | C137: A
A138: Final result | B138: =CHOOSE(MODE, B134, B137) -> 4.518693338 | C138: A | D138: …report this
A140: Vinripple1 | B140: ='Design Regulator'!E44/1000 -> 0.5 | C140: Vp-p | F140: Input voltage ripple spec (pk-pk)
A142: Cinmin_Vinmax | B142: =Iout/Number_of_Phases*D1_Vinmax*(1-D1_Vinmax)/(Vinripple1*Fsw) -> 9.090909091e-06 | C142: F | F142: Calculate cap at Vinmax and 50% duty cycle (Vin = 2*Vout)
A143: Cinmin_50%D | B143: =Iout*0.5*(1-0.5)/(Vinripple1*Fsw) -> 1.022727273e-05 | C143: F | F143: Buck 50% typically worst case
A144: Cinmin | B144: =IF(VIN_max<2*Vout, B142,B143) -> 1.022727273e-05 | C144: F
A145: Reported Cinmin | B145: =IF(Cinmin*1000000<10, 10,Cinmin*1000000) -> 10.22727273 | C145: uF | F145: …report this
A146: Cin | B146: ='Design Regulator'!E46/1000000 -> 2e-05 | C146: F | F146: Input capacitance
A147: CinEsrMax_Vinmax | B147: =-(Iout/Number_of_Phases*D1_Vinmax*(1-D1_Vinmax)/(Cin*Fsw)-Vinripple1)/(Iout/Number_of_Phases+Iripple_Vinmax/2) -> 0.02637533557 | C147: W
A148: CinEsrMax_50%D | B148: =-(Iout/Number_of_Phases*0.5*(1-0.5)/(Cin*Fsw)-Vinripple1)/(Iout/Number_of_Phases+Iripple_Vinmax/2) -> 0.02362790478 | C148: W | F148: Calculate ESR at Vinmax and 50% duty cycle (Vin = 2*Vout)
A149: CinEsrMax | B149: =IF(VIN_max<2*Vout, B147,B148) -> 0.02362790478 | C149: W
A150: Reported Cin ESR max | B150: =IF(OR(CinEsrMax>0.3, CinEsrMax<0), "N/A",CinEsrMax*1000) -> 23.62790478 | C150: mΩ | F150: …report this
A151: RCinEsr | B151: ='Design Regulator'!E48/1000 -> 0.002 | C151: W | F151: Input capacitance series resistance (ESR)
A153: Vinripple2_Vinmax | B153: =Iout/Number_of_Phases*D1_Vinmax_2*(1-D1_Vinmax_2)/(Cin*Fsw)+(Iout/Number_of_Phases +Iripple_Vinmax/2)*RCinEsr -> 0.2482364446 | C153: Vp-p
A154: Vinripple2_50%D | B154: =Iout/Number_of_Phases*0.5*(1-0.5)/(Cin*Fsw)+(Iout/Number_of_Phases +Iripple_Vinmax/2)*RCinEsr -> 0.2763622961 | C154: Vp-p | F154: Calculate ripple at Vinmax and 50% duty cycle (Vin = 2*Vout)
A155: Vinripple2 | B155: =IF(VIN_max<2*Vout, B153,B154) -> 0.2763622961 | C155: Vp-p | F155: …report highest of these
B157: =Iout*D1_Vinmax_2*(1-D1_Vinmax_2)/(Cin*Fsw) -> 0.2275559667 | C157: Vp-p
A159: Step 6a: Soft Start
A160: Tss | B160: ='Design Regulator'!E53/1000 -> 0.003 | C160: s | D160: Soft-start time
A161: Iss | B161: =Cout*Vout/Tss -> 0.96 | C161: A | D161: Load cap current during soft start
A162: Css | B162: =0.000022*Tss/1.2 -> 5.5e-08 | C162: F
A163: Css_u | B163: ='Standard Value Calculator'!B4 -> 5.6e-08 | C163: F
A165: Step 6b: Other Components - Dither, Hiccup, DEMB, MODE
A166: Tres | B166: ='Design Regulator'!E55/1000 -> 0.02 | C166: s | D166: Hiccup time
A167: Cres | B167: =0.00002*Tres/1.2 -> 3.333333333e-07 | C167: F
A168: Cres_u | B168: ='Standard Value Calculator'!G4 -> 3.3e-07 | C168: F
A170: RPG1/2 | B170: 100 | C170: kΩ
A171: RFB1/2 | C171: W | E171: Tie to VDDA or AGND for 3.3V/5V output, respectively.
A172: R_MODE | C172: W | E172: Tie to VDDA or AGND for Single/Dual operation, respectively.
A173: R_DEMB | C173: W | E173: Tie to VDDA or AGND for FPWM/DEM, respectively.
A175: Dither Modulation Frequency | B175: ='Design Regulator'!E57*1000 -> 8000 | C175: Hz
A176: Cdither_calculated | B176: =10*10^-6/Fdither/0.12 -> 1.041666667e-08 | C176: F
A177: Cdither_stdvalue | B177: ='Standard Value Calculator'!O22 -> 1e-08 | C177: F
A180: Step 7: Compensation
A181: Pi | B181: 3.14159265 | D181: p
A182: CS Amp Gain | B182: =O30 -> 12
A183: Ri | B183: =Rs*CSAmp_gain -> 0.024 | C183: W | F183: Current Sense effective resistance = shunt resistor Rs * CS amp gain
A184: gm | B184: =O36 -> 0.0012 | C184: S | F184: Error Amp Transconductance
A186: Se_ext | B186: =B190/Ri*1000 -> 5333333.333 | C186: A/s | F186: Slope Comp Slope - referred to inductor current
A187: Sn | B187: =(Vin-Vout)/Lf -> 1764705.882 | C187: A/s | F187: On-time Slope
A188: Sf | B188: =Vout/Lf -> 1764705.882 | C188: A/s | F188: Off-time Slope
A190: Se_int | B190: =Fsw/220*64/1000 -> 128 | C190: mV/μs | F190: Slope Comp Slope - referred to IC
A191: Sn_int | B191: =Sn*Ri/1000 -> 42.35294118 | C191: mV/μs | F191: etc
A192: Sf_int | B192: =Sf*Ri/1000 -> 42.35294118 | C192: mV/μs | F192: etc
A194: mc_buck | B194: =1+Se_ext/Sn -> 4.022222222 | F194: mc = 1 + Se/Sn for peak current-mode buck
A195: k_buck | B195: =mc_buck*(1-D1_Vinnom_2) -> 2.006589502 | F195: mc*(1-d)
A197: mc | B197: =1+Se_ext/Sn -> 4.022222222
A198: k | B198: =mc_buck*(1-D1_Vinnom_2) -> 2.006589502
A199: Q | B199: =1/Pi/(k-0.5) -> 0.2112784445 | F199: 1/(Pi*(k-0.5)) | H199: Q = 2/Pi = 0.636 gives ideal one-cycle damping
A201: Error Amp (EA)
A202: GBW | B202: 6 | C202: MHz | F202: EA gain-bandwidth product
A203: Cbw | B203: =gm/(2*Pi*GBW*1000000) -> 3.183098865e-11 | C203: F | F203: EA effective bandwidth limiting capacitance = gm/(2*Pi*GBW)
A204: RoEA | B204: 64000000 | C204: W | F204: EA output resistance
A205: AEA | B205: =gm*RoEA -> 76800 | C205: V/V | F205: EA DC gain = gm*RoEA
A206: Afb | B206: =Vref/Vout -> 0.1 | C206: V/V | F206: Feedback gain from Vout to FB
A207: Acs | B207: =1/Ri -> 41.66666667 | F207: Acs = 1/Ri
A208: Am_buck | B208: =(Ro/Number_of_Phases)/Ri/((1+Ro/Number_of_Phases*(k-0.5)/(Fsw*Lf))) -> 33.23921922
A209: Am | B209: =(Ro*Number_of_Phases)/Ri/((1+Ro*Number_of_Phases*(k-0.5)/(Fsw*Lf))) -> 33.23921922 | F209: Buck modulator gain
A211: Scaling factor to calculate Rcomp - buck | B211: =2*Pi*Ri/gm -> 125.663706 | F211: 2*Pi*Ri/gm -- scaling factor to calculate Rcomp given desired buck crossover frequency
A212: DC Gain is Adc = AEA*Afb*Am
A214: Ro | B214: =Rout -> 1.333333333 | C214: W | F214: Output Resistance
A216: Fp_load_buck | B216: =1/(2*Pi*Ro*Cout)+(k-0.5)/(2*Pi*Fsw*Lf*Cout/Number_of_Phases) -> 831.279049 | C216: Hz | F216: Buck dominant pole frequency -- note slope comp influence
A217: Fp_dominant | B217: =Fload_u -> 831.279049 | C217: Hz
B218: =Cbw -> 3.183098865e-11
A219: Fp_EA | B219: =1/(2*Pi*(RoEA+Rcea1_u)*Cc1ea_u) -> 1.38120371 | C219: Hz | F219: Error Amp LF pole -- related to amplifier ouptut resistance and comp cap
A220: Fp_HF | B220: =1/(2*Pi*Rcea1_u*(Cc2ea_u+Cbw)) -> 224142.3138 | C220: Hz | F220: Error Amp HF pole cancels zero related to Output Cap ESR
A221: Fesr | B221: =1/(2*Pi*Cout*Cout_ESR) -> 663145.597 | C221: Hz | F221: Cout ESR zero frequency
A222: F_mod | B222: =Fsw/2 -> 220000 | C222: Hz | F222: Zero-order sample-and-hold effects of current-mode control modeled as pole at Fsw/2
A224: Desired Crossover Frequency | B224: ='Design Regulator'!E65*1000 -> 54000 | C224: Hz
A225: Rcea1 | B225: =Fcross*Cout/Number_of_Phases*2*Pi*Ri/(gm*Afb) -> 16286.0163 | C225: W | F225: This component will largely determine the crossover frequency | K225: =Fcross/Fp_dominant/(gm*Afb*Am) -> 16286.0163
A226: Cc1ea, Cc3ea | B226: =10/(Rcea1*Fcross*2*Pi) -> 1.809720505e-09 | C226: F | F226: This along with Rcea1 will set a zero at Fcrossover/5 to optimize phase margin
A227: Cc2ea, Cc4ea | B227: =MAX(1/(Rcea1*2*Pi*Fesr)-Cbw, 1/(Rcea1*2*Pi*(Fsw/2))-Cbw) -> 1.258942375e-11 | C227: F | F227: This along with Rcea1 places a pole at the output cap ESR zero
A229: Chosen Compensation Components from the standard value sheet
A230: Rcea1_u | B230: ='Design Regulator'!D72*1000 -> 16200 | C230: W | F230: =1/(Rcea1*2*Pi*(Fsw/2))-Cbw -> 1.258942375e-11
A231: Cc1ea_u | B231: ='Design Regulator'!D73*0.000000001 -> 1.8e-09 | C231: F
A232: Cc2ea_u | B232: ='Design Regulator'!D74*0.000000000001 -> 1.2e-11 | C232: F
A234: Resulting Pole/Zero Locations | F234: =Cout -> 0.00024 | G234: =Cout_ESR -> 0.001
A235: Fz1 | B235: =1/(2*Pi*Rcea1_u*Cc1ea_u) -> 5457.988452 | C235: Hz | F235: This zero is set at or close to the dominant load pole
A236: Fp2 | B236: =1/(2*Pi*Rcea1_u*(Cc1ea_u*(Cc2ea_u+Cbw)/(Cc1ea_u+Cc2ea_u+Cbw))) -> 229600.3023 | C236: Hz | F236: This pole cancels the zero from the Output Cap ESR
A238: Rfb1 | B238: ='Design Regulator'!E67*1000 -> 49900 | C238: W | F238: Upper Feedback Resistance - chosen by user
A239: Rfb2 | B239: =IF(Vout=Vref,100000000,Vref*B238/((Vout-Vref))) -> 5544.444444 | C239: W | F239: Lower Feedback Resistance
A240: Rfb2_u | B240: =IF(Vout=Vref,"N/A",'Standard Value Calculator'!O11) -> 5490 | C240: W | F240: Std Value Lower Feedback Resistance
A243: Other Input Variables
A244: Rfets | B244: 0 | C244: W | D244: Series resistance due to FETs
A245: Diode loss eq res | B245: =0.00000002*Fsw*0.6*4/Iripple1 -> 
A246: Fet loss eq res | B246: =_Don2*RdsonTop+Doff2*RdsonBot -> 
A247: cap loss eq res | B247: =B248*Vin^2*Fsw/2/(((Iripple1/SQRT(3))^2)) -> 
A248: Sw cap | B248: 5e-09
A250: Step 8: Efficiency
A251: VAR | B251: 0
A252: Design
A253: Ta | B253: ='Design Regulator'!E14 -> 25 | C253: °C | D253: Ambient Temperature
A254: Components
... 93 more rows

Sheet Stability Calculations (hidden)
A2: Divider Network & EA Poles/Zeros | E2: Modulator | J2: Power Stage Poles/Zeros | M2: Complex Pole Pair | P2: Total System
B3: Afb1 | C3: =Afb -> 0.1 | D3: V/V | E3: Acs | F3: =Acs -> 41.66666667 | G3: A/V | H3: gm | I3: =gm -> 0.0012 | J3: z_ESR | K3: =Fesr -> 663145.597 | L3: Hz | M3: p3 | N3: =Fsw/2 -> 220000 | O3: Hz | P3: Adc | Q3: =Am*Afb*AEA -> 255277.2036 | R3: V/V
B4: EA zero, z1 | C4: =Fz1_u -> 5457.988452 | D4: Hz | E4: Am | F4: =Am -> 33.23921922 | G4: V/V | J4: p_dom | K4: =Fp_dominant -> 831.279049 | L4: Hz | M4: pterm1 | N4: =Q*pole3 -> 46481.25779 | P4: Crossover | Q4: =AE7 -> 40.738 | R4: kHz
B5: EA pole, p1 | C5: =Fp1_u -> 1.38120371 | D5: Hz | E5: Q | F5: =Q -> 0.2112784445 | M5: pterm2 | N5: =pole3^2 -> 48400000000 | P5: Phase Margin | Q5: =AE9 -> 34.52867422 | R5: °
B6: Aea | C6: =AEA -> 76800 | D6: V/V | E6: mc | F6: =mc -> 4.022222222 | P6: radconv | Q6: =180/Pi -> 57.29577958 | AD6: XOVER SEARCH
B7: EA pole, p2 | C7: =Fp2_u -> 224142.3138 | D7: Hz | E7: k | F7: =k -> 2.006589502 | AD7: xover | AE7: =SUM(AD12:AD613)/1000 -> 40.738
AD9: phase margin | AE9: =SUM(AE13:AE613) -> 34.52867422
A10: Freq (Hz) | C10: Power Stage | I10: Error Amplifier | O10: Sampling Double Pole | Q10: System Response | X10: ERROR AMP Response | AA10: PLANT Response
C11: p_dom | E11: z_ESR | G11: z_RHP | I11: p1 | K11: z1 | M11: p2 | O11: p3
C12: Gain(V/V) | D12: Phase(rad) | E12: Gain(V/V) | F12: Phase(rad) | G12: Gain(V/V) | H12: Phase(rad) | I12: Gain(V/V) | J12: Phase(rad) | K12: Gain(V/V) | L12: Phase(rad) | M12: Gain(V/V) | N12: Phase(rad) | O12: Gain(V/V) | P12: Phase(rad) | Q12: Gain (dB) | R12: Phase (°) | S12: Phase Margin (°) | V12: Fsquare | X12: Gain(dB) | Y12: Phase(Deg) | AA12: Gain(dB) | AB12: Phase(Deg)
A13: 1 | B13: =A13/1000 -> 0.001 | C13: =SQRT(1+(A13/pole1)^2) -> 1.000000724 | D13: =ATAN(A13/pole1) -> 0.0012029649 | E13: =SQRT(1+(A13/Zero1)^2) -> 1 | F13: =ATAN(A13/Zero1) -> 1.507964472e-06 | G13: =IF(VIN_nom>Vout, 1, SQRT(1+(A13/z_RHP)^2)) -> 1 | H13: =IF(VIN_nom>Vout, 0, -ATAN(A13/z_RHP)) -> 0 | I13: =SQRT(1+(A13/Pole2)^2) -> 1.234578846 | J13: =ATAN(A13/Pole2) -> 0.626656456 | K13: =SQRT(1+(A13/Zero2)^2) -> 1.000000017 | L13: =ATAN(A13/Zero2) -> 0.0001832176813 | M13: =SQRT(1+(A13/pole4)^2) -> 1 | N13: =ATAN(A13/pole4) -> 4.461451222e-06 | O13: =SQRT((1-(V13/pterm2))^2+(A13/pterm1)^2) -> 1 | P13: =IF((ATAN((A13/pterm1)/(1-A13^2/pterm2))>0),ATAN((A13/pterm1)/(1-A13^2/pterm2)),PI()+ATAN((A13/pterm1)/(1-A13^2/pterm2))) -> 2.151404776e-05 | Q13: =20*LOG10(((E13*K13*G13)/(C13*I13*O13*M13))*Adc) -> 106.3098579 | R13: =((F13+L13+H13)-(D13+J13+P13+N13))*radconv -> -35.96459927 | S13: =IF(R13>0,R13,R13+180) -> 144.0354007 | U13: =IF(Q13<0,A13,1000000000) -> 1000000000 | V13: =A13^2 -> 1 | X13: =20*LOG10((K13/(I13*M13))*AEA) -> 95.87684792 | Y13: =(L13-(J13+N13))*radconv -> -35.89452819 | AA13: =20*LOG10((E13*G13/(C13*O13))*Acs*Am) -> 62.82878515 | AB13: =(F13+H13-(D13+P13))*radconv -> -0.07007107586 | AD13: =SUM((Q14<0)*(Q13>0))*A13 -> 0 | AE13: =IF(AD13>0,S11,0) -> 0
A14: 1.0965 | B14: =A14/1000 -> 0.0010965 | C14: 1.00000087 | D14: 0.001319050884 | E14: 1 | F14: 1.653483044e-06 | G14: 1 | H14: 0 | I14: 1.276806155 | J14: 0.6709936369 | K14: 1.00000002 | L14: 0.0002008981871 | M14: 1 | N14: 4.891981265e-06 | O14: 1 | P14: 2.359015336e-05 | Q14: 106.0177339 | R14: -38.51070612 | S14: 141.4892939 | U14: =IF(Q14<0,A14,1000000000) -> 1000000000 | V14: =A14^2 -> 1.20231225 | X14: 95.58472522 | Y14: -38.43387319 | AA14: 62.82878388 | AB14: -0.07683292731 | AD14: =SUM((Q15<0)*(Q14>0))*A14 -> 0 | AE14: 0
A15: 1.2023 | B15: 0.0012023 | C15: 1.000001046 | D15: 0.001446324388 | E15: 1 | F15: 1.813025685e-06 | G15: 1 | H15: 0 | I15: 1.325791298 | J15: 0.7162600544 | K15: 1.000000024 | L15: 0.0002202826171 | M15: 1 | N15: 5.364002805e-06 | O15: 1 | P15: 2.586633962e-05 | Q15: 105.6907285 | R15: -41.11061071 | S15: 138.8893893 | U15: 1000000000 | V15: 1.44552529 | X15: 95.25772133 | Y15: -41.02636427 | AA15: 62.82878235 | AB15: -0.0842464367 | AD15: 0 | AE15: 0
A16: 1.3183 | B16: 0.0013183 | C16: 1.000001257 | D16: 0.001585868063 | E16: 1 | F16: 1.987949563e-06 | G16: 1 | H16: 0 | I16: 1.382385181 | J16: 0.7621004261 | K16: 1.000000029 | L16: 0.0002415358673 | M16: 1 | N16: 5.881531146e-06 | O16: 1 | P16: 2.836196915e-05 | Q16: 105.3276486 | R16: -43.7440107 | S16: 136.2559893 | U16: 1000000000 | V16: 1.73791489 | X16: 94.89464326 | Y16: -43.65163603 | AA16: 62.82878052 | AB16: -0.09237466697 | AD16: 0 | AE16: 0
A17: 1.4454 | B17: 0.0014454 | C17: 1.000001512 | D17: 0.001738764552 | E17: 1 | F17: 2.179611848e-06 | G17: 1 | H17: 0 | I17: 1.447451993 | J17: 0.8081057172 | K17: 1.000000035 | L17: 0.0002648228333 | M17: 1 | N17: 6.448581597e-06 | O17: 1 | P17: 3.109640462e-05 | Q17: 104.9281445 | R17: -46.38752398 | S17: 133.612476 | U17: 1000000000 | V17: 2.08918116 | X17: 94.49514133 | Y17: -46.2862433 | AA17: 62.82877831 | AB17: -0.1012806807 | AD17: 0 | AE17: 0
A18: 1.5849 | B18: 0.0015849 | C18: 1.000001818 | D18: 0.001906577679 | E18: 1 | F18: 2.389972892e-06 | G18: 1 | H18: 0 | I18: 1.522072375 | J18: 0.8539652089 | K18: 1.000000042 | L18: 0.0002903816982 | M18: 1 | N18: 7.070954042e-06 | O18: 1.000000001 | P18: 3.409761428e-05 | Q18: 104.4915192 | R18: -49.02342544 | S18: 130.9765746 | U18: 1000000000 | V18: 2.51190801 | X18: 94.05851869 | Y18: -48.91236987 | AA18: 62.82877565 | AB18: -0.1110555685 | AD18: 0 | AE18: 0
A19: 1.7378 | B19: 0.0017378 | C19: 1.000002185 | D19: 0.002090510365 | E19: 1 | F19: 2.620540659e-06 | G19: 1 | H19: 0 | I19: 1.607175055 | J19: 0.8992340737 | K19: 1.000000051 | L19: 0.0003183956794 | M19: 1 | N19: 7.753109934e-06 | O19: 1.000000001 | P19: 3.738711218e-05 | Q19: 104.0189585 | R19: -51.62628817 | S19: 128.3737118 | U19: 1000000000 | V19: 3.01994884 | X19: 93.58596118 | Y19: -51.50451877 | AA19: 62.82877246 | AB19: -0.1217693989 | AD19: 0 | AE19: 0
A20: 1.9055 | B20: 0.0019055 | C20: 1.000002627 | D20: 0.002292246707 | E20: 1 | F20: 2.873426301e-06 | G20: 1 | H20: 0 | I20: 1.703901084 | J20: 0.9435857618 | K20: 1.000000061 | L20: 0.0003491212814 | M20: 1 | N20: 8.501295304e-06 | O20: 1.000000001 | P20: 4.099501799e-05 | Q20: 103.5113308 | R20: -54.177486 | S20: 125.822514 | U20: 1000000000 | V20: 3.63093025 | X20: 93.07833735 | Y20: -54.04396574 | AA20: 62.82876861 | AB20: -0.1335202684 | AD20: 0 | AE20: 0
A21: 2.0893 | B21: 0.0020893 | C21: 1.000003158 | D21: 0.002513350485 | E21: 1 | F21: 3.150590171e-06 | G21: 1 | H21: 0 | I21: 1.813328064 | J21: 0.9866683084 | K21: 1.000000073 | L21: 0.0003827966871 | M21: 1 | N21: 9.321310039e-06 | O21: 1.000000001 | P21: 4.494929996e-05 | Q21: 102.9706862 | R21: -56.65693062 | S21: 123.3430694 | U21: 1000000000 | V21: 4.36517449 | X21: 92.53769738 | Y21: -56.51053135 | AA21: 62.828764 | AB21: -0.146399265 | AD21: 0 | AE21: 0
A22: 2.2909 | B22: 0.0022909 | C22: 1.000003797 | D22: 0.002755866641 | E22: 1 | F22: 3.454595809e-06 | G22: 1 | H22: 0 | I22: 1.936759997 | J22: 1.028240767 | K22: 1.000000088 | L22: 0.0004197333661 | M22: 1 | N22: 1.02207386e-05 | O22: 1.000000001 | P22: 4.928653198e-05 | Q22: 102.3986923 | R22: -59.05091848 | S22: 120.9490815 | U22: 1000000000 | V22: 5.24822281 | X22: 91.96570904 | Y22: -58.89039298 | AA22: 62.82875845 | AB22: -0.1605255041 | AD22: 0 | AE22: 0
A23: 2.5119 | B23: 0.0025119 | C23: 1.000004565 | D23: 0.003021719792 | E23: 1 | F23: 3.787855957e-06 | G23: 1 | H23: 0 | I23: 2.075432249 | J23: 1.068057436 | K23: 1.000000106 | L23: 0.0004602244663 | M23: 1 | N23: 1.120671932e-05 | O23: 1.000000001 | P23: 5.404113652e-05 | Q23: 101.7980307 | R23: -61.34546771 | S23: 118.6545323 | U23: 1000000000 | V23: 6.30964161 | X23: 91.36505411 | Y23: -61.16945661 | AA23: 62.82875177 | AB23: -0.176011092 | AD23: 0 | AE23: 0
A24: 2.7542 | B24: 0.0027542 | C24: 1.000005489 | D24: 0.003313195401 | E24: 1 | F24: 4.153235749e-06 | G24: 1 | H24: 0 | I24: 2.230754675 | J24: 1.105957442 | K24: 1.000000127 | L24: 0.0005046181006 | M24: 1 | N24: 1.228772896e-05 | O24: 1.000000002 | P24: 5.925399028e-05 | Q24: 101.1711579 | R24: -63.53147454 | S24: 116.4685255 | U24: 1000000000 | V24: 7.58561764 | X24: 90.73818927 | Y24: -63.33848539 | AA24: 62.82874375 | AB24: -0.1929891541 | AD24: 0 | AE24: 0
A25: 3.02 | B25: 0.00302 | C25: 1.000006599 | D25: 0.003632939766 | E25: 1 | F25: 4.554052705e-06 | G25: 1 | H25: 0 | I25: 2.404324478 | J25: 1.141845138 | K25: 1.000000153 | L25: 0.0005533173472 | M25: 1 | N25: 1.347358269e-05 | O25: 1.000000002 | P25: 6.497242415e-05 | Q25: 100.5203231 | R25: -65.60359043 | S25: 114.3964096 | U25: 1000000000 | V25: 9.1204 | X25: 90.08736417 | Y25: -65.39197659 | AA25: 62.8287341 | AB25: -0.2116138338 | AD25: 0 | AE25: 0
A26: 3.3113 | B26: 0.0033113 | C26: 1.000007934 | D26: 0.003983358525 | E26: 1 | F26: 4.993322756e-06 | G26: 1 | H26: 0 | I26: 2.59760168 | J26: 1.175620475 | K26: 1.000000184 | L26: 0.0006066886404 | M26: 1 | N26: 1.477320343e-05 | O26: 1.000000002 | P26: 7.123946624e-05 | Q26: 99.84872221 | R26: -67.55620262 | S26: 112.4437974 | U26: 1000000000 | V26: 10.96470769 | X26: 89.41577487 | Y26: -67.32417736 | AA26: 62.82872251 | AB26: -0.2320252565 | AD26: 0 | AE26: 0
A27: 3.6308 | B27: 0.0036308 | C27: 1.000009538 | D27: 0.00436769929 | E27: 1 | F27: 5.475117405e-06 | G27: 1 | H27: 0 | I27: 2.812503716 | J27: 1.207288433 | K27: 1.000000221 | L27: 0.0006652266666 | M27: 1 | N27: 1.61986371e-05 | O27: 1.000000003 | P27: 7.811320447e-05 | Q27: 99.15829762 | R27: -69.38975797 | S27: 110.610242 | U27: 1000000000 | V27: 13.18270864 | X27: 88.72536422 | Y27: -69.13534538 | AA27: 62.82870857 | AB27: -0.2544125916 | AD27: 0 | AE27: 0
A28: 3.9811 | B28: 0.0039811 | C28: 1.000011468 | D28: 0.004789089258 | E28: 1 | F28: 6.003357359e-06 | G28: 1 | H28: 0 | I28: 3.050883363 | J28: 1.236849966 | K28: 1.000000266 | L28: 0.0007294077898 | M28: 1 | N28: 1.776148346e-05 | O28: 1.000000003 | P28: 8.564957535e-05 | Q28: 98.45163125 | R28: -71.10446667 | S28: 108.8955333 | U28: 1000000000 | V28: 15.84915721 | X28: 88.01871462 | Y28: -70.82550867 | AA28: 62.8286918 | AB28: -0.2789579947 | AD28: 0 | AE28: 0
A29: 4.3652 | B29: 0.0043652 | C29: 1.000013787 | D29: 0.005251136646 | E29: 1 | F29: 6.582566513e-06 | G29: 1 | H29: 0 | I29: 3.314864791 | J29: 1.264351055 | K29: 1.00000032 | L29: 0.0007997816608 | M29: 1 | N29: 1.947512687e-05 | O29: 1.000000004 | P29: 9.391312104e-05 | Q29: 97.73080729 | R29: -72.70314271 | S29: 107.2968573 | U29: 1000000000 | V29: 19.05497104 | X29: 87.2979108 | Y29: -72.39727107 | AA29: 62.82867165 | AB29: -0.30587164 | AD29: 0 | AE29: 0
A30: 4.7863 | B30: 0.0047863 | C30: 1.000016576 | D30: 0.005757690051 | E30: 1 | F30: 7.217570352e-06 | G30: 1 | H30: 0 | I30: 3.606712946 | J30: 1.289854402 | K30: 1.000000385 | L30: 0.000876934573 | M30: 1 | N30: 2.135384398e-05 | O30: 1.000000005 | P30: 0.0001029726865 | Q30: 96.99786842 | R30: -74.18957005 | S30: 105.8104299 | U30: 1000000000 | V30: 22.90866769 | X30: 86.56499616 | Y30: -73.85419235 | AA30: 62.82864743 | AB30: -0.3353777041 | AD30: 0 | AE30: 0
A31: 5.2481 | B31: 0.0052481 | C31: 1.000019929 | D31: 0.006313199259 | E31: 1 | F31: 7.913948345e-06 | G31: 1 | H31: 0 | I31: 3.929044594 | J31: 1.313450379 | K31: 1.000000462 | L31: 0.0009615444276 | M31: 1 | N31: 2.341414216e-05 | O31: 1.000000006 | P31: 0.0001129078736 | Q31: 96.25433238 | R31: -75.56914787 | S31: 104.4308521 | U31: 1000000000 | V31: 27.54255361 | X31: 85.82148925 | Y31: -75.20141248 | AA31: 62.8286183 | AB31: -0.367735382 | AD31: 0 | AE31: 0
A32: 5.7544 | B32: 0.0057544 | C32: 1.000023959 | D32: 0.00692223399 | E32: 1 | F32: 8.677430757e-06 | G32: 1 | H32: 0 | I32: 4.284553421 | J32: 1.335227075 | K32: 1.000000556 | L32: 0.001054307446 | M32: 1 | N32: 2.567297491e-05 | O32: 1.000000007 | P32: 0.0001238004359 | Q32: 95.50192609 | R32: -76.84715063 | S32: 103.1528494 | U32: 1000000000 | V32: 33.11311936 | X32: 85.06911798 | Y32: -76.44393977 | AA32: 62.82858328 | AB32: -0.4032108552 | AD32: 0 | AE32: 0
A33: 6.3096 | B33: 0.0063096 | C33: 1.000028805 | D33: 0.007590085235 | E33: 1 | F33: 9.514652632e-06 | G33: 1 | H33: 0 | I33: 4.676361131 | J33: 1.355290601 | K33: 1.000000668 | L33: 0.00115602978 | M33: 1 | N33: 2.814997262e-05 | O33: 1.000000008 | P33: 0.000135745035 | Q33: 94.74183537 | R33: -78.02992111 | S33: 101.9700789 | U33: 1000000000 | V33: 39.81105216 | X33: 84.30906936 | Y33: -77.58780879 | AA33: 62.82854117 | AB33: -0.4421123188 | AD33: 0 | AE33: 0
A34: 6.9183 | B34: 0.0069183 | C34: 1.000034631 | D34: 0.008322283939 | E34: 1 | F34: 1.043255061e-05 | G34: 1 | H34: 0 | I34: 5.107738984 | J34: 1.373742177 | K34: 1.000000803 | L34: 0.00126755422 | M34: 1 | N34: 3.086565798e-05 | O34: 1.00000001 | P34: 0.0001488406357 | Q34: 93.97537285 | R34: -79.12353389 | S34: 100.8764661 | U34: 1000000000 | V34: 47.86287489 | X34: 83.54265746 | Y34: -78.63877195 | AA34: 62.82849056 | AB34: -0.4847619453 | AD34: 0 | AE34: 0
A35: 7.5858 | B35: 0.0075858 | C35: 1.000041636 | D35: 0.009125202245 | E35: 1 | F35: 1.143911689e-05 | G35: 1 | H35: 0 | I35: 5.582462444 | J35: 1.390691792 | K35: 1.000000966 | L35: 0.001389851807 | M35: 1.000000001 | N35: 3.384367667e-05 | O35: 1.000000012 | P35: 0.0001632012622 | Q35: 93.20337112 | R35: -80.13460772 | S35: 99.86539228 | U35: 1000000000 | V35: 57.54436164 | X35: 82.77071658 | Y35: -79.60307681 | AA35: 62.8284297 | AB35: -0.5315309069 | AD35: 0 | AE35: 0
A36: 8.3176 | B36: 0.0083176 | C36: 1.000050057 | D36: 0.01000545178 | E36: 1 | F36: 1.254264529e-05 | G36: 1 | H36: 0 | I36: 6.104458025 | J36: 1.40623996 | K36: 1.000001161 | L36: 0.001523930223 | M36: 1.000000001 | N36: 3.710856667e-05 | O36: 1.000000015 | P36: 0.000178945242 | Q36: 92.42687362 | R36: -81.06923052 | S36: 98.93076948 | U36: 1000000000 | V36: 69.18246976 | X36: 81.99429224 | Y36: -80.4864262 | AA36: 62.82835654 | AB36: -0.5828043264 | AD36: 0 | AE36: 0
A37: 9.1201 | B37: 0.0091201 | C37: 1.000060181 | D37: 0.01097072532 | E37: 1 | F37: 1.375278678e-05 | G37: 1 | H37: 0 | I37: 6.67830239 | J37: 1.420492387 | K37: 1.000001396 | L37: 0.001670962039 | M37: 1.000000001 | N37: 4.068888127e-05 | O37: 1.000000018 | P37: 0.0001962102648 | Q37: 91.64640833 | R37: -81.93384123 | S37: 98.06615877 | U37: 1000000000 | V37: 83.17622401 | X37: 81.21391492 | Y37: -81.29481093 | AA37: 62.82826858 | AB37: -0.639030303 | AD37: 0 | AE37: 0
A38: 10 | B38: 0.01 | C38: 1.000072354 | D38: 0.01202907457 | E38: 1 | F38: 1.507964472e-05 | G38: 1 | H38: 0 | I38: 7.308795563 | J38: 1.433544356 | K38: 1.000001678 | L38: 0.001832174783 | M38: 1.000000001 | N38: 4.461451219e-05 | O38: 1.000000021 | P38: 0.0002151404747 | Q38: 90.86271035 | R38: -82.7342996 | S38: 97.2657004 | U38: 1000000000 | V38: 100 | X38: 80.43032269 | Y38: -82.03362176 | AA38: 62.82816283 | AB38: -0.7006778462 | AD38: 0 | AE38: 0
A39: 10.965 | B39: 0.010965 | C39: 1.000086991 | D39: 0.01318975156 | E39: 1 | F39: 1.653483043e-05 | G39: 1 | H39: 0 | I39: 8.001462102 | J39: 1.445491517 | K39: 1.000002018 | L39: 0.002008979195 | M39: 1.000000001 | N39: 4.891981261e-05 | O39: 1.000000025 | P39: 0.0002359015299 | Q39: 90.07611536 | R39: -83.47654611 | S39: 96.52345389 | U39: 1000000000 | V39: 120.231225 | X39: 79.64385487 | Y39: -82.70826023 | AA39: 62.82803566 | AB39: -0.7682858842 | AD39: 0 | AE39: 0
A40: 12.023 | B40: 0.012023 | C40: 1.000104587 | D40: 0.01446224559 | E40: 1 | F40: 1.813025684e-05 | G40: 1 | H40: 0 | I40: 8.761977899 | J40: 1.456417615 | K40: 1.000002426 | L40: 0.002202822644 | M40: 1.000000001 | N40: 5.364002799e-05 | O40: 1.00000003 | P40: 0.0002586633912 | Q40: 89.28731002 | R40: -84.1658507 | S40: 95.8341493 | U40: 1000000000 | V40: 144.552529 | X40: 78.85520239 | Y40: -83.32344353 | AA40: 62.82788279 | AB40: -0.8424071689 | AD40: 0 | AE40: 0
A41: 13.183 | B41: 0.013183 | C41: 1.000125741 | D41: 0.01585736464 | E41: 1 | F41: 1.987949563e-05 | G41: 1 | H41: 0 | I41: 9.596816075 | J41: 1.466405606 | K41: 1.000002917 | L41: 0.002415354023 | M41: 1.000000002 | N41: 5.88153114e-05 | O41: 1.000000037 | P41: 0.000283619685 | Q41: 88.49663014 | R41: -84.80750391 | S41: 95.19249609 | U41: 1000000000 | V41: 173.791489 | X41: 78.06470629 | Y41: -83.88383264 | AA41: 62.82769902 | AB41: -0.9236712691 | AD41: 0 | AE41: 0
A42: 14.454 | B42: 0.014454 | C42: 1.000151154 | D42: 0.01738591109 | E42: 1 | F42: 2.179611847e-05 | G42: 1 | H42: 0 | I42: 10.51245581 | J42: 1.475527026 | K42: 1.000003507 | L42: 0.002648222204 | M42: 1.000000002 | N42: 6.448581588e-05 | O42: 1.000000044 | P42: 0.0003109640376 | Q42: 87.70487426 | R42: -85.40614151 | S42: 94.59385849 | U42: 1000000000 | V42: 208.918116 | X42: 77.27317118 | Y42: -84.39343408 | AA42: 62.82747825 | AB42: -1.012707431 | AD42: 0 | AE42: 0
A43: 15.849 | B43: 0.015849 | C43: 1.000181736 | D43: 0.01906349022 | E43: 1 | F43: 2.389972891e-05 | G43: 1 | H43: 0 | I43: 11.51826512 | J43: 1.483868259 | K43: 1.000004216 | L43: 0.002903808902 | M43: 1.000000002 | N43: 7.07095403e-05 | O43: 1.000000053 | P43: 0.0003409761315 | Q43: 86.91095701 | R43: -85.96748875 | S43: 94.03251125 | U43: 1000000000 | V43: 251.190801 | X43: 76.47951959 | Y43: -84.85706408 | AA43: 62.82721259 | AB43: -1.110424674 | AD43: 0 | AE43: 0
A44: 17.378 | B44: 0.017378 | C44: 1.000218488 | D44: 0.02090208955 | E44: 1 | F44: 2.620540659e-05 | G44: 1 | H44: 0 | I44: 12.62145657 | J44: 1.49148304 | K44: 1.000005069 | L44: 0.003183946142 | M44: 1.000000003 | N44: 7.753109919e-05 | O44: 1.000000064 | P44: 0.0003738711069 | Q44: 86.11619702 | R44: -86.49522033 | S44: 93.50477967 | U44: 1000000000 | V44: 301.994884 | X44: 75.68507886 | Y44: -85.27769904 | AA44: 62.82689333 | AB44: -1.217521293 | AD44: 0 | AE44: 0
A45: 19.055 | B45: 0.019055 | C45: 1.000262686 | D45: 0.02291849367 | E45: 1 | F45: 2.873426301e-05 | G45: 1 | H45: 0 | I45: 13.83213253 | J45: 1.498437769 | K45: 1.000006094 | L45: 0.003491198772 | M45: 1.000000004 | N45: 8.501295284e-05 | O45: 1.000000077 | P45: 0.0004099501602 | Q45: 85.32022872 | R45: -86.99397508 | S45: 93.00602492 | U45: 1000000000 | V45: 363.093025 | X45: 74.88949447 | Y45: -85.65900006 | AA45: 62.82650942 | AB45: -1.334975024 | AD45: 0 | AE45: =IF(AD45>0,S43,0) -> 0
A46: 20.893 | B46: 0.020893 | C46: 1.000315798 | D46: 0.02512826752 | E46: 1 | F46: 3.15059017e-05 | G46: 1 | H46: 0 | I46: 15.15967898 | J46: 1.504783937 | K46: 1.000007327 | L46: 0.003827948361 | M46: 1.000000004 | N46: 9.321310012e-05 | O46: 1.000000092 | P46: 0.0004494929736 | Q46: 84.52376083 | R46: -87.46747676 | S46: 92.53252324 | U46: 1000000000 | V46: 436.517449 | X46: 74.09348791 | Y46: -86.00378418 | AA46: 62.82604809 | AB46: -1.463692572 | AD46: 0 | AE46: 0
A47: 22.909 | B47: 0.022909 | C47: 1.00037967 | D47: 0.02755176255 | E47: 1.000000001 | F47: 3.454595808e-05 | G47: 1 | H47: 0 | I47: 16.61637531 | J47: 1.510578343 | K47: 1.000008809 | L47: 0.004197309259 | M47: 1.000000005 | N47: 0.0001022073857 | O47: 1.000000111 | P47: 0.0004928652856 | Q47: 83.72629318 | R47: -87.91999119 | S47: 92.08000881 | U47: 1000000000 | V47: 524.822281 | X47: 73.29657501 | Y47: -86.31513171 | AA47: 62.82549334 | AB47: -1.604859477 | AD47: 0 | AE47: 0
A48: 25.119 | B48: 0.025119 | C48: 1.000456438 | D48: 0.03020809794 | E48: 1.000000001 | F48: 3.787855955e-05 | G48: 1 | H48: 0 | I48: 18.2137833 | J48: 1.515865231 | K48: 1.00001059 | L48: 0.004602212496 | M48: 1.000000006 | N48: 0.0001120671928 | O48: 1.000000133 | P48: 0.0005404113201 | Q48: 82.92836449 | R48: -88.35500328 | S48: 91.64499672 | U48: 1000000000 | V48: 630.964161 | X48: 72.49931303 | Y48: -86.59541375 | AA48: 62.82482663 | AB48: -1.759589527 | AD48: 0 | AE48: 0
A49: 27.542 | B49: 0.027542 | C49: 1.000548717 | D49: 0.03311995982 | E49: 1.000000001 | F49: 4.153235746e-05 | G49: 1 | H49: 0 | I49: 19.96563653 | J49: 1.520689305 | K49: 1.000012732 | L49: 0.005046138604 | M49: 1.000000008 | N49: 0.0001228772889 | O49: 1.00000016 | P49: 0.0005925398433 | Q49: 82.12992182 | R49: -88.77620148 | S49: 91.22379852 | U49: 1000000000 | V49: 758.561764 | X49: 71.70167171 | Y49: -86.84699716 | AA49: 62.82402527 | AB49: -1.929204321 | AD49: 0 | AE49: 0
A50: 30.2 | B50: 0.0302 | C50: 1.000659701 | D50: 0.03631358711 | E50: 1.000000001 | F50: 4.554052702e-05 | G50: 1 | H50: 0 | I50: 21.88784183 | J50: 1.525092953 | K50: 1.000015308 | L50: 0.00553311757 | M50: 1.000000009 | N50: 0.0001347358261 | O50: 1.000000192 | P50: 0.0006497241631 | Q50: 81.33058487 | R50: -89.18731763 | S50: 90.81268237 | U50: 1000000000 | V50: 912.04 | X50: 70.90329845 | Y50: -87.07208518 | AA50: 62.82306158 | AB50: -2.115232455 | AD50: 0 | AE50: 0
A51: 33.113 | B51: 0.033113 | C51: 1.000793051 | D51: 0.03981274746 | E51: 1.000000001 | F51: 4.993322752e-05 | G51: 1 | H51: 0 | I51: 23.99486297 | J51: 1.529108666 | K51: 1.000018403 | L51: 0.006066812715 | M51: 1.000000011 | N51: 0.0001477320332 | O51: 1.000000231 | P51: 0.0007123945591 | Q51: 80.53114733 | R51: -89.59139339 | S51: 90.40860661 | U51: 1000000000 | V51: 1096.470769 | X51: 70.10501867 | Y51: -87.27233475 | AA51: 62.82190382 | AB51: -2.319058641 | AD51: 0 | AE51: 0
A52: 36.308 | B52: 0.036308 | C52: 1.000953398 | D52: 0.04364952795 | E52: 1.000000001 | F52: 5.475117399e-05 | G52: 1 | H52: 0 | I52: 26.30622959 | J52: 1.532773356 | K52: 1.000022126 | L52: 0.006652169523 | M52: 1.000000013 | N52: 0.0001619863696 | O52: 1.000000278 | P52: 0.0007811319084 | Q52: 79.73098106 | R52: -89.99213653 | S52: 90.00786347 | U52: 1000000000 | V52: 1318.270864 | X52: 69.30624435 | Y52: -87.44958425 | AA52: 62.82051188 | AB52: -2.542552283 | AD52: 0 | AE52: 0
A53: 39.811 | B53: 0.039811 | C53: 1.00114613 | D53: 0.04785469499 | E53: 1.000000002 | F53: 6.003357352e-05 | G53: 1 | H53: 0 | I53: 28.8407512 | J53: 1.536116215 | K53: 1.000026601 | L53: 0.007293949839 | M53: 1.000000016 | N53: 0.0001776148327 | O53: 1.000000334 | P53: 0.000856495574 | Q53: 78.93038789 | R53: -90.39274606 | S53: 89.60725394 | U53: 1000000000 | V53: 1584.915721 | X53: 68.50732396 | Y53: -87.60524009 | AA53: 62.8188391 | AB53: -2.787505967 | AD53: 0 | AE53: 0
A54: 43.652 | B54: 0.043652 | C54: 1.001377798 | D54: 0.05246366178 | E54: 1.000000002 | F54: 6.582566504e-05 | G54: 1 | H54: 0 | I54: 31.62013375 | J54: 1.539165633 | K54: 1.000031982 | L54: 0.007997647793 | M54: 1.000000019 | N54: 0.0001947512663 | O54: 1.000000402 | P54: 0.0009391309737 | Q54: 78.12928161 | R54: -90.79660491 | S54: 89.20339509 | U54: 1000000000 | V54: 1905.497104 | X54: 67.70822797 | Y54: -87.7406218 | AA54: 62.81682881 | AB54: -3.05598311 | AD54: 0 | AE54: 0
A55: 47.863 | B55: 0.047863 | C55: 1.001656215 | D55: 0.05751403653 | E55: 1.000000003 | F55: 7.21757034e-05 | G55: 1 | H55: 0 | I55: 34.66753276 | J55: 1.541946892 | K55: 1.00003845 | L55: 0.008769123197 | M55: 1.000000023 | N55: 0.0002135384366 | O55: 1.000000483 | P55: 0.001029726553 | Q55: 77.32773778 | R55: -91.20702552 | S55: 88.79297448 | U55: 1000000000 | V55: 2290.866769 | X55: 66.90909948 | Y55: -87.85685034 | AA55: 62.81441347 | AB55: -3.350175182 | AD55: 0 | AE55: 0
A56: 52.481 | B56: 0.052481 | C56: 1.001990895 | D56: 0.06304915405 | E56: 1.000000003 | F56: 7.913948329e-05 | G56: 1 | H56: 0 | I56: 38.00972431 | J56: 1.544484234 | K56: 1.000046227 | L56: 0.009615150918 | M56: 1.000000027 | N56: 0.0002341414173 | O56: 1.000000581 | P56: 0.001129078325 | Q56: 76.52546704 | R56: -91.62754347 | S56: 88.37245653 | U56: 1000000000 | V56: 2754.255361 | X56: 66.10973129 | Y56: -87.95493598 | AA56: 62.81151092 | AB56: -3.672607497 | AD56: 0 | AE56: 0
A57: 57.544 | B57: 0.057544 | C57: 1.002393079 | D57: 0.06911319212 | E57: 1.000000004 | F57: 8.677430736e-05 | G57: 1 | H57: 0 | I57: 41.67421027 | J57: 1.546798368 | K57: 1.000055577 | L57: 0.01054268775 | M57: 1.000000033 | N57: 0.0002567297435 | O57: 1.000000698 | P57: 0.001238003816 | Q57: 75.72260832 | R57: -92.06153116 | S57: 87.93846884 | U57: 1000000000 | V57: 3311.311936 | X57: 65.31035926 | Y57: -88.03567635 | AA57: 62.80802422 | AB57: -4.025854814 | AD57: 0 | AE57: 0
A58: 63.096 | B58: 0.063096 | C58: 1.002876443 | D58: 0.0757570499 | E58: 1.000000005 | F58: 9.514652604e-05 | G58: 1 | H58: 0 | I58: 45.69283688 | J58: 1.548909311 | K58: 1.000066818 | L58: 0.01155978801 | M58: 1.00000004 | N58: 0.0002814997189 | O58: 1.000000839 | P58: 0.001357449635 | Q58: 74.91890238 | R58: -92.51265202 | S58: 87.48734798 | U58: 1000000000 | V58: 3981.105216 | X58: 64.51084196 | Y58: -88.09976815 | AA58: 62.80383559 | AB58: -4.412883874 | AD58: 0 | AE58: 0
A59: 69.183 | B59: 0.069183 | C59: 1.003457204 | D59: 0.08303340715 | E59: 1.000000005 | F59: 0.0001043255057 | G59: 1 | H59: 0 | I59: 50.09889971 | J59: 1.550834483 | K59: 1.000080332 | L59: 0.01267487019 | M59: 1.000000048 | N59: 0.0003086565701 | O59: 1.000001009 | P59: 0.001488405414 | Q59: 74.11438841 | R59: -92.98450458 | S59: 87.01549542 | U59: 1000000000 | V59: 4786.287489 | X59: 63.71135795 | Y59: -88.14773884 | AA59: 62.79880562 | AB59: -4.836765731 | AD59: 0 | AE59: 0
A60: 75.858 | B60: 0.075858 | C60: 1.004155065 | D60: 0.0910025093 | E60: 1.000000007 | F60: 0.0001143911684 | G60: 1 | H60: 0 | I60: 54.93076273 | J60: 1.552590586 | K60: 1.00009658 | L60: 0.01389763221 | M60: 1.000000057 | N60: 0.0003384367539 | O60: 1.000001213 | P60: 0.00163201138 | Q60: 73.30874029 | R60: -93.48101625 | S60: 86.51898375 | U60: 1000000000 | V60: 5754.436164 | X60: 62.91175016 | Y60: -88.1800033 | AA60: 62.7927653 | AB60: -5.301012947 | AD60: 0 | AE60: 0
A61: 83.176 | B61: 0.083176 | C61: 1.004993321 | D61: 0.09972593607 | E61: 1.000000008 | F61: 0.0001254264523 | G61: 1 | H61: 0 | I61: 60.22823904 | J61: 1.554192057 | K61: 1.000116112 | L61: 0.01523813449 | M61: 1.000000069 | N61: 0.0003710856498 | O61: 1.000001458 | P61: 0.001789450782 | Q61: 72.50196914 | R61: -94.00604317 | S61: 85.99395683 | U61: 1000000000 | V61: 6918.246976 | X61: 62.11222897 | Y61: -88.19682635 | AA61: 62.78551534 | AB61: -5.809216823 | AD61: 0 | AE61: 0
A62: 91.201 | B62: 0.091201 | C62: 1.006000322 | D62: 0.1092746198 | E62: 1.000000009 | F62: 0.0001375278669 | G62: 1 | H62: 0 | I62: 66.03765806 | J62: 1.555652873 | K62: 1.000139596 | L62: 0.01670808102 | M62: 1.000000083 | N62: 0.0004068887905 | O62: 1.000001753 | P62: 0.001962100489 | Q62: 71.69364159 | R62: -94.56386944 | S62: 85.43613056 | U62: 1000000000 | V62: 8317.622401 | X62: 61.31260285 | Y62: -88.1983546 | AA62: 62.7768139 | AB62: -6.365514843 | AD62: 0 | AE62: 0
A63: 100 | B63: 0.1 | C63: 1.00720964 | D63: 0.1197212541 | E63: 1.000000011 | F63: 0.0001507964461 | G63: 1 | H63: 0 | I63: 72.40752211 | J63: 1.556985168 | K63: 1.00016783 | L63: 0.01831971862 | M63: 1.0000001 | N63: 0.0004461450926 | O63: 1.000002108 | P63: 0.002151401901 | Q63: 70.88360804 | R63: -95.15874749 | S63: 84.84125251 | U63: 1000000000 | V63: 10000 | X63: 60.51300745 | Y63: -88.18459866 | AA63: 62.76637576 | AB63: -6.974148833 | AD63: 0 | AE63: 0
A64: 109.65 | B64: 0.10965 | C64: 1.008661971 | D64: 0.1311480483 | E64: 1.000000014 | F64: 0.0001653483028 | G64: 1 | H64: 0 | I64: 79.3935739 | J64: 1.558200516 | K64: 1.00020178 | L64: 0.02008711688 | M64: 1.00000012 | N64: 0.0004891980875 | O64: 1.000002534 | P64: 0.002359011547 | Q64: 70.07135022 | R64: -95.79535258 | S64: 84.20464742 | U64: 1000000000 | V64: 12023.1225 | X64: 59.71326878 | Y64: -88.15543526 | AA64: 62.7538566 | AB64: -7.639917315 | AD64: 0 | AE64: 0
A65: 120.23 | B65: 0.12023 | C65: 1.010405152 | D65: 0.1436365093 | E65: 1.000000016 | F65: 0.0001813025665 | G65: 1 | H65: 0 | I65: 87.05300494 | J65: 1.55930882 | K65: 1.000242593 | L65: 0.02202470008 | M65: 1.000000144 | N65: 0.000536400229 | O65: 1.000003047 | P65: 0.002586628966 | Q65: 69.2567336 | R65: -96.47820638 | S65: 83.52179362 | U65: 1000000000 | V65: 14455.2529 | X65: 58.91365469 | Y65: -88.11062555 | AA65: 62.73885408 | AB65: -8.36758083 | AD65: 0 | AE65: 0
A66: 131.83 | B66: 0.13183 | C66: 1.012496823 | D66: 0.1572771699 | E66: 1.00000002 | F66: 0.0001987949537 | G66: 1 | H66: 0 | I66: 95.45097107 | J66: 1.560319552 | K66: 1.000291655 | L66: 0.02414889181 | M66: 1.000000173 | N66: 0.0005881530468 | O66: 1.000003663 | P66: 0.00283619033 | Q66: 68.43926004 | R66: -97.21222393 | S66: 82.78777607 | U66: 1000000000 | V66: 17379.1489 | X66: 58.11414879 | Y66: -88.04979425 | AA66: 62.72088641 | AB66: -9.162429682 | AD66: 0 | AE66: 0
A67: 144.54 | B67: 0.14454 | C67: 1.015003982 | D67: 0.1721554703 | E67: 1.000000024 | F67: 0.0002179611813 | G67: 1 | H67: 0 | I67: 104.6526288 | J67: 1.56124076 | K67: 1.000350594 | L67: 0.02647609578 | M67: 1.000000208 | N67: 0.0006448580703 | O67: 1.000004403 | P67: 0.003109631782 | Q67: 67.61888776 | R67: -98.00194793 | S67: 81.99805207 | U67: 1000000000 | V67: 20891.8116 | X67: 57.31526444 | Y67: -87.97248553 | AA67: 62.69939848 | AB67: -10.0294624 | AD67: 0 | AE67: 0
A68: 158.49 | B68: 0.15849 | C68: 1.018013002 | D68: 0.1883969426 | E68: 1.000000029 | F68: 0.0002389972846 | G68: 1 | H68: 0 | I68: 114.7520943 | J68: 1.562081779 | K68: 1.000421519 | L68: 0.02903001295 | M68: 1.00000025 | N68: 0.0007070952864 | O68: 1.000005294 | P68: 0.003409749985 | Q68: 66.79357436 | R68: -98.85393007 | S68: 81.14606993 | U68: 1000000000 | V68: 25119.0801 | X68: 56.51567032 | Y68: -87.87790962 | AA68: 62.67367921 | AB68: -10.97602044 | AD68: 0 | AE68: 0
A69: 173.78 | B69: 0.17378 | C69: 1.021617572 | D69: 0.206083431 | E69: 1.000000034 | F69: 0.0002620540599 | G69: 1 | H69: 0 | I69: 125.8217652 | J69: 1.562848493 | K69: 1.000506751 | L69: 0.03182881634 | M69: 1.000000301 | N69: 0.0007753108381 | O69: 1.000006365 | P69: 0.003738696133 | Q69: 65.96370099 | R69: -99.77229569 | S69: 80.22770431 | U69: 1000000000 | V69: 30199.4884 | X69: 55.71650678 | Y69: -87.76538794 | AA69: 62.64296937 | AB69: -12.00690775 | AD69: 0 | AE69: 0
A70: 190.55 | B70: 0.19055 | C70: 1.025935736 | D70: 0.2253322698 | E70: 1.000000041 | F70: 0.0002873426222 | G70: 1 | H70: 0 | I70: 137.9629988 | J70: 1.563547943 | K70: 1.000609243 | L70: 0.03489795563 | M70: 1.000000361 | N70: 0.0008501293256 | O70: 1.000007653 | P70: 0.004099481911 | Q70: 65.12780596 | R70: -100.7629091 | S70: 79.23709089 | U70: 1000000000 | V70: 36309.3025 | X70: 54.91725895 | Y70: -87.63390155 | AA70: 62.60632218 | AB70: -13.12900755 | AD70: 0 | AE70: 0
A71: 208.93 | B71: 0.20893 | C71: 1.031101146 | D71: 0.2462352819 | E71: 1.00000005 | F71: 0.0003150590067 | G71: 1 | H71: 0 | I71: 151.2699133 | J71: 1.564185579 | K71: 1.000732398 | L71: 0.03826098951 | M71: 1.000000434 | N71: 0.0009321307339 | O71: 1.0000092 | P71: 0.00449490378 | Q71: 64.28544008 | R71: -101.830176 | S71: 78.16982403 | U71: 1000000000 | V71: 43651.7449 | X71: 54.11852867 | Y71: -87.48244608 | AA71: 62.56268657 | AB71: -14.3477299 | AD71: 0 | AE71: 0
A72: 229.09 | B72: 0.22909 | C72: 1.037279323 | D72: 0.2689121944 | E72: 1.00000006 | F72: 0.0003454595671 | G72: 1 | H72: 0 | I72: 165.8655867 | J72: 1.564767312 | K72: 1.000880493 | L72: 0.0419487161 | M72: 1.000000522 | N72: 0.001022073505 | O72: 1.000011061 | P72: 0.004928618638 | Q72: 63.43474488 | R72: -102.9797686 | S72: 77.0202314 | U72: 1000000000 | V72: 52482.2281 | X72: 53.31973858 | Y72: -87.30963911 | AA72: 62.51078147 | AB72: -15.67012949 | AD72: 0 | AE72: 0
A73: 251.19 | B73: 0.25119 | C73: 1.044657102 | D73: 0.2934490856 | E73: 1.000000072 | F73: 0.0003787855776 | G73: 1 | H73: 0 | I73: 181.8658577 | J73: 1.565297741 | K73: 1.001058473 | L73: 0.04598999825 | M73: 1.000000628 | N73: 0.001120671463 | O73: 1.000013298 | P73: 0.005404068094 | Q73: 62.57481053 | R73: -104.2154529 | S73: 75.78454712 | U73: 1000000000 | V73: 63096.4161 | X73: 52.52138436 | Y73: -87.11413128 | AA73: 62.44920133 | AB73: -17.1013216 | AD73: 0 | AE73: 0
A74: 275.42 | B74: 0.27542 | C74: 1.05345785 | D74: 0.3199381393 | E74: 1.000000086 | F74: 0.000415323551 | G74: 1 | H74: 0 | I74: 199.4082852 | J74: 1.565781469 | K74: 1.001272388 | L74: 0.05041904777 | M74: 1.000000755 | N74: 0.001228772277 | O74: 1.000015988 | P74: 0.005925338974 | Q74: 61.70393355 | R74: -105.5410805 | S74: 74.45891953 | U74: 1000000000 | V74: 75856.1764 | X74: 51.72339866 | Y74: -86.89427473 | AA74: 62.37631005 | AB74: -18.64680574 | AD74: 0 | AE74: 0
A75: 302 | B75: 0.302 | C75: 1.063947214 | D75: 0.3484699821 | E75: 1.000000104 | F75: 0.0004554052391 | G75: 1 | H75: 0 | I75: 218.6521484 | J75: 1.566222836 | K75: 1.001529631 | L75: 0.05527537596 | M75: 1.000000908 | N75: 0.001347357454 | O75: 1.000019223 | P75: 0.006497163243 | Q75: 60.81986617 | R75: -106.9601371 | S75: 73.03986294 | U75: 1000000000 | V75: 91204 | X75: 50.92541759 | Y75: -86.64811055 | AA75: 62.29022374 | AB75: -20.31202652 | AD75: 0 | AE75: 0
A76: 331.13 | B76: 0.33113 | C76: 1.076416801 | D76: 0.3790727628 | E76: 1.000000125 | F76: 0.0004993322341 | G76: 1 | H76: 0 | I76: 239.7422467 | J76: 1.566625168 | K76: 1.001838666 | L76: 0.06059460056 | M76: 1.000001091 | N76: 0.001477319269 | O76: 1.00002311 | P76: 0.007123842261 | Q76: 59.92148656 | R76: -108.4726655 | S76: 71.52733446 | U76: 1000000000 | V76: 109647.0769 | X76: 50.12827928 | Y76: -86.37383961 | AA76: 62.18898244 | AB76: -22.09882593 | AD76: 0 | AE76: 0
A77: 363.08 | B77: 0.36308 | C77: =SQRT(1+(A77/pole1)^2) -> 1.091224265 | D77: =ATAN(A77/pole1) -> 0.4117998289 | E77: =SQRT(1+(A77/Zero1)^2) -> 1.00000015 | F77: =ATAN(A77/Zero1) -> 0.0005475116858 | G77: =IF(VIN_nom>Vout, 1, SQRT(1+(A77/z_RHP)^2)) -> 1 | H77: =IF(VIN_nom>Vout, 0, -ATAN(A77/z_RHP)) -> 0 | I77: =SQRT(1+(A77/Pole2)^2) -> 262.8740602 | J77: =ATAN(A77/Pole2) -> 1.566992215 | K77: =SQRT(1+(A77/Zero2)^2) -> 1.002210191 | L77: =ATAN(A77/Zero2) -> 0.06642480933 | M77: =SQRT(1+(A77/pole4)^2) -> 1.000001312 | N77: =ATAN(A77/pole4) -> 0.001619862293 | O77: =SQRT((1-(V77/pterm2))^2+(A77/pterm1)^2) -> 1.000027784 | P77: =IF((ATAN((A77/pterm1)/(1-A77^2/pterm2))>0),ATAN((A77/pterm1)/(1-A77^2/pterm2)),PI()+ATAN((A77/pterm1)/(1-A77^2/pterm2))) -> 0.007811182867 | Q77: =20*LOG10(((E77*K77*G77)/(C77*I77*O77*M77))*Adc) -> 59.00593059 | R77: =((F77+L77+H77)-(D77+J77+P77+N77))*radconv -> -110.0795605 | S77: =IF(R77>0,R77,R77+180) -> 69.9204395 | U77: 1000000000 | V77: 131827.0864 | X77: =20*LOG10((K77/(I77*M77))*AEA) -> 49.33143463 | Y77: =(L77-(J77+N77))*radconv -> -86.06899057 | AA77: =20*LOG10((E77*G77/(C77*O77))*Acs*Am) -> 62.07027112 | AB77: =(F77+H77-(D77+P77))*radconv -> -24.01056993 | AD77: 0 | AE77: =IF(AD77>0,S75,0) -> 0
A78: 398.11 | B78: =A78/1000 -> 0.39811 | C78: 1.108763846 | D78: 0.4466358122 | E78: 1.00000018 | F78: 0.0006003356638 | G78: 1 | H78: 0 | I78: 288.2358287 | J78: 1.567326939 | K78: 1.002656651 | L78: 0.07281184622 | M78: 1.000001577 | N78: 0.001776146478 | O78: 1.000033404 | P78: 0.00856477617 | Q78: 58.07124277 | R78: -111.7778489 | S78: 68.22215112 | U78: =IF(Q78<0,A78,1000000000) -> 1000000000 | V78: =A78^2 -> 158491.5721 | X78: 48.53529619 | Y78: -85.731173 | AA78: 61.93172174 | AB78: -26.04667588 | AD78: =SUM((Q79<0)*(Q78>0))*A78 -> 0 | AE78: 0
A79: 436.52 | B79: 0.43652 | C79: 1.129490783 | D79: 0.4835398858 | E79: 1.000000217 | F79: 0.0006582565562 | G79: 1 | H79: 0 | I79: 316.0447529 | J79: 1.567632213 | K79: 1.003193157 | L79: 0.07980830755 | M79: 1.000001896 | N79: 0.001947510225 | O79: 1.000040161 | P79: 0.009391073018 | Q79: 57.11494297 | R79: -113.5627629 | S79: 66.43723712 | U79: 1000000000 | V79: 190549.7104 | X79: 47.73992746 | Y79: -85.35761464 | AA79: 61.77079067 | AB79: -28.20514824 | AD79: 0 | AE79: 0
A80: 478.63 | B80: 0.47863 | C80: 1.153913894 | D80: 0.5224167939 | E80: 1.00000026 | F80: 0.0007217569099 | G80: 1 | H80: 0 | I80: 346.5325133 | J80: 1.567910591 | K80: 1.003837709 | L80: 0.08746971943 | M80: 1.00000228 | N80: 0.002135381153 | O80: 1.000048283 | P80: 0.01029695348 | Q80: 56.13472607 | R80: -115.426258 | S80: 64.57374201 | U80: 1000000000 | V80: 229086.6769 | X80: 46.94559495 | Y80: -84.94536217 | AA80: 61.58490629 | AB80: -30.48089582 | AD80: 0 | AE80: 0
A81: 524.81 | B81: 0.52481 | C81: 1.182613817 | D81: 0.5631370752 | E81: 1.000000313 | F81: 0.0007913946693 | G81: 1 | H81: 0 | I81: 379.966991 | J81: 1.568164516 | K81: 1.004612205 | L81: 0.09585976762 | M81: 1.000002741 | N81: 0.002341409937 | O81: 1.000058049 | P81: 0.01129037189 | Q81: 55.12790803 | R81: -117.3579261 | S81: 62.64207393 | U81: 1000000000 | V81: 275425.5361 | X81: 46.1522522 | Y81: -84.49100125 | AA81: 61.371431 | AB81: -32.86692482 | AD81: 0 | AE81: 0
A82: 575.44 | B82: 0.57544 | C82: 1.216218953 | D82: 0.605495154 | E82: 1.000000376 | F82: 0.000867742858 | G82: 1 | H82: 0 | I82: 416.6233073 | J82: 1.568396075 | K82: 1.005542466 | L82: 0.1050427247 | M82: 1.000003296 | N82: 0.002567291851 | O82: 1.000069789 | P82: 0.01237949591 | Q82: 54.09251091 | R82: -119.3429577 | S82: 60.65704228 | U82: 1000000000 | V82: 331131.1936 | X82: 45.36033286 | Y82: -83.99106598 | AA82: 61.12795322 | AB82: -35.35189174 | AD82: 0 | AE82: 0
A83: 630.96 | B83: 0.63096 | C83: 1.255434612 | D83: 0.6492509256 | E83: 1.000000453 | F83: 0.0009514649761 | G83: 1 | H83: 0 | I83: 456.8200239 | J83: 1.568607279 | K83: 1.006659853 | L83: 0.1150921445 | M83: 1.000003962 | N83: 0.002814989828 | O83: 1.000083905 | P83: 0.01357378152 | Q83: 53.02635181 | R83: -121.3641132 | S83: 58.6358868 | U83: 1000000000 | V83: 398110.5216 | X83: 44.56994232 | Y83: -83.44156981 | AA83: 60.85218466 | AB83: -37.92254339 | AD83: 0 | AE83: 0
A84: 691.83 | B84: 0.69183 | C84: 1.301013482 | D84: 0.694097178 | E84: 1.000000544 | F84: 0.001043254682 | G84: 1 | H84: 0 | I84: 500.8901828 | J84: 1.56879988 | K84: 1.008001465 | L84: 0.1260831018 | M84: 1.000004763 | N84: 0.003086555997 | O84: 1.000100874 | P84: 0.01488311185 | Q84: 51.92806483 | R84: -123.4002335 | S84: 56.59976654 | U84: 1000000000 | V84: 478628.7489 | X84: 43.7815559 | Y84: -82.83842914 | AA84: 60.54228409 | AB84: -40.56180432 | AD84: 0 | AE84: 0
A85: 758.58 | B85: 0.75858 | C85: 1.353787054 | D85: 0.7397032681 | E85: 1.000000654 | F85: 0.00114391119 | G85: 1 | H85: 0 | I85: 549.2175065 | J85: 1.568975554 | K85: 1.009612255 | L85: 0.1381005797 | M85: 1.000005727 | N85: 0.003384354747 | O85: 1.000121277 | P85: 0.01631887163 | Q85: 50.79634098 | R85: -125.4283429 | S85: 54.57165706 | U85: 1000000000 | V85: 575443.6164 | X85: 42.99537949 | Y85: -82.17700635 | AA85: 60.19673666 | AB85: -43.25133659 | AD85: 0 | AE85: 0
A86: 831.76 | B86: 0.83176 | C86: 1.414622731 | D86: 0.7856873635 | E86: 1.000000787 | F86: 0.001254263872 | G86: 1 | H86: 0 | I86: 602.2001975 | J86: 1.569135749 | K86: 1.011545189 | L86: 0.1512296015 | M86: 1.000006885 | N86: 0.003710839635 | O86: 1.000145803 | P86: 0.01789287041 | Q86: 49.63099663 | R86: -127.4225455 | S86: 52.57745455 | U86: 1000000000 | V86: 691824.6976 | X86: 42.2120525 | Y86: -81.45265352 | AA86: 59.8147193 | AB86: -45.96989193 | AD86: 0 | AE86: 0
A87: 912.01 | B87: 0.91201 | C87: 1.48447456 | D87: 0.8316746624 | E87: 1.000000946 | F87: 0.001375277811 | G87: 1 | H87: 0 | I87: 660.3016191 | J87: 1.569281867 | K87: 1.013864485 | L87: 0.1655667277 | M87: 1.000008278 | N87: 0.004068865675 | O87: 1.000175292 | P87: 0.01961884641 | Q87: 48.43195033 | R87: -129.3568097 | S87: 50.64319034 | U87: 1000000000 | V87: 831762.2401 | X87: 41.43190346 | Y87: -80.66008203 | AA87: 59.39582204 | AB87: -48.69672762 | AD87: 0 | AE87: 0
A88: 1000 | B88: 1 | C88: 1.564329232 | D88: 0.8772716406 | E88: 1.000001137 | F88: 0.001507963329 | G88: 1 | H88: 0 | I88: 724.0068548 | J88: 1.569415124 | K88: 1.016645818 | L88: 0.1812078828 | M88: 1.000009952 | N88: 0.004461421622 | O88: 1.000210744 | P88: 0.0215111737 | Q88: 47.20031059 | R88: -131.2040988 | S88: 48.79590119 | U88: 1000000000 | V88: 1000000 | X88: 40.65567797 | Y88: -79.79403673 | AA88: 58.94040779 | AB88: -51.41006208 | AD88: 0 | AE88: 0
A89: 1096.5 | B89: 1.0965 | C89: 1.655263499 | D89: 0.9221183691 | E89: 1.000001367 | F89: 0.001653481537 | G89: 1 | H89: 0 | I89: 793.8733889 | J89: 1.56953668 | K89: 1.019980432 | L89: 0.1982590545 | M89: 1.000011966 | N89: 0.004891942242 | O89: 1.000253375 | P89: 0.02358636459 | Q89: 45.93741726 | R89: -132.9388607 | S89: 47.06113935 | U89: 1000000000 | V89: 1202312.25 | X89: 39.88393239 | Y89: -78.8487082 | AA89: 58.44926004 | AB89: -54.09015245 | AD89: 0 | AE89: 0
A90: 1202.3 | B90: 1.2023 | C90: 1.758367752 | D90: 0.9658605555 | E90: 1.000001644 | F90: 0.001813023698 | G90: 1 | H90: 0 | I90: 870.4731857 | J90: 1.569647526 | K90: 1.02397482 | L90: 0.2168198623 | M90: 1.000014386 | N90: 0.00536395136 | O90: 1.000304622 | P90: 0.0258613452 | Q90: 44.64596788 | R90: -134.5362482 | S90: 45.46375177 | U90: 1000000000 | V90: 1445525.29 | X90: 39.11777704 | Y90: -77.81864741 | AA90: 57.923966 | AB90: -56.71760082 | AD90: 0 | AE90: =IF(AD90>0,S90,0) -> 0
A91: 1318.3 | B91: 1.3183 | C91: 1.874828453 | D91: 1.008202391 | E91: 1.000001976 | F91: 0.001987946945 | G91: 1 | H91: 0 | I91: 954.4578502 | J91: 1.569748611 | K91: 1.028756326 | L91: 0.2369966976 | M91: 1.000017296 | N91: 0.005881463329 | O91: 1.000366227 | P91: 0.02835538565 | Q91: 43.32881175 | R91: -135.9745279 | S91: 44.02547214 | U91: 1000000000 | V91: 1737914.89 | X91: 38.35818946 | Y91: -76.69804291 | AA91: 57.36639746 | AB91: -59.27648495 | AD91: 0 | AE91: 0
A92: 1445.4 | B92: 1.4454 | C92: 2.005818601 | D92: 1.048871556 | E92: 1.000002375 | F92: 0.002179608396 | G92: 1 | H92: 0 | I92: 1046.478988 | J92: 1.569840741 | K92: 1.034471428 | L92: 0.2588801875 | M92: 1.000020792 | N92: 0.006448492213 | O92: 1.000440232 | P92: 0.03108772821 | Q92: 41.99018441 | R92: -137.2342051 | S92: 42.76579494 | U92: 1000000000 | V92: 2089181.16 | X92: 37.60680356 | Y92: -75.48197832 | AA92: 56.77915601 | AB92: -61.75222674 | AD92: 0 | AE92: 0
A93: 1584.9 | B93: 1.5849 | C93: 2.152915989 | D93: 1.087741866 | E93: 1.000002856 | F93: 0.002389968341 | G93: 1 | H93: 0 | I93: 1147.477805 | J93: 1.56992485 | K93: 1.041307608 | L93: 0.2826094812 | M93: 1.000024999 | N93: 0.0070708362 | O93: 1.000529286 | P93: 0.03408617667 | Q93: 40.63160553 | R93: -138.3019439 | S93: 41.69805614 | U93: 1000000000 | V93: 2511908.01 | X93: 36.86370222 | Y93: -74.1628667 | AA93: 56.16367848 | AB93: -64.13907716 | AD93: 0 | AE93: 0
A94: 1737.8 | B94: 1.7378 | C94: 2.317379192 | D94: 1.124617109 | E94: 1.000003434 | F94: 0.002620534661 | G94: 1 | H94: 0 | I94: 1258.17831 | J94: 1.570001527 | K94: 1.049464538 | L94: 0.3082469792 | M94: 1.000030055 | N94: 0.007752954591 | O94: 1.000636302 | P94: 0.03737203662 | Q94: 39.25905378 | R94: -139.1643504 | S94: 40.83564959 | U94: 1000000000 | V94: 3019948.84 | X94: 36.13147483 | Y94: -72.73742202 | AA94: 55.52335411 | AB94: -66.42692839 | AD94: 0 | AE94: 0
A95: 1905.5 | B95: 1.9055 | C95: 2.500882519 | D95: 1.159433486 | E95: 1.000004128 | F95: 0.002873418393 | G95: 1 | H95: 0 | I95: 1379.594108 | J95: 1.570071476 | K95: 1.059191049 | L95: 0.3358917949 | M95: 1.000036135 | N95: 0.008501090511 | O95: 1.000764987 | P95: 0.04097514633 | Q95: 37.87591423 | R95: -139.8140772 | S95: 40.18592276 | U95: 1000000000 | V95: 3630930.25 | X95: 35.41136996 | Y95: -71.20036357 | AA95: 54.86031943 | AB95: -68.61371367 | AD95: 0 | AE95: 0
A96: 2089.3 | B96: 2.0893 | C96: 2.704987479 | D96: 1.192123679 | E96: 1.000004963 | F96: 0.003150579747 | G96: 1 | H96: 0 | I96: 1512.666409 | J96: 1.570135242 | K96: 1.070762961 | L96: 0.3655885562 | M96: 1.000043442 | N96: 0.009321040087 | O96: 1.000919611 | P96: 0.04492311033 | Q96: 36.48762084 | R96: -140.2465429 | S96: 39.75345709 | U96: 1000000000 | V96: 4365174.49 | X96: 34.70585061 | Y96: -69.54949769 | AA96: 54.17754539 | AB96: -70.69704523 | AD96: 0 | AE96: 0
A97: 2290.9 | B97: 2.2909 | C97: 2.931695652 | D97: 1.222710001 | E97: 1.000005967 | F97: 0.003454582066 | G97: 1 | H97: 0 | I97: 1658.626023 | J97: 1.570193418 | K97: 1.084516537 | L97: 0.3974013385 | M97: 1.00005223 | N97: 0.01022038273 | O97: 1.001105542 | P97: 0.04925201373 | Q97: 35.09761796 | R97: -140.4617436 | S97: 39.53825644 | U97: 1000000000 | V97: 5248222.81 | X97: 34.01652482 | Y97: -67.78162128 | AA97: 53.4768683 | AB97: -72.68012228 | AD97: 0 | AE97: 0
A98: 2511.9 | B98: 2.5119 | C98: 3.182899006 | D98: 1.251204595 | E98: 1.000007174 | F98: 0.003787837842 | G98: 1 | H98: 0 | I98: 1818.631359 | J98: 1.570246463 | K98: 1.100820871 | L98: 0.4313240161 | M98: 1.000062793 | N98: 0.01120625021 | O98: 1.001328983 | P98: 0.05399564596 | Q98: 33.71120427 | R98: -140.4629585 | S98: 39.5370415 | U98: 1000000000 | V98: 6309641.61 | X98: 33.34611859 | Y98: -65.8975203 | AA98: 52.76086084 | AB98: -74.5654382 | AD98: 0 | AE98: 0
A99: 2754.2 | B99: 2.7542 | C99: 3.460829973 | D99: 1.277668514 | E99: 1.000008625 | F99: 0.004153211869 | G99: 1 | H99: 0 | I99: 1994.058028 | J99: 1.570294837 | K99: 1.120106901 | L99: 0.4673352949 | M99: 1.000075491 | N99: 0.01228711058 | O99: 1.001597526 | P99: 0.05919404414 | Q99: 32.33262339 | R99: -140.2575473 | S99: 39.74245269 | U99: 1000000000 | V99: 7585617.64 | X99: 32.69700233 | Y99: -63.89892638 | AA99: 52.03139622 | AB99: -76.35862093 | AD99: 0 | AE99: 0
A100: 3020 | B100: 3.02 | C100: 3.768072116 | D100: 1.302190305 | E100: 1.00001037 | F100: 0.004554021223 | G100: 1 | H100: 0 | I100: 2186.498845 | J100: 1.570338975 | K100: 1.142873637 | L100: 0.5053865936 | M100: 1.000090765 | N100: 0.01347276746 | O100: 1.001920444 | P100: 0.06489342399 | Q100: 30.96547277 | R100: -139.8564114 | S100: 40.14358858 | U100: 1000000000 | V100: 9120400 | X100: 32.07141531 | Y100: -61.7892096 | AA100: 51.28983262 | AB100: -78.06720183 | AD100: 0 | AE100: 0
A101: 3311.3 | B101: 3.3113 | C101: 4.106983441 | D101: 1.324836155 | E101: 1.000012467 | F101: 0.004993281257 | G101: 1 | H101: 0 | I101: 2397.40182 | J101: 1.570379209 | K101: 1.169645757 | L101: 0.5453231633 | M101: 1.000109118 | N101: 0.01477212883 | O101: 1.002308349 | P101: 0.07113537807 | Q101: 29.61518561 | R101: -139.2749492 | S101: 40.72505085 | U101: 1000000000 | V101: 10964707.69 | X101: 31.47254705 | Y101: -59.57776586 | AA101: 50.53841373 | AB101: -79.69718329 | AD101: 0 | AE101: 0
A102: 3630.8 | B102: 3.6308 | C102: 4.480740977 | D102: 1.345723479 | E102: 1.000014988 | F102: 0.005475062697 | G102: 1 | H102: 0 | I102: 2628.721771 | J102: 1.570415914 | K102: 1.201052309 | L102: 0.5870050857 | M102: 1.000131189 | N102: 0.0161972205 | O102: 1.002774654 | P102: 0.07797606237 | Q102: 28.2845137 | R102: -138.5315995 | S102: 41.46840045 | U102: 1000000000 | V102: 13182708.64 | X102: 30.90243099 | Y102: -57.27332241 | AA102: 49.77785788 | AB102: -81.25827714 | AD102: 0 | AE102: 0
A103: 3981.1 | B103: 3.9811 | C103: 4.892415213 | D103: 1.364947619 | E103: 1.00001802 | F103: 0.00600328524 | G103: 1 | H103: 0 | I103: 2882.341114 | J103: 1.570449387 | K103: 1.237754383 | L103: 0.6301913995 | M103: 1.000157723 | N103: 0.01775961607 | O103: 1.003334956 | P103: 0.08546890688 | Q103: 26.97742425 | R103: -137.6491481 | S103: 42.35085194 | U103: 1000000000 | V103: 15849157.21 | X103: 30.36363647 | Y103: -54.89036542 | AA103: 49.00956294 | AB103: -82.75878263 | AD103: 0 | AE103: 0
A104: 4365.2 | B104: 4.3652 | C104: 5.345553571 | D104: 1.382616297 | E104: 1.000021665 | F104: 0.006582471441 | G104: 1 | H104: 0 | I104: 3160.431866 | J104: 1.570479914 | K104: 1.28048857 | L104: 0.6746078984 | M104: 1.000189622 | N104: 0.01947266526 | O104: 1.004008184 | P104: 0.09367514324 | Q104: 25.69676867 | R104: -136.6535082 | S104: 43.34649177 | U104: 1000000000 | V104: 19054971.04 | X104: 29.858163 | Y104: -52.44538709 | AA104: 48.23438083 | AB104: -84.20812114 | AD104: 0 | AE104: 0
A105: 4786.3 | B105: 4.7863 | C105: 5.843947929 | D105: 1.398832846 | E105: 1.000026046 | F105: 0.007217445027 | G105: 1 | H105: 0 | I105: 3465.310848 | J105: 1.570507752 | K105: 1.330043097 | L105: 0.7199247642 | M105: 1.000227967 | N105: 0.02135059918 | O105: 1.004816878 | P105: 0.1026592824 | Q105: 24.44509216 | R105: -135.5737475 | S105: 44.4262525 | U105: 1000000000 | V105: 22908667.69 | X105: 29.38771483 | Y105: -49.95811463 | AA105: 47.45315249 | AB105: -85.61563287 | AD105: 0 | AE105: 0
A106: 5248.1 | B106: 5.2481 | C106: 6.391990608 | D106: 1.413705231 | E106: 1.000031315 | F106: 0.007913783133 | G106: 1 | H106: 0 | I106: 3799.656882 | J106: 1.570533145 | K106: 1.387288094 | L106: 0.7657960865 | M106: 1.000274073 | N106: 0.02340986485 | O106: 1.005788442 | P106: 0.1124951989 | Q106: 23.22372262 | R106: -134.4407407 | S106: 45.55925935 | U106: 1000000000 | V106: 27542553.61 | X106: 28.95328973 | Y106: -47.44932359 | AA106: 46.66620806 | AB106: -86.99141706 | AD106: 0 | AE106: 0
A107: 5370.3 | B107: 5.3703 | C107: 6.537223336 | D107: 1.417223231 | E107: 1.00003279 | F107: 0.008098044581 | G107: 1 | H107: 0 | I107: 3888.130432 | J107: 1.570539134 | K107: 1.40289913 | L107: 0.7773002506 | M107: 1.000286984 | N107: 0.02395474846 | O107: 1.00606033 | P107: 0.1150948555 | Q107: 22.9233986 | R107: -134.1531217 | S107: 45.84687825 | U107: 1000000000 | V107: 28840122.09 | X107: 28.85044446 | Y107: -46.82174619 | AA107: 46.46872931 | AB107: -87.33137555 | AD107: 0 | AE107: 0
A108: 5432.85 | B108: 5.43285 | C108: 6.611593268 | D108: 1.418964161 | E108: 1.000033558 | F108: 0.008192361501 | G108: 1 | H108: 0 | I108: 3933.417017 | J108: 1.570542095 | K108: 1.410960522 | L108: 0.7830899474 | M108: 1.000293707 | N108: 0.02423365026 | O108: 1.006201893 | P108: 0.1164250101 | Q108: 22.77305366 | R108: -134.0081023 | S108: 45.99189768 | U108: 1000000000 | V108: 29515859.12 | X108: 28.79957108 | Y108: -46.50617056 | AA108: 46.36925774 | AB108: -87.50193177 | AD108: 0 | AE108: 0
A109: 5495.4 | B109: 5.4954 | C109: 6.685982793 | D109: 1.420666356 | E109: 1.000034336 | F109: 0.008286678275 | G109: 1 | H109: 0 | I109: 3978.703601 | J109: 1.570544989 | K109: 1.419068673 | L109: 0.7888136729 | M109: 1.000300508 | N109: 0.02451254829 | O109: 1.006345075 | P109: 0.1177548071 | Q109: 22.62492203 | R109: -133.8646189 | S109: 46.13538112 | U109: 1000000000 | V109: 30199421.16 | X109: 28.74985113 | Y109: -46.19437072 | AA109: 46.27084607 | AB109: -87.67024815 | AD109: 0 | AE109: 0
A110: 5559.4 | B110: 5.5594 | C110: 6.762116379 | D110: 1.422369241 | E110: 1.00003514 | F110: 0.008383181296 | G110: 1 | H110: 0 | I110: 4025.039994 | J110: 1.570547882 | K110: 1.427412347 | L110: 0.7946025846 | M110: 1.000307547 | N110: 0.02479790763 | O110: 1.006493251 | P110: 0.1191150563 | Q110: 22.4755898 | R110: -133.7194298 | S110: 46.28057019 | U110: 1000000000 | V110: 30906928.36 | X110: 28.70013847 | Y110: -45.87920618 | AA110: 46.17122649 | AB110: -87.84022363 | AD110: 0 | AE110: 0
A111: 5623.4 | B111: 5.6234 | C111: 6.838269138 | D111: 1.424034204 | E111: 1.000035954 | F111: 0.008479684162 | G111: 1 | H111: 0 | I111: 4071.376387 | J111: 1.57055071 | K111: 1.435803299 | L111: 0.8003240244 | M111: 1.000314668 | N111: 0.02508326293 | O111: 1.006643122 | P111: 0.1204749228 | Q111: 22.32845969 | R111: -133.5759079 | S111: 46.42409214 | U111: 1000000000 | V111: 31622627.56 | X111: 28.65156553 | Y111: -45.56790349 | AA111: 46.07266932 | AB111: -88.00800437 | AD111: 0 | AE111: 0
A112: 5688.9 | B112: 5.6889 | C112: 6.916225919 | D112: 1.425700221 | E112: 1.000036796 | F112: 0.00857844865 | G112: 1 | H112: 0 | I112: 4118.798789 | J112: 1.570553538 | K112: 1.444439008 | L112: 0.8061105377 | M112: 1.000322039 | N112: 0.02537530202 | O112: 1.006798257 | P112: 0.1218662605 | Q112: 22.18010364 | R112: -133.4307744 | S112: 46.56922559 | U112: 1000000000 | V112: 32363583.21 | X112: 28.60300029 | Y112: -45.25325533 | AA112: 45.97287852 | AB112: -88.17751908 | AD112: 0 | AE112: 0
A113: 5754.4 | B113: 5.7544 | C113: 6.994201467 | D113: 1.427329094 | E113: 1.000037648 | F113: 0.00867721297 | G113: 1 | H113: 0 | I113: 4166.221192 | J113: 1.570556301 | K113: 1.453122505 | L113: 0.811828083 | M113: 1.000329497 | N113: 0.02566733678 | O113: 1.006955166 | P113: 0.1232571884 | Q113: 22.03393884 | R113: -133.287437 | S113: 46.71256301 | U113: 1000000000 | V113: 33113119.36 | X113: 28.55556101 | Y113: -44.94255481 | AA113: 45.874153 | AB113: -88.34488217 | AD113: 0 | AE113: 0
A114: 5821.4 | B114: 5.8214 | C114: 7.073981487 | D114: 1.428958113 | E114: 1.00003853 | F114: 0.008778238894 | G114: 1 | H114: 0 | I114: 4214.729603 | J114: 1.570559064 | K114: 1.462053418 | L114: 0.8176061043 | M114: 1.000337213 | N114: 0.02596605482 | O114: 1.0071175 | P114: 0.124679541 | Q114: 21.88663606 | R114: -133.1426967 | S114: 46.85730334 | U114: 1000000000 | V114: 33888697.96 | X114: 28.50816636 | Y114: -44.62877214 | AA114: 45.77424487 | AB114: -88.51392452 | AD114: 0 | AE114: 0
A115: 5888.4 | B115: 5.8884 | C115: 7.153779861 | D115: 1.430550793 | E115: 1.000039422 | F115: 0.008879264639 | G115: 1 | H115: 0 | I115: 4263.238015 | J115: 1.570561763 | K115: 1.471032548 | L115: 0.8233137766 | M115: 1.000345018 | N115: 0.02626476823 | O115: 1.007281687 | P115: 0.1261014555 | Q115: 21.74151065 | R115: -132.999876 | S115: 47.00012395 | U115: 1000000000 | V115: 34673254.56 | X115: 28.46188217 | Y115: -44.31901631 | AA115: 45.67540365 | AB115: -88.68085974 | AD115: 0 | AE115: 0
A116: 5957 | B116: 5.957 | C116: 7.235502249 | D116: 1.432145105 | E116: 1.000040346 | F116: 0.00898270275 | G116: 1 | H116: 0 | I116: 4312.904836 | J116: 1.570564465 | K116: 1.480275147 | L116: 0.8290858146 | M116: 1.000353103 | N116: 0.02657061024 | O116: 1.007451714 | P116: 0.1275568671 | Q116: 21.59511762 | R116: -132.8556506 | S116: 47.14434944 | U116: 1000000000 | V116: 35485849 | X116: 28.41560937 | Y116: -44.00598111 | AA116: 45.57528341 | AB116: -88.84966944 | AD116: 0 | AE116: 0
A117: 6025.6 | B117: 6.0256 | C117: 7.317242617 | D117: 1.433703801 | E117: 1.00004128 | F117: 0.00908614067 | G117: 1 | H117: 0 | I117: 4362.571658 | J117: 1.570567104 | K117: 1.489566451 | L117: 0.8347860334 | M117: 1.00036128 | N117: 0.02687644727 | O117: 1.007623681 | P117: 0.1290118094 | Q117: 21.4508915 | R117: -132.7134687 | S117: 47.28653133 | U117: 1000000000 | V117: 36307855.36 | X117: 28.3704331 | Y117: -43.69705705 | AA117: 45.47623357 | AB117: -89.01641162 | AD117: 0 | AE117: 0
A118: 6095.8 | B118: 6.0958 | C118: 7.40090746 | D118: 1.435263202 | E118: 1.000042248 | F118: 0.009191990934 | G118: 1 | H118: 0 | I118: 4413.396889 | J118: 1.570569744 | K118: 1.499123939 | L118: 0.8405458609 | M118: 1.000369746 | N118: 0.02718941233 | O118: 1.007801667 | P118: 0.1305001949 | Q118: 21.30548681 | R118: -132.5700983 | S118: 47.42990174 | U118: 1000000000 | V118: 37158777.64 | X118: 28.32530451 | Y118: -43.38512606 | AA118: 45.37595746 | AB118: -89.18497219 | AD118: 0 | AE118: 0
A119: 6166 | B119: 6.166 | C119: 7.484589897 | D119: 1.436787738 | E119: 1.000043226 | F119: 0.009297840993 | G119: 1 | H119: 0 | I119: 4464.222121 | J119: 1.570572324 | K119: 1.508730529 | L119: 0.8462325256 | M119: 1.000378309 | N119: 0.02750237205 | O119: 1.007981683 | P119: 0.131988078 | Q119: 21.16223547 | R119: -132.4288895 | S119: 47.57111046 | U119: 1000000000 | V119: 38019556 | X119: 28.28125673 | Y119: -43.07738325 | AA119: 45.2767539 | AB119: -89.35150629 | AD119: 0 | AE119: 0
A120: 6237.8 | B120: 6.2378 | C120: 7.570197219 | D120: 1.43831215 | E120: 1.000044239 | F120: 0.009406103373 | G120: 1 | H120: 0 | I120: 4516.205762 | J120: 1.570574902 | K120: 1.518605897 | L120: 0.8519741855 | M120: 1.000387169 | N120: 0.02782245919 | O120: 1.008167901 | P120: 0.1335093477 | Q120: 21.0178887 | R120: -132.2867058 | S120: 47.71329419 | U120: 1000000000 | V120: 38910148.84 | X120: 28.23728937 | Y120: -42.76689775 | AA120: 45.17637449 | AB120: -89.51980806 | AD120: 0 | AE120: 0
A121: 6309.6 | B121: 6.3096 | C121: 7.655821739 | D121: 1.439802468 | E121: 1.000045263 | F121: 0.009514365532 | G121: 1 | H121: 0 | I121: 4568.189403 | J121: 1.570577422 | K121: 1.528530681 | L121: 0.8576414686 | M121: 1.000396132 | N121: 0.02814254062 | O121: 1.00835624 | P121: 0.1350300805 | Q121: 20.87567885 | R121: -132.1467956 | S121: 47.85320441 | U121: 1000000000 | V121: 39811052.16 | X121: 28.19438549 | Y121: -42.46067002 | AA121: 45.07706853 | AB121: -89.68612556 | AD121: 0 | AE121: 0
A122: 6383.05 | B122: 6.38305 | C122: 7.743431155 | D122: 1.441292926 | E122: 1.000046323 | F122: 0.009625115379 | G122: 1 | H122: 0 | I122: 4621.367655 | J122: 1.570579941 | K122: 1.538733676 | L122: 0.8633631536 | M122: 1.000405407 | N122: 0.02846997172 | O122: 1.0085511 | P122: 0.1365851988 | Q122: 20.7323542 | R122: -132.0060251 | S122: 47.99397487 | U122: 1000000000 | V122: 40743327.3 | X122: 28.15156256 | Y122: -42.15174637 | AA122: 44.97656681 | AB122: -89.85427876 | AD122: 0 | AE122: 0
A123: 6456.5 | B123: 6.4565 | C123: 7.831057387 | D123: 1.442750033 | E123: 1.000047395 | F123: 0.00973586499 | G123: 1 | H123: 0 | I123: 4674.545906 | J123: 1.570582402 | K123: 1.548986381 | L123: 0.8690092779 | M123: 1.000414788 | N123: 0.02879739671 | O123: 1.008748178 | P123: 0.138139743 | Q123: 20.59115028 | R123: -131.8676365 | S123: 48.13236347 | U123: 1000000000 | V123: 41686392.25 | X123: 28.10978575 | Y123: -41.84714839 | AA123: 44.8771397 | AB123: -90.02048814 | AD123: 0 | AE123: 0
A124: 6531.7 | B124: 6.5317 | C124: 7.920788219 | D124: 1.444208452 | E124: 1.000048506 | F124: 0.009849253045 | G124: 1 | H124: 0 | I124: 4728.991169 | J124: 1.570584865 | K124: 1.559533841 | L124: 0.8747128269 | M124: 1.000424505 | N124: 0.02913261644 | O124: 1.008952248 | P124: 0.1397307241 | Q124: 20.44872129 | R124: -131.7284161 | S124: 48.27158386 | U124: 1000000000 | V124: 42663104.89 | X124: 28.06806398 | Y124: -41.53970689 | AA124: 44.77643247 | AB124: -90.18870925 | AD124: 0 | AE124: 0
A125: 6606.9 | B125: 6.6069 | C125: 8.01053552 | D125: 1.445634195 | E125: 1.000049629 | F125: 0.009962640846 | G125: 1 | H125: 0 | I125: 4783.436431 | J125: 1.570587272 | K125: 1.570131351 | L125: 0.8803395654 | M125: 1.000434334 | N125: 0.02946782962 | O125: 1.009158639 | P125: 0.1413210904 | Q125: 20.3083997 | R125: -131.5916857 | S125: 48.40831434 | U125: 1000000000 | V125: 43651127.61 | X125: 28.02737221 | Y125: -41.23666273 | AA125: 44.67680265 | AB125: -90.35502293 | AD125: 0 | AE125: 0
A126: 6683.85 | B126: 6.68385 | C126: 8.102387834 | D126: 1.447060417 | E126: 1.000050792 | F126: 0.01007866706 | G126: 1 | H126: 0 | I126: 4839.148704 | J126: 1.570589679 | K126: 1.581026239 | L126: 0.8860189762 | M126: 1.000444508 | N126: 0.02981083679 | O126: 1.009372234 | P126: 0.1429478231 | Q126: 20.16693631 | R126: -131.4543438 | S126: 48.5456562 | U126: 1000000000 | V126: 44673850.82 | X126: 27.98676651 | Y126: -40.93104722 | AA126: 44.57594497 | AB126: -90.52329658 | AD126: 0 | AE126: 0
A127: 6760.8 | B127: 6.7608 | C127: 8.19425626 | D127: 1.448454663 | E127: 1.000051968 | F127: 0.010194693 | G127: 1 | H127: 0 | I127: 4894.860977 | J127: 1.570592031 | K127: 1.591971425 | L127: 0.891620471 | M127: 1.000454799 | N127: 0.03015383693 | O127: 1.009588257 | P127: 0.1445738982 | Q127: 20.0275641 | R127: -131.3195929 | S127: 48.68040714 | U127: 1000000000 | V127: 45708416.64 | X127: 27.94717309 | Y127: -40.62989243 | AA127: 44.47616618 | AB127: -90.68970043 | AD127: 0 | AE127: 0
A128: 6839.55 | B128: 6.83955 | C128: 8.288289777 | D128: 1.449849519 | E128: 1.000053186 | F128: 0.01031343272 | G128: 1 | H128: 0 | I128: 4951.876462 | J128: 1.570594383 | K128: 1.60322364 | L128: 0.897273626 | M128: 1.000465453 | N128: 0.03050485313 | O128: 1.009811846 | P128: 0.1462373218 | Q128: 19.88703907 | R128: -131.1843607 | S128: 48.81563931 | U128: 1000000000 | V128: 46779444.2 | X128: 27.9076686 | Y128: -40.32623703 | AA128: 44.37514564 | AB128: -90.85812366 | AD128: 0 | AE128: 0
A129: 6918.3 | B129: 6.9183 | C129: 8.382339058 | D129: 1.451213078 | E129: 1.000054418 | F129: 0.01043217214 | G129: 1 | H129: 0 | I129: 5008.891946 | J129: 1.570596682 | K129: 1.614526377 | L129: 0.9028478054 | M129: 1.000476231 | N129: 0.0308558618 | O129: 1.010037974 | P129: 0.1479000417 | Q129: 19.74858894 | R129: -131.0518165 | S129: 48.94818354 | U129: 1000000000 | V129: 47862874.89 | X129: 27.86915853 | Y129: -40.02710309 | AA129: 44.27520558 | AB129: -91.02471336 | AD129: 0 | AE129: 0
A130: 6998.9 | B130: 6.9989 | C130: 8.478613527 | D130: 1.452577341 | E130: 1.000055693 | F130: 0.0105537007 | G130: 1 | H130: 0 | I130: 5067.246842 | J130: 1.570598981 | K130: 1.626145854 | L130: 0.9084725147 | M130: 1.000487389 | N130: 0.03121510852 | O130: 1.010272042 | P130: 0.1496010859 | Q130: 19.60897725 | R130: -130.9189255 | S130: 49.08107447 | U130: 1000000000 | V130: 48984601.21 | X130: 27.83074073 | Y130: -39.72554604 | AA130: 44.17401169 | AB130: -91.19337949 | AD130: 0 | AE130: 0
A131: 7079.5 | B131: 7.0795 | C131: 8.574903423 | D131: 1.453910968 | E131: 1.000056983 | F131: 0.01067522894 | G131: 1 | H131: 0 | I131: 5125.601737 | J131: 1.570601228 | K131: 1.637816047 | L131: 0.91401724 | M131: 1.000498677 | N131: 0.03157434717 | O131: 1.010508766 | P131: 0.1513013773 | Q131: 19.47142405 | R131: -130.7888154 | S131: 49.2111846 | U131: 1000000000 | V131: 50119320.25 | X131: 27.7932993 | Y131: -39.42856827 | AA131: 44.07389992 | AB131: -91.36024713 | AD131: 0 | AE131: 0
A132: 7161.95 | B132: 7.16195 | C132: 8.673418872 | D132: 1.455244564 | E132: 1.000058318 | F132: 0.01079954628 | G132: 1 | H132: 0 | I132: 5185.296044 | J132: 1.570603474 | K132: 1.649805457 | L132: 0.9196078919 | M132: 1.000510357 | N132: 0.03194182294 | O132: 1.010753671 | P132: 0.1530399078 | Q132: 19.33278606 | R132: -130.6585752 | S132: 49.34142482 | U132: 1000000000 | V132: 51293527.8 | X132: 27.75597621 | Y132: -39.12943101 | AA132: 43.97258501 | AB132: -91.52914417 | AD132: 0 | AE132: 0
A133: 7244.4 | B133: 7.2444 | C133: 8.7719494 | D133: 1.456548204 | E133: 1.000059668 | F133: 0.01092386328 | G133: 1 | H133: 0 | I133: 5244.990352 | J133: 1.570605669 | K133: 1.661845688 | L133: 0.9251177043 | M133: 1.000522172 | N133: 0.03230929009 | O133: 1.011001352 | P133: 0.1547776336 | Q133: 19.19618752 | R133: -130.5312008 | S133: 49.46879918 | U133: 1000000000 | V133: 52481331.36 | X133: 27.71961007 | Y133: -38.83492209 | AA133: 43.87235262 | AB133: -91.69627873 | AD133: 0 | AE133: 0
A134: 7328.75 | B134: 7.32875 | C134: 8.872765572 | D134: 1.45785192 | E134: 1.000061066 | F134: 0.01105104473 | G134: 1 | H134: 0 | I134: 5306.06027 | J134: 1.570607863 | K134: 1.674214824 | L134: 0.9306723048 | M134: 1.0005344 | N134: 0.03268521621 | O134: 1.011257611 | P134: 0.1565545624 | Q134: 19.05849446 | R134: -130.4038314 | S134: 49.59616861 | U134: 1000000000 | V134: 53710576.56 | X134: 27.68336399 | Y134: -38.53833163 | AA134: 43.77090563 | AB134: -91.86549976 | AD134: 0 | AE134: 0
A135: 7413.1 | B135: 7.4131 | C135: 8.973596486 | D135: 1.459126341 | E135: 1.00006248 | F135: 0.01117822582 | G135: 1 | H135: 0 | I135: 5367.130189 | J135: 1.570610007 | K135: 1.686634858 | L135: 0.9361452663 | M135: 1.000546768 | N135: 0.03306113309 | O135: 1.01151677 | P135: 0.1583306312 | Q135: 18.92282182 | R135: -130.2794084 | S135: 49.72059165 | U135: 1000000000 | V135: 54954051.61 | X135: 27.64805536 | Y135: -38.24641536 | AA135: 43.67054163 | AB135: -92.03299299 | AD135: 0 | AE135: 0
A136: 7499.45 | B136: 7.49945 | C136: 9.076832933 | D136: 1.460401648 | E136: 1.000063944 | F136: 0.01130842209 | G136: 1 | H136: 0 | I136: 5429.648121 | J136: 1.570612153 | K136: 1.699400936 | L136: 0.9416649604 | M136: 1.000559577 | N136: 0.03344595355 | O136: 1.011785078 | P136: 0.1601479115 | Q136: 18.78596812 | R136: -130.1550572 | S136: 49.84494282 | U136: 1000000000 | V136: 56241750.3 | X136: 27.6128487 | Y136: -37.95233169 | AA136: 43.56889459 | AB136: -92.2027255 | AD136: 0 | AE136: 0
A137: 7585.8 | B137: 7.5858 | C137: 9.18008381 | D137: 1.46164827 | E137: 1.000065425 | F137: 0.01143861798 | G137: 1 | H137: 0 | I137: 5492.166052 | J137: 1.570614249 | K137: 1.712218016 | L137: 0.947102181 | M137: 1.000572533 | N137: 0.0338307641 | O137: 1.012056421 | P137: 0.1619642713 | Q137: 18.65111803 | R137: -130.0337318 | S137: 49.96626824 | U137: 1000000000 | V137: 57544361.64 | X137: 27.57856092 | Y137: -37.66297003 | AA137: 43.46833228 | AB137: -92.37076173 | AD137: 0 | AE137: 0
A138: 7674.15 | B138: 7.67415 | C138: 9.285740571 | D138: 1.462895069 | E138: 1.000066957 | F138: 0.01157182901 | G138: 1 | H138: 0 | I138: 5556.131995 | J138: 1.570616345 | K138: 1.725383563 | L138: 0.9525815607 | M138: 1.000585943 | N138: 0.03422447709 | O138: 1.012337188 | P138: 0.1638217381 | Q138: 18.51516158 | R138: -129.9126936 | S138: 50.08730644 | U138: 1000000000 | V138: 58892578.22 | X138: 27.54439849 | Y138: -37.3717029 | AA138: 43.36653826 | AB138: -92.54099066 | AD138: 0 | AE138: 0
A139: 7762.5 | B139: 7.7625 | C139: 9.391411442 | D139: 1.464113813 | E139: 1.000068508 | F139: 0.01170503962 | G139: 1 | H139: 0 | I139: 5620.097939 | J139: 1.570618394 | K139: 1.738600126 | L139: 0.9579777936 | M139: 1.000599509 | N139: 0.03461817946 | O139: 1.012621128 | P139: 0.165678221 | Q139: 18.38118942 | R139: -129.7947521 | S139: 50.20524786 | U139: 1000000000 | V139: 60256406.25 | X139: 27.51113515 | Y139: -37.08519638 | AA139: 43.26582943 | AB139: -92.70955576 | AD139: 0 | AE139: 0
A140: 7852.9 | B140: 7.8529 | C140: 9.499548326 | D140: 1.465332768 | E140: 1.000070113 | F140: 0.01184134072 | G140: 1 | H140: 0 | I140: 5685.548095 | J140: 1.570620442 | K140: 1.752174958 | L140: 0.9634148117 | M140: 1.000613549 | N140: 0.03502100586 | O140: 1.012914938 | P140: 0.1675767511 | Q140: 18.24610605 | R140: -129.6772409 | S140: 50.32275914 | U140: 1000000000 | V140: 61668038.41 | X140: 27.47799944 | Y140: -36.7968758 | AA140: 43.16388177 | AB140: -92.88036506 | AD140: 0 | AE140: 0
A141: 7943.3 | B141: 7.9433 | C141: =SQRT(1+(A141/pole1)^2) -> 9.607699007 | D141: =ATAN(A141/pole1) -> 1.466524283 | E141: =SQRT(1+(A141/Zero1)^2) -> 1.000071736 | F141: =ATAN(A141/Zero1) -> 0.01197764137 | G141: =IF(VIN_nom>Vout, 1, SQRT(1+(A141/z_RHP)^2)) -> 1 | H141: =IF(VIN_nom>Vout, 0, -ATAN(A141/z_RHP)) -> 0 | I141: =SQRT(1+(A141/Pole2)^2) -> 5750.998251 | J141: =ATAN(A141/Pole2) -> 1.570622444 | K141: =SQRT(1+(A141/Zero2)^2) -> 1.765800789 | L141: =ATAN(A141/Zero2) -> 0.9687680764 | M141: =SQRT(1+(A141/pole4)^2) -> 1.000627752 | N141: =ATAN(A141/pole4) -> 0.03542382089 | O141: =SQRT((1-(V141/pterm2))^2+(A141/pterm1)^2) -> 1.013212063 | P141: =IF((ATAN((A141/pterm1)/(1-A141^2/pterm2))>0),ATAN((A141/pterm1)/(1-A141^2/pterm2)),PI()+ATAN((A141/pterm1)/(1-A141^2/pterm2))) -> 0.1694742296 | Q141: =20*LOG10(((E141*K141*G141)/(C141*I141*O141*M141))*Adc) -> 18.11298748 | R141: =((F141+L141+H141)-(D141+J141+P141+N141))*radconv -> -129.5628925 | S141: =IF(R141>0,R141,R141+180) -> 50.43710751 | U141: 1000000000 | V141: 63096014.89 | X141: =20*LOG10((K141/(I141*M141))*AEA) -> 27.44574295 | Y141: =(L141-(J141+N141))*radconv -> -36.51335061 | AA141: =20*LOG10((E141*G141/(C141*O141))*Acs*Am) -> 43.0630197 | AB141: =(F141+H141-(D141+P141))*radconv -> -93.04954187 | AD141: 0 | AE141: 0
A142: 8035.8 | B142: =A142/1000 -> 8.0358 | C142: 9.718375839 | D142: 1.467716024 | E142: 1.000073417 | F142: 0.01211710784 | G142: 1 | H142: 0 | I142: 5817.968821 | J142: 1.570624446 | K142: 1.779794717 | L142: 0.9741606938 | M142: 1.000642453 | N142: 0.03583598145 | O142: 1.01351952 | P142: 0.1714146867 | Q142: 17.97875417 | R142: -129.4491189 | S142: 50.55088109 | U142: =IF(Q142<0,A142,1000000000) -> 1000000000 | V142: =A142^2 -> 64574081.64 | X142: 27.4136164 | Y142: -36.22810614 | AA142: 42.96091294 | AB142: -93.22101277 | AD142: =SUM((Q143<0)*(Q142>0))*A142 -> 0 | AE142: 0
A143: 8128.3 | B143: 8.1283 | C143: 9.829066163 | D143: 1.468880925 | E143: 1.000075117 | F143: 0.01225657384 | G143: 1 | H143: 0 | I143: 5884.93939 | J143: 1.570626402 | K143: 1.793839593 | L143: 0.9794690204 | M143: 1.000657323 | N143: 0.03624812982 | O143: 1.013830443 | P143: 0.1733540197 | Q143: 17.84646604 | R143: -129.3385693 | S143: 50.66143067 | U143: 1000000000 | V143: 66069260.89 | X143: 27.38234906 | Y143: -35.94768786 | AA143: 42.85989214 | AB143: -93.39088147 | AD143: 0 | AE143: 0
A144: 8222.95 | B144: 8.22295 | C144: 9.942342785 | D144: 1.470046051 | E144: 1.000076876 | F144: 0.01239928099 | G144: 1 | H144: 0 | I144: 5953.466572 | J144: 1.570628357 | K144: 1.808262418 | L144: 0.9848152181 | M144: 1.000672716 | N144: 0.03666984511 | O144: 1.014152177 | P144: 0.1753372534 | Q144: 17.71306077 | R144: -129.2287405 | S144: 50.77125946 | U144: 1000000000 | V144: 67616906.7 | X144: 27.35121397 | Y144: -35.66564787 | AA144: 42.75762196 | AB144: -93.56309268 | AD144: 0 | AE144: 0
A145: 8270.275 | B145: 8.270275 | C145: 9.998986071 | D145: 1.470618714 | E145: 1.000077763 | F145: 0.01247063437 | G145: 1 | H145: 0 | I145: 5987.730163 | J145: 1.570629319 | K145: 1.815492981 | L145: 0.9874564254 | M145: 1.000680479 | N145: 0.03688069787 | O145: 1.014314402 | P145: 0.1763284206 | Q145: 17.64708351 | R145: -129.1750592 | S145: 50.82494082 | U145: 1000000000 | V145: 68397448.58 | X145: 27.33596292 | Y145: -35.52645388 | AA145: 42.70689575 | AB145: -93.64860529 | AD145: 0 | AE145: 0
A146: 8317.6 | B146: 8.3176 | C146: 10.0556326 | D146: 1.471184925 | E146: 1.000078656 | F146: 0.01254198763 | G146: 1 | H146: 0 | I146: 6021.993755 | J146: 1.570630269 | K146: 1.822736108 | L146: 0.9900766597 | M146: 1.000688286 | N146: 0.03709154735 | O146: 1.014477532 | P146: 0.1773192858 | Q146: 17.58158084 | R146: -129.1221917 | S146: 50.8778083 | U146: 1000000000 | V146: 69182469.76 | X146: 27.32091801 | Y146: -35.38846074 | AA146: 42.656438 | AB146: -93.73373096 | AD146: 0 | AE146: 0
A147: 8366.05 | B147: 8.36605 | C147: 10.11362902 | D147: 1.471758026 | E147: 1.000079575 | F147: 0.01261503695 | G147: 1 | H147: 0 | I147: 6057.071853 | J147: 1.570631231 | K147: 1.830164278 | L147: 0.9927376777 | M147: 1.000696325 | N147: 0.03730740568 | O147: 1.014645478 | P147: 0.1783333914 | Q147: 17.51500584 | R147: -129.0689043 | S147: 50.93109575 | U147: 1000000000 | V147: 69990792.6 | X147: 27.30572528 | Y147: -35.24841851 | AA147: 42.60505573 | AB147: -93.82048574 | AD147: 0 | AE147: 0
A148: 8414.5 | B148: 8.4145 | C148: 10.17162872 | D148: 1.47232459 | E148: 1.000080499 | F148: 0.01268808613 | G148: 1 | H148: 0 | I148: 6092.149951 | J148: 1.570632181 | K148: =SQRT(1+(A148/Zero2)^2) -> 1.837605302 | L148: =ATAN(A148/Zero2) -> 0.9953771637 | M148: 1.000704411 | N148: 0.03752326053 | O148: 1.014814371 | P148: 0.1793471773 | Q148: 17.44891443 | R148: -129.0164569 | S148: 50.98354311 | U148: 1000000000 | V148: 70803810.25 | X148: 27.29074114 | Y148: -35.10960914 | AA148: 42.55394846 | AB148: -93.90684774 | AD148: 0 | AE148: 0
A149: 8462.95 | B149: 8.46295 | C149: 10.22963165 | D149: 1.47288473 | E149: 1.000081429 | F149: 0.01276113518 | G149: 1 | H149: 0 | I149: 6127.228049 | J149: 1.570633121 | K149: 1.845059025 | L149: 0.9979953417 | M149: 1.000712543 | N149: 0.03773911188 | O149: 1.014984211 | P149: 0.180360642 | Q149: 17.3832998 | R149: -128.964843 | S149: 51.03515695 | U149: 1000000000 | V149: 71621522.7 | X149: 27.27596192 | Y149: -34.97201981 | AA149: 42.50311304 | AB149: -93.99282324 | AD149: 0 | AE149: 0
A150: 8511.4 | B150: 8.5114 | C150: 10.28763776 | D150: 1.473438553 | E150: 1.000082364 | F150: 0.01283418409 | G150: 1 | H150: 0 | I150: 6162.306147 | J150: 1.57063405 | K150: 1.852525294 | L150: 1.000592433 | M150: 1.000720722 | N150: 0.03795495972 | O150: 1.015154998 | P150: 0.1813737837 | Q150: 17.31815529 | R150: -128.9140562 | S150: 51.08594384 | U150: 1000000000 | V150: 72443929.96 | X150: 27.26138406 | Y150: -34.83563783 | AA150: 42.45254639 | AB150: -94.07841833 | AD150: 0 | AE150: 0
A151: 8560.95 | B151: 8.56095 | C151: 10.34696405 | D151: 1.473998528 | E151: 1.000083326 | F151: 0.01290889136 | G151: 1 | H151: 0 | I151: 6198.180652 | J151: 1.570634989 | K151: 1.860173894 | L151: 1.003226907 | M151: 1.000729135 | N151: 0.03817570447 | O151: 1.015330642 | P151: 0.1824095919 | Q151: 17.25201116 | R151: -128.8629647 | S151: 51.1370353 | U151: 1000000000 | V151: 73289864.9 | X151: 27.24667982 | Y151: -34.69739516 | AA151: 42.40110651 | AB151: -94.16556953 | AD151: 0 | AE151: 0
A152: 8610.5 | B152: 8.6105 | C152: 10.40629355 | D152: 1.474552117 | E152: 1.000084293 | F152: 0.01298359847 | G152: 1 | H152: 0 | I152: 6234.055157 | J152: 1.570635918 | K152: 1.867835299 | L152: 1.005839787 | M152: 1.000737597 | N152: 0.03839644549 | O152: 1.015507274 | P152: 0.1834450589 | Q152: 17.18634502 | R152: -128.8127243 | S152: 51.18727573 | U152: 1000000000 | V152: 74140710.25 | X152: 27.23217884 | Y152: -34.56038891 | AA152: 42.34994134 | AB152: -94.25233536 | AD152: 0 | AE152: 0
A153: 8660.05 | B153: 8.66005 | C153: 10.4656262 | D153: 1.47509943 | E153: 1.000085266 | F153: 0.01305830544 | G153: 1 | H153: 0 | I153: 6269.929662 | J153: 1.570636835 | K153: 1.875509352 | L153: 1.008431301 | M153: 1.000746107 | N153: 0.03861718277 | O153: 1.015684895 | P153: 0.184480183 | Q153: 17.12115011 | R153: -128.7633279 | S153: 51.23667214 | U153: 1000000000 | V153: 74996466 | X153: 27.21787752 | Y153: -34.42460594 | AA153: 42.29904776 | AB153: -94.33872192 | AD153: 0 | AE153: 0
A154: 8709.6 | B154: 8.7096 | C154: 10.52496195 | D154: 1.475640572 | E154: 1.000086244 | F154: 0.01313301227 | G154: 1 | H154: 0 | I154: 6305.804167 | J154: 1.570637743 | K154: 1.883195898 | L154: 1.011001678 | M154: 1.000754666 | N154: 0.03883791628 | O154: 1.015863505 | P154: 0.1855149624 | Q154: 17.05641982 | R154: -128.7147685 | S154: 51.28523155 | U154: 1000000000 | V154: 75857132.16 | X154: 27.20377233 | Y154: -34.29003328 | AA154: 42.24842266 | AB154: -94.42473517 | AD154: 0 | AE154: =IF(AD154>0,S154,0) -> 0
A155: 8760.325 | B155: 8.760325 | C155: 10.58570791 | D155: 1.476188262 | E155: 1.000087252 | F155: 0.0132094905 | G155: 1 | H155: 0 | I155: 6342.52938 | J155: 1.570638661 | K155: 1.8910775 | L155: 1.013611345 | M155: 1.000763479 | N155: 0.03906388022 | O155: 1.016047373 | P155: 0.1865739212 | Q155: 16.99062906 | R155: -128.6659172 | S155: 51.33408275 | U155: 1000000000 | V155: 76743294.11 | X155: 27.18953224 | Y155: -34.15350977 | AA155: 42.19687199 | AB155: -94.51240748 | AD155: 0 | AE155: 0
A156: 8811.05 | B156: 8.81105 | C156: 10.64645702 | D156: 1.476729702 | E156: 1.000088265 | F156: 0.01328596857 | G156: 1 | H156: 0 | I156: 6379.254592 | J156: 1.570639569 | K156: 1.898971875 | L156: 1.016199332 | M156: 1.000772343 | N156: 0.03928984017 | O156: 1.016232275 | P156: 0.187632515 | Q156: 16.92531159 | R156: -128.6179284 | S156: 51.38207161 | U156: 1000000000 | V156: 77634602.1 | X156: 27.17549046 | Y156: -34.0182276 | AA156: 42.14559629 | AB156: -94.59970079 | AD156: 0 | AE156: 0
A157: 8861.775 | B157: 8.861775 | C157: 10.7072092 | D157: 1.477264998 | E157: 1.000089284 | F157: 0.01336244649 | G157: 1 | H157: 0 | I157: 6415.979804 | J157: 1.570640466 | K157: 1.906878862 | L157: 1.018765874 | M157: 1.000781257 | N157: 0.0395157961 | O157: 1.016418212 | P157: 0.1886907422 | Q157: 16.86046069 | R157: -128.5707944 | S157: 51.42920559 | U157: 1000000000 | V157: 78531056.15 | X157: 27.16164346 | Y157: -33.88417334 | AA157: 42.0945924 | AB157: -94.68662107 | AD157: 0 | AE157: 0
A158: 8912.5 | B158: 8.9125 | C158: 10.76796442 | D158: 1.477794253 | E158: 1.000090309 | F158: 0.01343892425 | G158: 1 | H158: 0 | I158: 6452.705016 | J158: 1.570641353 | K158: =SQRT(1+(A158/Zero2)^2) -> 1.914798307 | L158: =ATAN(A158/Zero2) -> 1.021311202 | M158: 1.000790223 | N158: 0.039741748 | O158: 1.016605181 | P158: 0.1897486008 | Q158: 16.79606982 | R158: -128.5245079 | S158: 51.47549215 | U158: 1000000000 | V158: 79432656.25 | X158: 27.14798778 | Y158: -33.7513337 | AA158: 42.0438572 | AB158: -94.77317416 | AD158: 0 | AE158: 0
A159: 8964.4 | B159: 8.9644 | C159: 10.83013007 | D159: 1.478329622 | E159: 1.000091364 | F159: 0.01351717339 | G159: 1 | H159: 0 | I159: 6490.280936 | J159: 1.57064225 | K159: 1.922913931 | L159: 1.023893773 | M159: 1.00079945 | N159: 0.03997292967 | O159: 1.016797551 | P159: 0.1908305804 | Q159: 16.73065677 | R159: -128.4780185 | S159: 51.52198155 | U159: 1000000000 | V159: 80360467.36 | X159: 27.13421024 | Y159: -33.61666039 | AA159: 41.9922217 | AB159: -94.86135806 | AD159: 0 | AE159: 0
A160: 9016.3 | B160: 9.0163 | C160: 10.89229879 | D160: 1.47885888 | E160: 1.000092425 | F160: 0.01359542237 | G160: 1 | H160: 0 | I160: 6527.856855 | J160: 1.570643137 | K160: 1.931042273 | L160: 1.02645462 | M160: 1.00080873 | N160: 0.04020410707 | O160: 1.016991002 | P160: 0.1919121703 | Q160: 16.66571178 | R160: -128.4324005 | S160: 51.56759951 | U160: 1000000000 | V160: 81293665.69 | X160: 27.12062587 | Y160: -33.48323098 | AA160: 41.94086107 | AB160: -94.9491695 | AD160: 0 | AE160: 0
A161: 9068.2 | B161: 9.0682 | C161: 10.95447052 | D161: 1.479382131 | E161: 1.000093492 | F161: 0.01367367118 | G161: 1 | H161: 0 | I161: 6565.432775 | J161: 1.570644014 | K161: 1.939183172 | L161: 1.028993982 | M161: 1.000818063 | N161: 0.04043528016 | O161: 1.017185532 | P161: 0.1929933685 | Q161: 16.60122819 | R161: -128.3876461 | S161: 51.61235394 | U161: 1000000000 | V161: 82232251.24 | X161: 27.1072312 | Y161: -33.35103174 | AA161: 41.88977216 | AB161: -95.03661431 | AD161: 0 | AE161: 0
A162: 9120.1 | B162: 9.1201 | C162: 11.01664522 | D162: 1.479899475 | E162: 1.000094565 | F162: 0.01375191982 | G162: 1 | H162: 0 | I162: 6603.008694 | J162: 1.570644881 | K162: 1.947336471 | L162: 1.031512096 | M162: 1.00082745 | N162: 0.04066644894 | O162: 1.017381142 | P162: 0.1940741731 | Q162: 16.53719948 | R162: -128.3437473 | S162: 51.65625271 | U162: 1000000000 | V162: 83176224.01 | X162: 27.0940228 | Y162: -33.2200491 | AA162: 41.83895185 | AB162: -95.12369819 | AD162: 0 | AE162: 0
A163: 9173.2 | B163: 9.1732 | C163: 11.0802605 | D163: 1.480422772 | E163: 1.000095669 | F163: 0.0138319775 | G163: 1 | H163: 0 | I163: 6641.453421 | J163: 1.570645757 | K163: 1.955690957 | L163: 1.034066686 | M163: 1.00083711 | N163: 0.04090295815 | O163: 1.017582391 | P163: 0.1951795579 | Q163: 16.47215447 | R163: -128.2997109 | S163: 51.70028907 | U163: 1000000000 | V163: 84147598.24 | X163: 27.08069833 | Y163: -33.0872831 | AA163: 41.7872313 | AB163: -95.21242783 | AD163: 0 | AE163: 0
A164: 9226.3 | B164: 9.2263 | C164: 11.14387878 | D164: 1.480940095 | E164: 1.00009678 | F164: 0.013912035 | G164: 1 | H164: 0 | I164: 6679.898148 | J164: 1.570646624 | K164: 1.964058098 | L164: 1.036599526 | M164: 1.000846825 | N164: 0.04113946279 | O164: 1.017784769 | P164: 0.1962845266 | Q164: 16.40757221 | R164: -128.2565537 | S164: 51.74344628 | U164: 1000000000 | V164: 85124611.69 | X164: 27.06756188 | Y164: -32.95576241 | AA164: 41.73578549 | AB164: -95.30079131 | AD164: 0 | AE164: 0
A165: 9279.4 | B165: 9.2794 | C165: 11.2075 | D165: 1.481451544 | E165: 1.000097897 | F165: 0.01399209233 | G165: 1 | H165: 0 | I165: 6718.342875 | J165: 1.570647481 | K165: 1.972437731 | L165: 1.039110861 | M165: 1.000856596 | N165: 0.04137596282 | O165: 1.017988275 | P165: 0.1973890771 | Q165: 16.34344612 | R165: -128.2142673 | S165: 51.78573265 | U165: 1000000000 | V165: 86107264.36 | X165: 27.05461003 | Y165: -32.82547302 | AA165: 41.68461126 | AB165: -95.38879433 | AD165: 0 | AE165: 0
A166: 9332.5 | B166: 9.3325 | C166: 11.27112413 | D166: 1.481957219 | E166: 1.000099021 | F166: 0.01407214948 | G166: 1 | H166: 0 | I166: 6756.787602 | J166: 1.570648327 | K166: 1.980829699 | L166: 1.041600933 | M166: 1.000866423 | N166: 0.04161245822 | O166: 1.018192907 | P166: 0.1984932072 | Q166: 16.27976975 | R166: -128.1728436 | S166: 51.82715644 | U166: 1000000000 | V166: 87095556.25 | X166: 27.04183943 | Y166: -32.69640111 | AA166: 41.63370548 | AB166: -95.47644245 | AD166: 0 | AE166: 0
A167: 9386.85 | B167: 9.38685 | C167: 11.33624895 | D167: 1.48246892 | E167: 1.000100178 | F167: 0.01415409103 | G167: 1 | H167: 0 | I167: 6796.137336 | J167: 1.570649184 | K167: 1.989431828 | L167: 1.044127852 | M167: 1.00087654 | N167: 0.04185451601 | O167: 1.018403524 | P167: 0.1996228917 | Q167: 16.21505351 | R167: -128.1313293 | S167: 51.86867066 | U167: 1000000000 | V167: 88112952.92 | X167: 27.02895251 | Y167: -32.56553735 | AA167: 41.58187616 | AB167: -95.56579199 | AD167: 0 | AE167: 0
A168: 9441.2 | B168: 9.4412 | C168: 11.40137671 | D168: 1.482974775 | E168: 1.000101341 | F168: 0.01423603238 | G168: 1 | H168: 0 | I168: 6835.487071 | J168: 1.570650031 | K168: 1.998046552 | L168: 1.046632996 | M168: 1.000886715 | N168: 0.0420965689 | O168: 1.01861532 | P168: 0.2007521315 | Q168: 16.15079511 | R168: -128.0907014 | S168: 51.90929857 | U168: 1000000000 | V168: 89136257.44 | X168: 27.01624863 | Y168: -32.4359203 | AA168: 41.53032165 | AB168: -95.65478113 | AD168: 0 | AE168: 0
A169: 9495.55 | B169: 9.49555 | C169: 11.46650735 | D169: 1.483474884 | E169: 1.000102511 | F169: 0.01431797355 | G169: 1 | H169: 0 | I169: 6874.836806 | J169: 1.570650869 | K169: 2.006673706 | L169: 1.049116615 | M169: 1.000896949 | N169: 0.04233861685 | O169: 1.018828295 | P169: 0.2018809243 | Q169: 16.08698802 | R169: -128.0509511 | S169: 51.94904888 | U169: 1000000000 | V169: 90165469.8 | X169: 27.00372443 | Y169: -32.3075357 | AA169: 41.47903876 | AB169: -95.74341542 | AD169: 0 | AE169: 0
A170: 9549.9 | B170: 9.5499 | C170: 11.53164082 | D170: 1.483969343 | E170: 1.000103688 | F170: 0.01439991452 | G170: 1 | H170: 0 | I170: 6914.18654 | J170: 1.570651697 | K170: 2.015313133 | L170: 1.051578955 | M170: 1.000907242 | N170: 0.04258065984 | O170: 1.019042449 | P170: 0.203009268 | Q170: 16.02362583 | R170: -128.0120698 | S170: 51.98793023 | U170: 1000000000 | V170: 91200590.01 | X170: 26.99137663 | Y170: -32.18036946 | AA170: 41.42802437 | AB170: -95.83170031 | AD170: 0 | AE170: 0
A171: 9605.525 | B171: 9.605525 | C171: 11.59830515 | D171: 1.484469651 | E171: 1.000104899 | F171: 0.01448377755 | G171: 1 | H171: 0 | I171: 6954.459383 | J171: 1.570652534 | K171: 2.024167775 | L171: 1.05407728 | M171: 1.000917836 | N171: 0.04282837576 | O171: 1.019262845 | P171: 0.2041636143 | Q171: 15.95923135 | R171: -127.9731671 | S171: 52.02683289 | U171: 1000000000 | V171: 92266110.53 | X171: 26.97891846 | Y171: -32.05146709 | AA171: 41.37608805 | AB171: -95.92170003 | AD171: 0 | AE171: 0
A172: 9661.15 | B172: 9.66115 | C172: 11.66497236 | D172: 1.48496424 | E172: 1.000106117 | F172: 0.01456764038 | G172: 1 | H172: 0 | I172: 6994.732225 | J172: 1.570653362 | K172: 2.033034942 | L172: 1.056553826 | M172: 1.000928492 | N172: 0.04307608642 | O172: 1.019484473 | P172: 0.2053174856 | Q172: 15.89528971 | R172: -127.9351565 | S172: 52.06484348 | U172: 1000000000 | V172: 93337819.32 | X172: 26.96663835 | Y172: -31.92381163 | AA172: 41.32442652 | AB172: -96.01134489 | AD172: 0 | AE172: 0
A173: 9716.775 | B173: 9.716775 | C173: 11.73164238 | D173: 1.485453209 | E173: 1.000107343 | F173: 0.014651503 | G173: 1 | H173: 0 | I173: 7035.005068 | J173: 1.57065418 | K173: 2.041914469 | L173: 1.059008849 | M173: 1.00093921 | N173: 0.04332379179 | O173: 1.019707333 | P173: 0.2064708794 | Q173: 15.83179442 | R173: -127.8980289 | S173: 52.1019711 | U173: 1000000000 | V173: 94415716.4 | X173: 26.95453299 | Y173: -31.79738857 | AA173: 41.2730366 | AB173: -96.10064033 | AD173: 0 | AE173: 0
A174: 9772.4 | B174: 9.7724 | C174: 11.79831517 | D174: 1.485936651 | E174: 1.000108575 | F174: 0.01473536541 | G174: 1 | H174: 0 | I174: 7075.27791 | J174: 1.57065499 | K174: 2.050806197 | L174: 1.061442597 | M174: 1.000949989 | N174: 0.04357149184 | O174: 1.019931424 | P174: 0.2076237935 | Q174: 15.76873915 | R174: -127.8617753 | S174: 52.13822475 | U174: 1000000000 | V174: 95499801.76 | X174: 26.94259918 | Y174: -31.67218359 | AA174: 41.22191514 | AB174: -96.18959167 | AD174: 0 | AE174: 0
A175: 9829.3 | B175: 9.8293 | C175: 11.86651902 | D175: 1.486425553 | E175: 1.000109843 | F175: 0.01482114985 | G175: 1 | H175: 0 | I175: 7116.47386 | J175: 1.570655808 | K175: 2.059914193 | L175: 1.063910377 | M175: 1.000961078 | N175: 0.04382486398 | O175: 1.020161924 | P175: 0.2088026351 | Q175: 15.70468733 | R175: -127.8255855 | S175: 52.17441446 | U175: 1000000000 | V175: 96615138.49 | X175: 26.93056602 | Y175: -31.54535427 | AA175: 41.16989648 | AB175: -96.28023127 | AD175: 0 | AE175: 0
A176: 9886.2 | B176: 9.8862 | C176: 11.93472567 | D176: 1.486908867 | E176: 1.000111119 | F176: 0.01490693408 | G176: 1 | H176: 0 | I176: 7157.669811 | J176: 1.570656617 | K176: 2.069034624 | L176: 1.066356415 | M176: 1.000972232 | N176: 0.04407823048 | O176: 1.02039371 | P176: 0.2099809699 | Q176: 15.64108287 | R176: -127.7902915 | S176: 52.20970854 | U176: 1000000000 | V176: 97736950.44 | X176: 26.91870576 | Y176: -31.41976979 | AA176: 41.11815228 | AB176: -96.37052168 | AD176: 0 | AE176: 0
A177: 9943.1 | B177: 9.9431 | C177: 12.00293508 | D177: 1.487386689 | E177: 1.000112401 | F177: 0.01499271808 | G177: 1 | H177: 0 | I177: 7198.865761 | J177: 1.570657416 | K177: 2.078167325 | L177: 1.068780968 | M177: 1.00098345 | N177: 0.04433159132 | O177: 1.020626782 | P177: 0.2111587952 | Q177: 15.57791937 | R177: -127.7558836 | S177: 52.24411641 | U177: 1000000000 | V177: 98865237.61 | X177: 26.90701519 | Y177: -31.29541541 | AA177: 41.06667935 | AB177: -96.46046819 | AD177: 0 | AE177: 0
A178: 10000 | B178: 10 | C178: 12.07114719 | D178: 1.48785911 | E178: 1.000113691 | F178: 0.01507850186 | G178: 1 | H178: 0 | I178: 7240.061711 | J178: 1.570658206 | K178: 2.087312135 | L178: 1.071184291 | M178: 1.000994733 | N178: 0.04458494647 | O178: 1.020861138 | P178: 0.2123361088 | Q178: 15.51519055 | R178: -127.7223526 | S178: 52.27764742 | U178: 1000000000 | V178: 100000000 | X178: 26.89549116 | Y178: -31.1722766 | AA178: 41.01547456 | AB178: -96.55007598 | AD178: 0 | AE178: 0
A179: 10058.25 | B179: 10.05825 | C179: 12.14098046 | D179: 1.488337241 | E179: 1.00011502 | F179: 0.0151663207 | G179: 1 | H179: 0 | I179: 7282.23507 | J179: 1.570659006 | K179: 2.096686292 | L179: 1.073622905 | M179: 1.001006349 | N179: 0.04484430675 | O179: 1.021102384 | P179: 0.2135408224 | Q179: 15.45141726 | R179: -127.6889247 | S179: 52.31107534 | U179: 1000000000 | V179: 101168393.1 | X179: 26.883863 | Y179: -31.04746045 | AA179: 40.96332943 | AB179: -96.64146422 | AD179: 0 | AE179: 0
A180: 10116.5 | B180: 10.1165 | C180: 12.21081647 | D180: 1.488809903 | E180: 1.000116356 | F180: 0.01525413932 | G180: 1 | H180: 0 | I180: 7324.408429 | J180: 1.570659797 | K180: 2.106072807 | L180: 1.076039795 | M180: 1.001018033 | N180: 0.04510366098 | O180: 1.021344974 | P180: 0.2147449943 | Q180: 15.38808659 | R180: -127.6563961 | S180: 52.34360386 | U180: 1000000000 | V180: 102343572.2 | X180: 26.87240292 | Y180: -30.92388805 | AA180: 40.91145884 | AB180: -96.73250809 | AD180: 0 | AE180: 0
A181: 10174.75 | B181: 10.17475 | C181: 12.28065517 | D181: 1.489277189 | E181: 1.000117699 | F181: 0.01534195769 | G181: 1 | H181: 0 | I181: 7366.581788 | J181: 1.570660579 | K181: 2.115471515 | L181: 1.078435223 | M181: 1.001029784 | N181: 0.04536300915 | O181: 1.021588907 | P181: 0.215948622 | Q181: 15.32519218 | R181: -127.6247572 | S181: 52.37524277 | U181: 1000000000 | V181: 103525537.6 | X181: 26.86110775 | Y181: -30.80154446 | AA181: 40.85985959 | AB181: -96.82321277 | AD181: 0 | AE181: 0
A182: 10233 | B182: 10.233 | C182: 12.35049653 | D182: 1.48973919 | E182: 1.000119051 | F182: 0.01542977583 | G182: 1 | H182: 0 | I182: 7408.755146 | J182: 1.570661351 | K182: 2.124882254 | L182: 1.080809447 | M182: 1.001041603 | N182: 0.04562235121 | O182: 1.021834183 | P182: 0.2171517029 | Q182: 15.26272779 | R182: -127.5939983 | S182: 52.40600173 | U182: 1000000000 | V182: 104714289 | X182: 26.84997442 | Y182: -30.68041493 | AA182: 40.80852854 | AB182: -96.91358334 | AD182: 0 | AE182: 0
A183: 10292.5 | B183: 10.2925 | C183: 12.42183932 | D183: 1.490205742 | E183: 1.000120439 | F183: 0.01551947823 | G183: 1 | H183: 0 | I183: 7451.833513 | J183: 1.570662132 | K183: 2.134507197 | L183: 1.083212992 | M183: 1.001053744 | N183: 0.04588725221 | O183: 1.022086107 | P183: 0.2183800336 | Q183: 15.1993606 | R183: -127.5634777 | S183: 52.43652226 | U183: 1000000000 | V183: 105935556.2 | X183: 26.83876611 | Y183: -30.55792435 | AA183: 40.75636965 | AB183: -97.00555339 | AD183: 0 | AE183: 0
A184: 10352 | B184: 10.352 | C184: 12.49318478 | D184: 1.490666965 | E184: 1.000121836 | F184: 0.01560918038 | G184: 1 | H184: 0 | I184: 7494.911879 | J184: 1.570662903 | K184: 2.144144359 | L184: 1.085594945 | M184: 1.001065956 | N184: 0.04615214677 | O184: 1.02233943 | P184: 0.2196077884 | Q184: 15.13642934 | R184: -127.5338552 | S184: 52.46614481 | U184: 1000000000 | V184: 107163904 | X184: 26.82772037 | Y184: -30.43667005 | AA184: 40.70448414 | AB184: -97.09718514 | AD184: 0 | AE184: 0
A185: 10411.5 | B185: 10.4115 | C185: 12.56453287 | D185: 1.49112295 | E185: 1.00012324 | F185: 0.01569888228 | G185: 1 | H185: 0 | I185: 7537.990245 | J185: 1.570663665 | K185: 2.153793578 | L185: 1.087955568 | M185: 1.001078239 | N185: 0.04641703484 | O185: 1.02259415 | P185: 0.2208349643 | Q185: 15.07392776 | R185: -127.5051206 | S185: 52.49487941 | U185: 1000000000 | V185: 108399332.2 | X185: 26.81683412 | Y185: -30.31663697 | AA185: 40.65286881 | AB185: -97.18848362 | AD185: 0 | AE185: 0
A186: 10471 | B186: 10.471 | C186: 12.63588354 | D186: 1.491573786 | E186: 1.000124653 | F186: 0.01578858393 | G186: 1 | H186: 0 | I186: 7581.068612 | J186: 1.570664419 | K186: 2.163454692 | L186: 1.090295121 | M186: 1.001090591 | N186: 0.0466819164 | O186: 1.022850267 | P186: 0.2220615586 | Q186: 15.01184973 | R186: -127.477264 | S186: 52.522736 | U186: 1000000000 | V186: 109641841 | X186: 26.80610436 | Y186: -30.19781025 | AA186: 40.60152054 | AB186: -97.27945375 | AD186: 0 | AE186: 0
A187: 10532 | B187: 10.532 | C187: 12.7090356 | D187: 1.492030732 | E187: 1.000126109 | F187: 0.0158805467 | G187: 1 | H187: 0 | I187: 7625.232987 | J187: 1.570665183 | K187: 2.173371546 | L187: 1.092672048 | M187: 1.001103328 | N187: 0.04695346884 | O187: 1.02311429 | P187: 0.223318469 | Q187: 14.94864012 | R187: -127.4496063 | S187: 52.55039366 | U187: 1000000000 | V187: 110923024 | X187: 26.79526348 | Y187: -30.07722494 | AA187: 40.54915181 | AB187: -97.3723814 | AD187: 0 | AE187: 0
A188: 10593 | B188: 10.593 | C188: 12.78219029 | D188: 1.492482447 | E188: 1.000127574 | F188: 0.01597250921 | G188: 1 | H188: 0 | I188: 7669.397363 | J188: 1.570665938 | K188: 2.183300568 | L188: 1.095027369 | M188: 1.001116138 | N188: 0.04722501434 | O188: 1.023379777 | P188: 0.2245747622 | Q188: 14.88586302 | R188: -127.4228507 | S188: 52.5771493 | U188: 1000000000 | V188: 112211649 | X188: 26.78458091 | Y188: -29.95787667 | AA188: 40.49705727 | AB188: -97.46497404 | AD188: 0 | AE188: 0
A189: 10654 | B189: 10.654 | C189: 12.85534756 | D189: 1.492929022 | E189: 1.000129047 | F189: 0.01606447144 | G189: 1 | H189: 0 | I189: 7713.561739 | J189: 1.570666685 | K189: 2.193241591 | L189: 1.097361351 | M189: 1.001129022 | N189: 0.04749655288 | O189: 1.02364673 | P189: 0.2258304354 | Q189: 14.8235122 | R189: -127.3969867 | S189: 52.6030133 | U189: 1000000000 | V189: 113507716 | X189: 26.77405363 | Y189: -29.8397501 | AA189: 40.44523374 | AB189: -97.5572366 | AD189: 0 | AE189: 0
A190: 10715 | B190: 10.715 | C190: 12.92850736 | D190: 1.493370542 | E190: 1.000130529 | F190: 0.0161564334 | G190: 1 | H190: 0 | I190: 7757.726114 | J190: 1.570667423 | K190: 2.203194455 | L190: 1.099674259 | M190: 1.001141981 | N190: 0.04776808441 | O190: 1.023915145 | P190: 0.2270854858 | Q190: 14.76158157 | R190: -127.3720041 | S190: 52.62799594 | U190: 1000000000 | V190: 114811225 | X190: 26.76367868 | Y190: -29.72283015 | AA190: 40.39367805 | AB190: -97.64917391 | AD190: 0 | AE190: 0
A191: 10777.5 | B191: 10.7775 | C191: 13.00346876 | D191: 1.493817767 | E191: 1.000132056 | F191: 0.01625065643 | G191: 1 | H191: 0 | I191: 7802.976499 | J191: 1.570668171 | K191: 2.213404174 | L191: 1.102022454 | M191: 1.001155334 | N191: 0.04804628563 | O191: 1.024191678 | P191: 0.2283707489 | Q191: 14.69855761 | R191: -127.3473106 | S191: 52.6526894 | U191: 1000000000 | V191: 116154506.2 | X191: 26.7532036 | Y191: -29.60427104 | AA191: 40.34112917 | AB191: -97.74303956 | AD191: 0 | AE191: 0
A192: 10840 | B192: 10.84 | C192: 13.07843272 | D192: 1.494259865 | E192: 1.000133592 | F192: 0.01634487918 | G192: 1 | H192: 0 | I192: 7848.226884 | J192: 1.570668909 | K192: 2.223625986 | L192: 1.104349074 | M192: 1.001168765 | N192: 0.04832447941 | O192: 1.024469744 | P192: 0.2296553518 | Q192: 14.63596216 | R192: -127.3235209 | S192: 52.67647911 | U192: 1000000000 | V192: 117505600 | X192: 26.74288239 | Y192: -29.48694724 | AA192: 40.28885494 | AB192: -97.83657365 | AD192: 0 | AE192: 0
A193: 10902.5 | B193: 10.9025 | C193: 13.15339922 | D193: 1.494696923 | E193: 1.000135137 | F193: 0.01643910164 | G193: 1 | H193: 0 | I193: 7893.477269 | J193: 1.57066964 | K193: 2.233859724 | L193: 1.106654388 | M193: 1.001182273 | N193: 0.04860266571 | O193: 1.024749343 | P193: 0.2309392916 | Q193: 14.57378906 | R193: -127.3006242 | S193: 52.69937575 | U193: 1000000000 | V193: 118864506.2 | X193: 26.73271208 | Y193: -29.37084321 | AA193: 40.23685214 | AB193: -97.92978104 | AD193: 0 | AE193: 0
A194: 10965 | B194: 10.965 | C194: 13.2283682 | D194: 1.495129028 | E194: 1.000136691 | F194: 0.01653332381 | G194: 1 | H194: 0 | I194: 7938.727654 | J194: 1.570670362 | K194: 2.244105226 | L194: 1.108938665 | M194: 1.001195859 | N194: 0.04888084447 | O194: 1.025030474 | P194: 0.232222565 | Q194: 14.51203223 | R194: -127.2786101 | S194: 52.72138992 | U194: 1000000000 | V194: 120231225 | X194: 26.72268978 | Y194: -29.25594365 | AA194: 40.18511761 | AB194: -98.02266643 | AD194: 0 | AE194: 0
A195: 11028.75 | B195: 11.02875 | C195: 13.30483907 | D195: 1.495564758 | E195: 1.000138285 | F195: 0.01662943011 | G195: 1 | H195: 0 | I195: 7984.883047 | J195: 1.57067109 | K195: 2.254567591 | L195: 1.111247226 | M195: 1.001209796 | N195: 0.04916457901 | O195: 1.025318803 | P195: 0.2335308143 | Q195: 14.44946297 | R195: -127.2570539 | S195: 52.74294609 | U195: 1000000000 | V195: 121633326.6 | X195: 26.7126166 | Y195: -29.13997132 | AA195: 40.13262153 | AB195: -98.11708259 | AD195: 0 | AE195: 0
A196: 11092.5 | B196: 11.0925 | C196: 13.38131244 | D196: 1.495995507 | E196: 1.000139888 | F196: 0.01672553611 | G196: 1 | H196: 0 | I196: 8031.038439 | J196: 1.57067181 | K196: 2.265041859 | L196: 1.113534449 | M196: 1.001223814 | N196: 0.04944830563 | O196: 1.025608722 | P196: 0.2348383638 | Q196: 14.38731445 | R196: -127.236394 | S196: 52.76360598 | U196: 1000000000 | V196: 123043556.2 | X196: 26.70269154 | Y196: -29.02522068 | AA196: 40.08039807 | AB196: -98.21117334 | AD196: 0 | AE196: 0
A197: 11156.25 | B197: 11.15625 | C197: 13.45778827 | D197: 1.496421362 | E197: 1.0001415 | F197: 0.0168216418 | G197: 1 | H197: 0 | I197: 8077.193832 | J197: 1.570672521 | K197: 2.275527869 | L197: 1.115800604 | M197: 1.001237913 | N197: 0.04973202428 | O197: 1.025900231 | P197: 0.2361452104 | Q197: 14.32558062 | R197: -127.2166196 | S197: 52.78338044 | U197: 1000000000 | V197: 124461914.1 | X197: 26.69291175 | Y197: -28.91167623 | AA197: 40.02844403 | AB197: -98.30494333 | AD197: 0 | AE197: 0
A198: 11220 | B198: 11.22 | C198: 13.53426651 | D198: 1.496842403 | E198: 1.000143122 | F198: 0.01691774718 | G198: 1 | H198: 0 | I198: 8123.349224 | J198: 1.570673225 | K198: 2.286025456 | L198: 1.118045957 | M198: 1.001252092 | N198: 0.05001573492 | O198: 1.026193328 | P198: 0.2374513508 | Q198: 14.26425555 | R198: -127.1977198 | S198: 52.80228018 | U198: 1000000000 | V198: 125888400 | X198: 26.68327443 | Y198: -28.79932268 | AA198: 39.97675628 | AB198: -98.39839714 | AD198: 0 | AE198: 0
A199: 11285.5 | B199: 11.2855 | C199: 13.61284662 | D199: 1.497270075 | E199: 1.000144798 | F199: 0.01701649042 | G199: 1 | H199: 0 | I199: 8170.771628 | J199: 1.570673939 | K199: 2.296823106 | L199: 1.120331558 | M199: 1.001266744 | N199: 0.0503072253 | O199: 1.026496123 | P199: 0.2387926071 | Q199: 14.20166668 | R199: -127.1792012 | S199: 52.82079883 | U199: 1000000000 | V199: 127362510.2 | X199: 26.67351809 | Y199: -28.68510948 | AA199: 39.92392376 | AB199: -98.49409169 | AD199: 0 | AE199: 0
A200: 11351 | B200: 11.351 | C200: 13.69142919 | D200: 1.497692838 | E200: 1.000146483 | F200: 0.01711523333 | G200: 1 | H200: 0 | I200: 8218.194031 | J200: 1.570674646 | K200: 2.307632642 | L200: 1.122595759 | M200: 1.001281482 | N200: 0.05059870713 | O200: 1.026800591 | P200: 0.240133111 | Q200: 14.139497 | R200: -127.1615834 | S200: 52.83841662 | U200: 1000000000 | V200: 128845201 | X200: 26.66390637 | Y200: -28.5721215 | AA200: 39.87136579 | AB200: -98.58946188 | AD200: 0 | AE200: 0
A201: 11416.5 | B201: 11.4165 | C201: 13.77001418 | D201: 1.498110775 | E201: 1.000148179 | F201: 0.01721397591 | G201: 1 | H201: 0 | I201: 8265.616435 | J201: 1.570675344 | K201: 2.318453898 | L201: 1.124838834 | M201: 1.001296304 | N201: 0.05089018035 | O201: 1.027106731 | P201: 0.241472859 | Q201: 14.07774045 | R201: -127.1448552 | S201: 52.85514477 | U201: 1000000000 | V201: 130336472.2 | X201: 26.65443647 | Y201: -28.46034292 | AA201: 39.81907915 | AB201: -98.6845123 | AD201: 0 | AE201: 0
A202: 11482 | B202: 11.482 | C202: 13.84860156 | D202: 1.498523969 | E202: 1.000149884 | F202: 0.01731271815 | G202: 1 | H202: 0 | I202: 8313.038838 | J202: 1.570676034 | K202: 2.32928671 | L202: 1.127061057 | M202: 1.001311212 | N202: 0.05118164491 | O202: 1.027414542 | P202: 0.2428118477 | Q202: 14.01639109 | R202: -127.1290056 | S202: 52.87099437 | U202: 1000000000 | V202: 131836324 | X202: 26.64510561 | Y202: -28.34975816 | AA202: 39.76706065 | AB202: -98.77924747 | AD202: 0 | AE202: 0
... 433 more rows

Sheet Bode Plot Management (hidden)
J1: Single or dual output (MODE) | N1: 3.3V or 5V fixed (FB1/2)
A2: =CHOOSE(BODE_PLOT_TYPE, "BODE_PLOT_Ch1", "BODE_PLOT_Ch2") -> BODE_PLOT_Ch1 | J2: With/without dither (DITH) | N2: With/without VOUT connected to VCCX
J3: FPWM or DEM (DEMB)
J4: Shunt or inductor DCR current sensing
F6: =INDIRECT(A2) -> 0

Sheet Efficiency Calculations (hidden)
A1: BUCK CONTROLLER POWER DESIGN TOOL
H2: =AV19 -> 0.9600944363 | I2: 10% load
H3: =AV59 -> 0.9849535735 | I3: 50% load | AP3: =IF(MODE=1, (Qg_Q1+Qg_Q2)*Fsw*Vin, (Qg_Q1+Qg_Q2+Qg_Q3+Qg_Q4)*Fsw*Vin) -> 0.17952
H4: =AV109 -> 0.9853055211 | I4: 100% load | AO4: I_VCC | AP4: =(Qg_Q1+Qg_Q2)*Fsw*1000 -> 7.48 | AQ4: mA | AR4: =AP4*5/1000 -> 0.0374
A6: Enter the values of your design and MOSFET datasheet specifications below. Note that thermal resistance (θJA) will change when components are placed on the PCB
G7: Operating Point Condtions | R7: Filter Inductor | V7: Cout | Y7: Cin | AB7: High-side BUCK "Control" MOSFET Losses | AH7: Low-side BUCK "Sync" MOSFET Losses | AL7: External Diode | AM7: Diode/FET | AN7: Sense Rs | AO7: Controller IC Losses | AT7: RESULTS | AZ7: Consolidated Buck/Boost Efficiency & Losses
A8: Input Parameters | G8: Step | H8: Vin | I8: Mode | J8: Iout | K8: Iout/ phase | L8: Iin | M8: Duty Cycle BUCK Leg | N8: Ripple Current pk-pk | O8: Peak Inductor Current | P8: Valley Inductor Current | Q8: SW node voltage at Q1 turn-on | R8: Irms Lf | S8: DCR Loss | T8: Core Loss | U8: Total Inductor Loss | V8: Irms Cout | W8: Cout ESR Loss | X8: Total Cout Loss | Y8: Irms Cin | Z8: Cin ESR Loss | AA8: Total Cin Loss | AB8: Irms | AC8: RDS(on) Loss | AD8: Transition Loss (not including capacitive loss) | AE8: MOSFET Output Capacitance Loss | AF8: Dead Time Loss | AG8: Total Control MOSFET Loss | AH8: Irms | AI8: RDS(on) Loss | AJ8: Deadtime Loss | AK8: Total Sync MOSFET Loss | AL8: Deadtime Loss | AM8: Reverse Recovery Loss | AN8: Isense Shunt Loss | AO8: IQ Loss | AP8: Switching Current Loss | AQ8: Switching Current Diss | AR8: LDO Loss Saved from Gate Drive Current (ext VCC) | AS8: Total IC Loss | AT8: Total Loss | AU8: Pout | AV8: EFF, h | AW8: =IF(Vin>Vout, "Buck ''CONTROL'' MOSFET Temp Rise", "Boost ''CONTROL'' MOSFET Temp Rise") -> Buck ''CONTROL'' MOSFET Temp Rise | AX8: =IF(Vin>Vout, "Buck ''SYNC'' MOSFET Temp Rise", "Boost ''SYNC'' MOSFET Temp Rise") -> Buck ''SYNC'' MOSFET Temp Rise | AZ8: h | BA8: Inductor Cu & Core Loss | BB8: Total MOSFET Loss | BC8: Control MOSFET Loss | BD8: SYNC MOSFET Loss | BE8: Shunt Loss
A9: Design | B9: Input Value | C9: Units | D9: Description | G9: 0 | H9: =Vin -> 24 | I9: =MODE -> 1 | J9: 0 | K9: =Iout*G9/100/Number_of_Phases -> 0 | L9: =Vout*K9/(Vin*Efficiency) -> 0 | M9: =(Vout+(Rdson2+Rs+Rdcr)*K9)/(Vin+(Rs+Rdson2-Rdson1)*K9) -> 0.5 | N9: =(Vin-(Rdson1+Rdcr)*K9-Vout)*M9/(Fsw*Lf) -> 2.005347594 | O9: =K9+N9/2 -> 1.002673797 | P9: =K9-N9/2 -> -1.002673797 | Q9: =IF(MIN(Vin, -P9/(Coss_Q1+Coss_Q2)*0.00000002)<0, 0, MIN(Vin, -P9/(Coss_Q1+Coss_Q2)*0.00000002)) -> 24 | R9: =SQRT(K9^2+(N9^2)/12) -> 0.5788939865 | S9: =R9^2*Rdcr -> 0.0006702364952 | T9: =Core_Loss_Ch1 -> 0.25 | U9: =(T9+S9*(1+Ltc*(Ta-25)))/(1-S9*Ltc*ThetaCa) -> 0.2506836779 | V9: =N9/SQRT(12) -> 0.5788939865 | W9: =RCoutEsr*V9^2 -> 0.0003351182476 | X9: =W9 -> 0.0003351182476 | Y9: =SQRT(M9*(1-M9))*SQRT(K9^2+(N9^2)/12) -> 0.2894469932 | Z9: =RCinEsr*Y9^2 -> 0.0001675591238 | AA9: =Z9 -> 0.0001675591238 | AB9: =SQRT(M9)*SQRT(K9^2+(N9^2)/12) -> 0.4093398634 | AC9: =Rdson1*AB9^2 -> 0.0007540160571 | AD9: =(Vin*K9/2)*Fsw*(Tr_buck+Tf_buck) -> 0 | AE9: =(0.5*Coss_Q1*(Vin-Q9)^2-0.5*Coss_Q2*(Vin-Q9)^2+(Qoss_Q2*(Vin-Q9)/Vin)*Vin)*Fsw -> 0 | AF9: =IF(K9>N9/2,0,ABS(K9-N9/2)*Vsd_Q1*Deadtime*Fsw) -> 0.004941176471 | AG9: =(AF9+AE9+AD9+AC9*(1+RdsonTopTc*Ta-RdsonTopTc*25))/(1-AC9*RdsonTopTc*ThetaJA_Q1) -> 0.005696051511 | AH9: =SQRT((1-M9))*SQRT(K9^2+(N9^2)/12) -> 0.4093398634 | AI9: =Rdson2*AH9^2 -> 0.0006115908019 | AJ9: =IF(K9<N9/2,Deadtime*Fsw*IF(VfdSky_Q2>0,0,Vsd_Q2)*(K9+N9/2),2*Deadtime*Fsw*IF(VfdSky_Q2>0,0,Vsd_Q2)*K9) -> 0.004941176471 | AK9: =(AJ9+AI9*(1+RdsonBotTc*Ta-RdsonBotTc*25))/(1-AI9*RdsonBotTc*ThetaJA_Q2) -> 0.00555344656 | AL9: =2*Deadtime*Fsw*IF(VfdSky_Q2>0,VfdSky_Q2,Vsd_Q2)*K9 -> 0 | AM9: =IF(QrrSky_Q2>0,QrrSky_Q2,Qrr_Q2*K9/(Iout/Number_of_Phases))*Fsw*Vin -> 0 | AN9: =Rs*R9^2 -> 0.0006702364952 | AO9: =Iq*Vin -> 0.00084 | AP9: =IF(Ext_VCC=1, (Qg_Q1+Qg_Q2)*Fsw*VCC, (Qg_Q1+Qg_Q2)*Fsw*Vin) -> 0.0374 | AQ9: =(Vin-VCC)*Fsw*(Qg_Q1+Qg_Q2)+(RdsonDRT+RdsonDRT2)*Fsw*Qg_Q1*VCC/(RdsonDRT+2*Rgate1+RdsonDRT2)+(RdsonDRB+RdsonDRB2)*Fsw*Qg_Q2*VCC/(RdsonDRB+2*Rgate2+RdsonDRB2) -> 0.17952 | AR9: =(Qg_Q1+Qg_Q2)*Fsw*(Vin-VCC) -> 0.14212 | AS9: =SUM(AO9:AP9) -> 0.03824 | AT9: =SUM(U9,X9,AA9,AG9,AK9,AL9,AM9,AS9,AN9) -> 0.3013460898 | AU9: =Vout*K9 -> 0 | AV9: =AU9/(AU9+AT9) -> 0 | AW9: =ThetaJA_Q1*BC9 -> 0.2848025755 | AX9: =ThetaJA_Q2*BD9 -> 0.277672328 | AZ9: =AV9*100 -> 0 | BA9: =U9 -> 0.2506836779 | BB9: =AG9+AK9+AM9 -> 0.01124949807 | BC9: =AG9+AM9*0.66 -> 0.005696051511 | BD9: =AK9+AM9*0.33 -> 0.00555344656 | BE9: =AN9 -> 0.0006702364952
G10: 1 | H10: 24 | I10: 1 | J10: =Iout*G10/100 -> 0.09 | K10: 0.09 | L10: 0.05 | M10: 0.5000265311 | N10: 2.005356236 | O10: =K10+N10/2 -> 1.092678118 | P10: =K10-N10/2 -> -0.912678118 | Q10: 24 | R10: =SQRT(K10^2+(N10^2)/12) -> 0.5858507797 | S10: 0.0006864422722 | T10: 0.25 | U10: 0.2507002096 | V10: =N10/SQRT(12) -> 0.5788964813 | W10: 0.0003351211361 | X10: =W10 -> 0.0003351211361 | Y10: =SQRT(M10*(1-M10))*SQRT(K10^2+(N10^2)/12) -> 0.2929253895 | Z10: 0.0001716105676 | AA10: =Z10 -> 0.0001716105676 | AB10: =SQRT(M10)*SQRT(K10^2+(N10^2)/12) -> 0.4142700497 | AC10: 0.0007722885334 | AD10: 0.001617164776 | AE10: 0 | AF10: 0.004497677765 | AG10: 0.006888195009 | AH10: 0.4142480682 | AI10: 0.0006263453363 | AJ10: 0.005384717765 | AK10: 0.006011816196 | AL10: 0.00088704 | AM10: 0.0013728 | AN10: 0.0006864422722 | AO10: 0.00084 | AP10: 0.0374 | AQ10: 0.17952 | AR10: 0.14212 | AS10: 0.03824 | AT10: 0.3052932348 | AU10: 1.08 | AV10: =AU10/(AU10+AT10) -> 0.7796183313 | AW10: 0.3897121505 | AX10: 0.3232420098 | AZ10: =AV10*100 -> 77.96183313 | BA10: 0.2507002096 | BB10: 0.01427281121 | BC10: 0.007794243009 | BD10: 0.006464840196 | BE10: 0.0006864422722
A11: Vin | B11: =Vin -> 24 | C11: V | D11: Vin | G11: 2 | H11: 24 | I11: 1 | J11: 0.18 | K11: 0.18 | L11: 0.1 | M11: 0.500053062 | N11: 2.005364867 | O11: 1.182682434 | P11: -0.8226824336 | Q11: 24 | R11: 0.6062375944 | S11: 0.0007350480417 | T11: 0.25 | U11: 0.2507497931 | V11: 0.5788989729 | W11: 0.0003351240209 | X11: 0.0003351240209 | Y11: 0.3031187955 | Z11: 0.0001837620084 | AA11: 0.0001837620084 | AB11: 0.4286974598 | AC11: 0.000827016804 | AD11: 0.003234329551 | AE11: 0 | AF11: 0.004054179033 | AG11: 0.008116867945 | AH11: 0.428651967 | AI11: 0.0006706601573 | AJ11: 0.005828259033 | AK11: 0.00649979102 | AL11: 0.00177408 | AM11: 0.0027456 | AN11: 0.0007350480417 | AO11: 0.00084 | AP11: 0.0374 | AQ11: 0.17952 | AR11: 0.14212 | AS11: 0.03824 | AT11: 0.3093800661 | AU11: 2.16 | AV11: 0.8747134674 | AW11: 0.4964481973 | AX11: 0.370291951 | AZ11: 87.47134674 | BA11: 0.2507497931 | BB11: 0.01736225897 | BC11: 0.009928963945 | BD11: 0.00740583902 | BE11: 0.0007350480417
A12: Vout | B12: =Vout -> 12 | C12: V | D12: Vout | G12: 3 | H12: 24 | I12: 1 | J12: 0.27 | K12: 0.27 | L12: 0.15 | M12: 0.5000795927 | N12: 2.005373487 | O12: 1.272686743 | P12: -0.7326867435 | Q12: 24 | R12: 0.6387698348 | S12: 0.0008160538037 | T12: 0.25 | U12: 0.2508324292 | V12: 0.5789014613 | W12: 0.0003351269018 | X12: 0.0003351269018 | Y12: 0.3193849134 | Z12: 0.0002040134458 | AA12: 0.0002040134458 | AB12: 0.4517144307 | AC12: 0.000918206671 | AD12: 0.004851494327 | AE12: 0 | AF12: 0.003610680272 | AG12: 0.009382104212 | AH12: 0.4516425301 | AI12: 0.0007445305586 | AJ12: 0.006271800272 | AK12: 0.007017375761 | AL12: 0.00266112 | AM12: 0.0041184 | AN12: 0.0008160538037 | AO12: 0.00084 | AP12: 0.0374 | AQ12: 0.17952 | AR12: 0.14212 | AS12: 0.03824 | AT12: 0.3136066233 | AU12: 3.24 | AV12: 0.9117497639 | AW12: 0.6050124106 | AX12: 0.418822388 | AZ12: 91.17497639 | BA12: 0.2508324292 | BB12: 0.02051787997 | BC12: 0.01210024821 | BD12: 0.008376447761 | BE12: 0.0008160538037
A13: Fsw | B13: =Fsw/1000 -> 440 | C13: kHz | D13: Switching Frequency | G13: 4 | H13: 24 | I13: 1 | J13: 0.36 | K13: 0.36 | L13: 0.2 | M13: 0.5001061232 | N13: 2.005382095 | O13: 1.362691048 | P13: -0.6426910477 | Q13: 21.82312556 | R13: 0.6817109205 | S13: 0.0009294595582 | T13: 0.25 | U13: 0.2509481192 | V13: 0.5789039463 | W13: 0.0003351297791 | X13: 0.0003351297791 | Y13: 0.3408554526 | Z13: 0.0002323648791 | AA13: 0.0002323648791 | AB13: 0.4820935678 | AC13: 0.001045863937 | AD13: 0.006468659102 | AE13: 0.01141987726 | AF13: 0.003167181483 | AG13: 0.0221062058 | AH13: 0.4819912561 | AI13: 0.0008479518339 | AJ13: 0.006715341483 | AK13: 0.007564576196 | AL13: 0.00354816 | AM13: 0.0054912 | AN13: 0.0009294595582 | AO13: 0.00084 | AP13: 0.0374 | AQ13: 0.17952 | AR13: 0.14212 | AS13: 0.03824 | AT13: 0.3293952155 | AU13: 4.32 | AV13: 0.9291531048 | AW13: 1.28651989 | AX13: 0.4688336098 | AZ13: 92.91531048 | BA13: 0.2509481192 | BB13: 0.035161982 | BC13: 0.0257303978 | BD13: 0.009376672196 | BE13: 0.0009294595582
A14: Iout | B14: =Iout -> 9 | C14: A | D14: Max Output Current | G14: 5 | H14: 24 | I14: 1 | J14: 0.45 | K14: 0.45 | L14: 0.25 | M14: 0.5001326534 | N14: 2.005390693 | O14: 1.452695346 | P14: -0.5526953464 | Q14: 18.76724436 | R14: 0.7332343776 | S14: 0.001075265305 | T14: 0.25 | U14: 0.251096865 | V14: 0.5789064281 | W14: 0.0003351326525 | X14: 0.0003351326525 | Y14: 0.3666171759 | Z14: 0.0002688163073 | AA14: 0.0002688163073 | AB14: 0.5185437735 | AC14: 0.001209994403 | AD14: 0.008085823878 | AE14: 0.02720124714 | AF14: 0.002723682667 | AG14: 0.03923024176 | AH14: 0.5184062186 | AI14: 0.0009809192773 | AJ14: 0.007158882667 | AK14: 0.008141399155 | AL14: 0.0044352 | AM14: 0.006864 | AN14: 0.001075265305 | AO14: 0.00084 | AP14: 0.0374 | AQ14: 0.17952 | AR14: 0.14212 | AS14: 0.03824 | AT14: 0.3496869201 | AU14: 5.4 | AV14: 0.939181572 | AW14: 2.188024088 | AX14: 0.5203259578 | AZ14: 93.9181572 | BA14: 0.251096865 | BB14: 0.05423564092 | BC14: 0.04376048176 | BD14: 0.01040651916 | BE14: 0.001075265305
A15: Ta | B15: =Ta -> 25 | C15: °C | D15: Ambient Temperature | G15: 6 | H15: 24 | I15: 1 | J15: 0.54 | K15: 0.54 | L15: 0.3 | M15: 0.5001591834 | N15: 2.005399279 | O15: 1.542699639 | P15: -0.4626996393 | Q15: 15.71136297 | R15: 0.7916662948 | S15: 0.001253471044 | T15: 0.25 | U15: 0.2512786687 | V15: 0.5789089067 | W15: 0.0003351355222 | X15: 0.0003351355222 | Y15: 0.3958331273 | Z15: 0.0003133677294 | AA15: 0.0003133677294 | AB15: 0.559881708 | AC15: 0.001410603872 | AD15: 0.009702988654 | AE15: 0.04269088605 | AF15: 0.002280183823 | AG15: 0.05610048951 | AH15: 0.5597034887 | AI15: 0.001143428183 | AJ15: 0.007602423823 | AK15: 0.008747852514 | AL15: 0.00532224 | AM15: 0.0082368 | AN15: 0.001253471044 | AO15: 0.00084 | AP15: 0.0374 | AQ15: 0.17952 | AR15: 0.14212 | AS15: 0.03824 | AT15: 0.369828025 | AU15: 6.48 | AV15: 0.9460091518 | AW15: 3.076838876 | AX15: 0.5732998257 | AZ15: 94.60091518 | BA15: 0.2512786687 | BB15: 0.07308514202 | BC15: 0.06153677751 | BD15: 0.01146599651 | BE15: 0.001253471044
A16: Vcc | B16: =VCC -> 5 | C16: V | D16: Subregulated VCC Voltage | G16: 7 | H16: 24 | I16: 1 | J16: 0.63 | K16: 0.63 | L16: 0.35 | M16: 0.5001857131 | N16: 2.005407853 | O16: 1.632703927 | P16: -0.3727039267 | Q16: 12.65548138 | R16: 0.8555924194 | S16: 0.001464076776 | T16: 0.25 | U16: 0.2514935332 | V16: 0.578911382 | W16: 0.0003351383882 | X16: 0.0003351383882 | Y16: 0.4277961802 | Z16: 0.0003660191436 | AA16: 0.0003660191436 | AB16: 0.6051075468 | AC16: 0.001647698145 | AD16: 0.01132015343 | AE16: 0.05788879394 | AF16: 0.001836684951 | AG16: 0.0727172937 | AH16: 0.6048828357 | AI16: 0.001335473844 | AJ16: 0.008045964951 | AK16: 0.009383945197 | AL16: 0.00620928 | AM16: 0.0096096 | AN16: 0.001464076776 | AO16: 0.00084 | AP16: 0.0374 | AQ16: 0.17952 | AR16: 0.14212 | AS16: 0.03824 | AT16: 0.3898188864 | AU16: 7.56 | AV16: 0.9509650607 | AW16: 3.952981485 | AX16: 0.6277556599 | AZ16: 95.09650607 | BA16: 0.2514935332 | BB16: 0.0917108389 | BC16: 0.0790596297 | BD16: 0.0125551132 | BE16: 0.001464076776
A17: Components | B17: Input Value | C17: Units | D17: Description | G17: 8 | H17: 24 | I17: 1 | J17: 0.72 | K17: 0.72 | L17: 0.4 | M17: 0.5002122427 | N17: 2.005416417 | O17: 1.722708208 | P17: -0.2827082084 | Q17: 9.599599605 | R17: 0.9238729622 | S17: 0.001707082501 | T17: 0.25 | U17: 0.251741462 | V17: 0.578913854 | W17: 0.0003351412504 | X17: 0.0003351412504 | Y17: 0.4619364395 | Z17: 0.0004267705483 | AA17: 0.0004267705483 | AB17: 0.6534154751 | AC17: 0.001921283024 | AD17: 0.0129373182 | AE17: 0.07279497076 | AF17: 0.001393186051 | AG17: 0.089080988 | AH17: 0.6531381686 | AI17: 0.001557051556 | AJ17: 0.008489506051 | AK17: 0.01004968718 | AL17: 0.00709632 | AM17: 0.0109824 | AN17: 0.001707082501 | AO17: 0.00084 | AP17: 0.0374 | AQ17: 0.17952 | AR17: 0.14212 | AS17: 0.03824 | AT17: 0.4096598515 | AU17: 8.64 | AV17: 0.9547320167 | AW17: 4.8164686 | AX17: 0.6836939591 | AZ17: 95.47320167 | BA17: 0.251741462 | BB17: 0.1101130752 | BC17: 0.096329372 | BD17: 0.01367387918 | BE17: 0.001707082501
A18: L | B18: =Lf*1000000 -> 6.8 | C18: uH | D18: Filter Inductance | G18: 9 | H18: 24 | I18: 1 | J18: 0.81 | K18: 0.81 | L18: 0.45 | M18: 0.500238772 | N18: 2.005424969 | O18: 1.812712484 | P18: -0.1927124844 | Q18: 6.543717637 | R18: 0.995612429 | S18: 0.001982488218 | T18: 0.25 | U18: 0.2520224587 | V18: 0.5789163228 | W18: 0.0003351441088 | X18: 0.0003351441088 | Y18: 0.4978061577 | Z18: 0.0004956219414 | AA18: 0.0004956219414 | AB18: 0.7041723764 | AC18: 0.002231364311 | AD18: 0.01455448298 | AE18: 0.08740941646 | AF18: 0.0009496871231 | AG18: 0.1051918952 | AH18: 0.7038361834 | AI18: 0.001808156612 | AJ18: 0.008933047123 | AK18: 0.0107450895 | AL18: 0.00798336 | AM18: 0.0123552 | AN18: 0.001982488218 | AO18: 0.00084 | AP18: 0.0374 | AQ18: 0.17952 | AR18: 0.14212 | AS18: 0.03824 | AT18: 0.4293512577 | AU18: 9.72 | AV18: 0.9576966796 | AW18: 5.667316358 | AX18: 0.7411152748 | AZ18: 95.76966796 | BA18: 0.2520224587 | BB18: 0.1282921847 | BC18: 0.1133463272 | BD18: 0.0148223055 | BE18: 0.001982488218
A19: Rdcr | B19: =Rdcr*1000 -> 2 | C19: mW | D19: Inductor DCR at 25°C | G19: 10 | H19: 24 | I19: 1 | J19: 0.9 | K19: 0.9 | L19: 0.5 | M19: 0.5002653011 | N19: 2.00543351 | O19: 1.902716755 | P19: -0.1027167548 | Q19: 3.487835477 | R19: 1.070115397 | S19: 0.002290293927 | T19: 0.25 | U19: 0.2523365279 | V19: 0.5789187883 | W19: 0.0003351469634 | X19: 0.0003351469634 | Y19: 0.5350576233 | Z19: 0.0005725733205 | AA19: 0.0005725733205 | AB19: 0.756886577 | AC19: 0.002577947807 | AD19: 0.01617164776 | AE19: 0.101732131 | AF19: 0.0005061881676 | AG19: 0.121050327 | AH19: 0.7564850779 | AI19: 0.002088784307 | AJ19: 0.009376588168 | AK19: 0.01147016421 | AL19: 0.0088704 | AM19: 0.013728 | AN19: 0.002290293927 | AO19: 0.00084 | AP19: 0.0374 | AQ19: 0.17952 | AR19: 0.14212 | AS19: 0.03824 | AT19: 0.4488934333 | AU19: 10.8 | AV19: 0.9600944363 | AW19: 6.505540349 | AX19: 0.8000202107 | AZ19: 96.00944363 | BA19: 0.2523365279 | BB19: 0.1462484912 | BC19: 0.130110807 | BD19: 0.01600040421 | BE19: 0.002290293927
A20: LTc | B20: =Ltc*1000000 -> 4000 | C20: ppm | D20: Inductor Series Resistance Temp Co | G20: 11 | H20: 24 | I20: 1 | J20: 0.99 | K20: 0.99 | L20: 0.55 | M20: 0.5002918299 | N20: 2.005442039 | O20: 1.99272102 | P20: -0.01272101954 | Q20: 0.4319531254 | R20: 1.146843413 | S20: 0.002630499629 | T20: 0.25 | U20: 0.2526836744 | V20: 0.5789212506 | W20: 0.0003351498143 | X20: 0.0003351498143 | Y20: 0.5734216089 | Z20: 0.0006576246831 | AA20: 0.0006576246831 | AB20: 0.8111773767 | AC20: 0.002961039314 | AD20: 0.01778881253 | AE20: 0.1157631142 | AF20: 6.268918431e-05 | AG20: 0.1366565844 | AH20: 0.8107040631 | AI20: 0.002398929934 | AJ20: 0.009820129184 | AK20: 0.01222492447 | AL20: 0.00975744 | AM20: 0.0151008 | AN20: 0.002630499629 | AO20: 0.00084 | AP20: 0.0374 | AQ20: 0.17952 | AR20: 0.14212 | AS20: 0.03824 | AT20: 0.4682866973 | AU20: 11.88 | AV20: 0.9620767878 | AW20: 7.331155619 | AX20: 0.8604094233 | AZ20: 96.20767878 | BA20: 0.2526836744 | BB20: 0.1639823088 | BC20: 0.1466231124 | BD20: 0.01720818847 | BE20: 0.002630499629
A21: ThetaCa | B21: =ThetaCa -> 20 | C21: °C/W | D21: Core to Ambient Thermal Resistance | G21: 12 | H21: 24 | I21: 1 | J21: 1.08 | K21: 1.08 | L21: 0.6 | M21: 0.5003183585 | N21: 2.005450557 | O21: 2.082725279 | P21: 0.07727472135 | Q21: 0 | R21: 1.225378579 | S21: 0.003003105323 | T21: 0.25 | U21: 0.2530639035 | V21: 0.5789237095 | W21: 0.0003351526615 | X21: 0.0003351526615 | Y21: 0.6126891652 | Z21: 0.0007507760264 | AA21: 0.0007507760264 | AB21: 0.8667493079 | AC21: 0.003380644633 | AD21: 0.01940597731 | AE21: 0.11772288 | AF21: 0 | AG21: 0.1406045688 | AH21: 0.8661976095 | AI21: 0.00273858879 | AJ21: 0.01064448 | AK21: 0.01339040295 | AL21: 0.01064448 | AM21: 0.0164736 | AN21: 0.003003105323 | AO21: 0.00084 | AP21: 0.0374 | AQ21: 0.17952 | AR21: 0.14212 | AS21: 0.03824 | AT21: 0.4765059892 | AU21: 12.96 | AV21: 0.9645364658 | AW21: 7.573857238 | AX21: 0.9413345476 | AZ21: 96.45364658 | BA21: 0.2530639035 | BB21: 0.1704685717 | BC21: 0.1514771448 | BD21: 0.01882669095 | BE21: 0.003003105323
A22: Cin | B22: =Cin*1000000 -> 20 | C22: μF | D22: Input Capacitance | G22: 13 | H22: 24 | I22: 1 | J22: 1.17 | K22: 1.17 | L22: 0.65 | M22: 0.5003448869 | N22: 2.005459064 | O22: 2.172729532 | P22: 0.1672704679 | Q22: 0 | R22: 1.30539477 | S22: 0.00340811101 | T22: 0.25 | U22: 0.2534772213 | V22: 0.5789261653 | W22: 0.0003351555049 | X22: 0.0003351555049 | Y22: 0.6526972296 | Z22: 0.000852027347 | AA22: 0.000852027347 | AB22: 0.923371788 | AC22: 0.003836769565 | AD22: 0.02102314208 | AE22: 0.11772288 | AF22: 0 | AG22: 0.1426922871 | AH22: 0.9227350898 | AI22: 0.003107756168 | AJ22: 0.01153152 | AK22: 0.01464838089 | AL22: 0.01153152 | AM22: 0.0178464 | AN22: 0.00340811101 | AO22: 0.00084 | AP22: 0.0374 | AQ22: 0.17952 | AR22: 0.14212 | AS22: 0.03824 | AT22: 0.4830311032 | AU22: 14.04 | AV22: 0.9667403382 | AW22: 7.723545557 | AX22: 1.026884644 | AZ22: 96.67403382 | BA22: 0.2534772213 | BB22: 0.175187068 | BC22: 0.1544709111 | BD22: 0.02053769289 | BE22: 0.00340811101
A23: RCinEsr | B23: =RCinEsr*1000 -> 2 | C23: mW | D23: Input Capacitor ESR | G23: 14 | H23: 24 | I23: 1 | J23: 1.26 | K23: 1.26 | L23: 0.7 | M23: 0.5003714151 | N23: 2.00546756 | O23: 2.26273378 | P23: 0.2572662201 | Q23: 0 | R23: 1.386635621 | S23: 0.003845516689 | T23: 0.25 | U23: 0.2539236341 | V23: 0.5789286178 | W23: 0.0003351583445 | X23: 0.0003351583445 | Y23: 0.693317619 | Z23: 0.0009613786417 | AA23: 0.0009613786417 | AB23: 0.9808635551 | AC23: 0.004329419912 | AD23: 0.02264030686 | AE23: 0.11772288 | AF23: 0 | AG23: 0.1448180024 | AH23: 0.9801352105 | AI23: 0.003506427362 | AJ23: 0.01241856 | AK23: 0.01593616316 | AL23: 0.01241856 | AM23: 0.0192192 | AN23: 0.003845516689 | AO23: 0.00084 | AP23: 0.0374 | AQ23: 0.17952 | AR23: 0.14212 | AS23: 0.03824 | AT23: 0.4896976133 | AU23: 15.12 | AV23: 0.9686286291 | AW23: 7.875133718 | AX23: 1.113924958 | AZ23: 96.86286291 | BA23: 0.2539236341 | BB23: 0.1799733655 | BC23: 0.1575026744 | BD23: 0.02227849916 | BE23: 0.003845516689
A24: Cout | B24: =Cout*1000000 -> 240 | C24: μF | D24: Output Capcitance | G24: 15 | H24: 24 | I24: 1 | J24: 1.35 | K24: 1.35 | L24: 0.75 | M24: 0.500397943 | N24: 2.005476044 | O24: 2.352738022 | P24: 0.3472619779 | Q24: 0 | R24: 1.468897948 | S24: 0.004315322361 | T24: 0.25 | U24: 0.2544031489 | V24: 0.578931067 | W24: 0.0003351611803 | X24: 0.0003351611803 | Y24: 0.7344487412 | Z24: 0.001078829907 | AA24: 0.001078829907 | AB24: 1.039080948 | AC24: 0.004858601474 | AD24: 0.02425747163 | AE24: 0.11772288 | AF24: 0 | AG24: 0.1469817783 | AH24: 1.038254287 | AI24: 0.003934597669 | AJ24: 0.0133056 | AK24: 0.017253775 | AL24: 0.0133056 | AM24: 0.020592 | AN24: 0.004315322361 | AO24: 0.00084 | AP24: 0.0374 | AQ24: 0.17952 | AR24: 0.14212 | AS24: 0.03824 | AT24: 0.4965056156 | AU24: 16.2 | AV24: 0.9702629025 | AW24: 8.028624914 | AX24: 1.20245675 | AZ24: 97.02629025 | BA24: 0.2544031489 | BB24: 0.1848275533 | BC24: 0.1605724983 | BD24: 0.024049135 | BE24: 0.004315322361
A25: RCoutEsr | B25: =Cout_ESR*1000 -> 1 | C25: mW | D25: Output Capacitor ESR | G25: 16 | H25: 24 | I25: 1 | J25: 1.44 | K25: 1.44 | L25: 0.8 | M25: 0.5004244707 | N25: 2.005484517 | O25: 2.442742259 | P25: 0.4372577414 | Q25: 0 | R25: 1.552019334 | S25: 0.004817528025 | T25: 0.25 | U25: 0.2549157731 | V25: 0.5789335129 | W25: 0.0003351640124 | X25: 0.0003351640124 | Y25: 0.7760093872 | Z25: 0.001204381138 | AA25: 0.001204381138 | AB25: 1.097909129 | AC25: 0.005424320052 | AD25: 0.02587463641 | AE25: 0.11772288 | AF25: 0 | AG25: 0.1491836805 | AH25: 1.096977464 | AI25: 0.004392262381 | AJ25: 0.01419264 | AK25: 0.01860124269 | AL25: 0.01419264 | AM25: 0.0219648 | AN25: 0.004817528025 | AO25: 0.00084 | AP25: 0.0374 | AQ25: 0.17952 | AR25: 0.14212 | AS25: 0.03824 | AT25: 0.5034552095 | AU25: 17.28 | AV25: 0.9716896855 | AW25: 8.184022423 | AX25: 1.292481334 | AZ25: 97.16896855 | BA25: 0.2549157731 | BB25: 0.1897497232 | BC25: 0.1636804485 | BD25: 0.02584962669 | BE25: 0.004817528025
A26: Top Driver | B26: Input Value | C26: Units | D26: Description | G26: 17 | H26: 24 | I26: 1 | J26: 1.53 | K26: 1.53 | L26: 0.85 | M26: 0.5004509982 | N26: 2.005492979 | O26: 2.532746489 | P26: 0.5272535105 | Q26: 0 | R26: 1.635868834 | S26: 0.005352133681 | T26: 0.25 | U26: 0.2554615148 | V26: 0.5789359556 | W26: 0.0003351668407 | X26: 0.0003351668407 | Y26: 0.8179340841 | Z26: 0.001338032332 | AA26: 0.001338032332 | AB26: 1.157255513 | AC26: 0.006026581447 | AD26: 0.02749180119 | AE26: 0.11772288 | AF26: 0 | AG26: 0.1514237762 | AH26: 1.156212143 | AI26: 0.004879416795 | AJ26: 0.01507968 | AK26: 0.01997859357 | AL26: 0.01507968 | AM26: 0.0233376 | AN26: 0.005352133681 | AO26: 0.00084 | AP26: 0.0374 | AQ26: 0.17952 | AR26: 0.14212 | AS26: 0.03824 | AT26: 0.5105464974 | AU26: 18.36 | AV26: 0.9729447953 | AW26: 8.341329609 | AX26: 1.384000079 | AZ26: 97.29447953 | BA26: 0.2554615148 | BB26: 0.1947399697 | BC26: 0.1668265922 | BD26: 0.02768000157 | BE26: 0.005352133681
A27: RdsonDRT | B27: 0.7 | C27: W | D27: Drain to Source Resistance of pullup Top FET Driver | G27: 18 | H27: 24 | I27: 1 | J27: 1.62 | K27: 1.62 | L27: 0.9 | M27: 0.5004775254 | N27: 2.005501429 | O27: 2.622750715 | P27: 0.6172492853 | Q27: 0 | R27: 1.720339985 | S27: 0.005919139331 | T27: 0.25 | U27: 0.2560403824 | V27: 0.5789383951 | W27: 0.0003351696653 | X27: 0.0003351696653 | Y27: 0.8601696004 | Z27: 0.001479783483 | AA27: 0.001479783483 | AB27: 1.217044824 | AC27: 0.006665391461 | AD27: 0.02910896596 | AE27: 0.11772288 | AF27: 0 | AG27: 0.1537021344 | AH27: 1.215883038 | AI27: 0.005396056204 | AJ27: 0.01596672 | AK27: 0.02138585606 | AL27: 0.01596672 | AM27: 0.0247104 | AN27: 0.005919139331 | AO27: 0.00084 | AP27: 0.0374 | AQ27: 0.17952 | AR27: 0.14212 | AS27: 0.03824 | AT27: 0.5177795854 | AU27: 19.44 | AV27: 0.9740562529 | AW27: 8.50054992 | AX27: 1.477014403 | AZ27: 97.40562529 | BA27: 0.2560403824 | BB27: 0.1997983905 | BC27: 0.1700109984 | BD27: 0.02954028806 | BE27: 0.005919139331
A28: RdsonDRT2 | B28: =RdsonDRT2 -> 0.5 | C28: W | D28: Drain to Source Resistance of pulldown Top FET Driver | G28: 19 | H28: 24 | I28: 1 | J28: 1.71 | K28: 1.71 | L28: 0.95 | M28: 0.5005040524 | N28: 2.005509869 | O28: 2.712754934 | P28: 0.7072450657 | Q28: 0 | R28: 1.805345531 | S28: 0.006518544972 | T28: 0.25 | U28: 0.256652385 | V28: 0.5789408312 | W28: 0.0003351724861 | X28: 0.0003351724861 | Y28: 0.9026723068 | Z28: 0.001629634587 | AA28: 0.001629634587 | AB28: 1.277215365 | AC28: 0.007340755893 | AD28: 0.03072613074 | AE28: 0.11772288 | AF28: 0 | AG28: 0.1560188259 | AH28: 1.275928446 | AI28: 0.005942175905 | AJ28: 0.01685376 | AK28: 0.02282305963 | AL28: 0.01685376 | AM28: 0.0260832 | AN28: 0.006518544972 | AO28: 0.00084 | AP28: 0.0374 | AQ28: 0.17952 | AR28: 0.14212 | AS28: 0.03824 | AT28: 0.5251545825 | AU28: 20.52 | AV28: 0.9750462948 | AW28: 8.661686893 | AX28: 1.571525782 | AZ28: 97.50462948 | BA28: 0.256652385 | BB28: 0.2049250855 | BC28: 0.1732337379 | BD28: 0.03143051563 | BE28: 0.006518544972
A29: Bottom Driver | B29: Input Value | C29: Units | D29: Description | G29: 20 | H29: 24 | I29: 1 | J29: 1.8 | K29: 1.8 | L29: 1 | M29: 0.5005305792 | N29: 2.005518296 | O29: 2.802759148 | P29: 0.7972408518 | Q29: 0 | R29: 1.890813397 | S29: 0.007150350606 | T29: 0.25 | U29: 0.257297532 | V29: 0.5789432642 | W29: 0.0003351753031 | X29: 0.0003351753031 | Y29: 0.9454061663 | Z29: 0.001787585639 | AA29: 0.001787585639 | AB29: 1.337716175 | AC29: 0.008052680544 | AD29: 0.03234329551 | AE29: 0.11772288 | AF29: 0 | AG29: 0.158373923 | AH29: 1.336297399 | AI29: 0.006517771193 | AJ29: 0.0177408 | AK29: 0.02429023483 | AL29: 0.0177408 | AM29: 0.027456 | AN29: 0.007150350606 | AO29: 0.00084 | AP29: 0.0374 | AQ29: 0.17952 | AR29: 0.14212 | AS29: 0.03824 | AT29: 0.5326716014 | AU29: 21.6 | AV29: 0.9759327924 | AW29: 8.824744149 | AX29: 1.667535742 | AZ29: 97.59327924 | BA29: 0.257297532 | BB29: 0.2101201578 | BC29: 0.176494883 | BD29: 0.03335071483 | BE29: 0.007150350606
A30: RdsonDRB | B30: 0.7 | C30: W | D30: Drain to Source Resistance of pullup Bottom FET Driver | G30: 21 | H30: 24 | I30: 1 | J30: 1.89 | K30: 1.89 | L30: 1.05 | M30: 0.5005571058 | N30: 2.005526713 | O30: 2.892763357 | P30: 0.8872366435 | Q30: 0 | R30: 1.976683616 | S30: 0.007814556233 | T30: 0.25 | U30: 0.2579758336 | V30: 0.5789456938 | W30: 0.0003351781164 | X30: 0.0003351781164 | Y30: 0.9883411943 | Z30: 0.001953636633 | AA30: 0.001953636633 | AB30: 1.398504854 | AC30: 0.008801171215 | AD30: 0.03396046029 | AE30: 0.11772288 | AF30: 0 | AG30: 0.1607675 | AH30: 1.39694749 | AI30: 0.007122837362 | AJ30: 0.01862784 | AK30: 0.02578741327 | AL30: 0.01862784 | AM30: 0.0288288 | AN30: 0.007814556233 | AO30: 0.00084 | AP30: 0.0374 | AQ30: 0.17952 | AR30: 0.14212 | AS30: 0.03824 | AT30: 0.5403307578 | AU30: 22.68 | AV30: 0.976730273 | AW30: 8.989725398 | AX30: 1.765045864 | AZ30: 97.6730273 | BA30: 0.2579758336 | BB30: 0.2153837132 | BC30: 0.179794508 | BD30: 0.03530091727 | BE30: 0.007814556233
A31: RdsonDRB2 | B31: 0.5 | C31: W | D31: Drain to Source Resistance of pulldown Bottom FET Driver | G31: 22 | H31: 24 | I31: 1 | J31: 1.98 | K31: 1.98 | L31: 1.1 | M31: 0.5005836321 | N31: 2.005535118 | O31: 2.982767559 | P31: 0.9772324408 | Q31: 0 | R31: 2.062905942 | S31: 0.008511161852 | T31: 0.25 | U31: 0.2586873002 | V31: 0.5789481202 | W31: 0.0003351809259 | X31: 0.0003351809259 | Y31: 1.031452268 | Z31: 0.002127787564 | AA31: 0.002127787564 | AB31: 1.459545873 | AC31: 0.009586233705 | AD31: 0.03557762506 | AE31: 0.11772288 | AF31: 0 | AG31: 0.1631996327 | AH31: 1.457843191 | AI31: 0.007757369708 | AJ31: 0.01951488 | AK31: 0.02731462764 | AL31: 0.01951488 | AM31: 0.0302016 | AN31: 0.008511161852 | AO31: 0.00084 | AP31: 0.0374 | AQ31: 0.17952 | AR31: 0.14212 | AS31: 0.03824 | AT31: 0.5481321709 | AU31: 23.76 | AV31: 0.9774506668 | AW31: 9.156634437 | AX31: 1.864057782 | AZ31: 97.74506668 | BA31: 0.2586873002 | BB31: 0.2207158604 | BC31: 0.1831326887 | BD31: 0.03728115564 | BE31: 0.008511161852
A32: Deadtime | B32: 0.5 | C32: Units | D32: Description | G32: 23 | H32: 24 | I32: 1 | J32: 2.07 | K32: 2.07 | L32: 1.15 | M32: 0.5006101582 | N32: 2.005543512 | O32: 3.072771756 | P32: 1.067228244 | Q32: 0 | R32: 2.149438004 | S32: 0.009240167463 | T32: 0.25 | U32: 0.259431943 | V32: 0.5789505434 | W32: 0.0003351837317 | X32: 0.0003351837317 | Y32: 1.074718202 | Z32: 0.002310038426 | AA32: 0.002310038426 | AB32: 1.520809274 | AC32: 0.01040787382 | AD32: 0.03719478984 | AE32: 0.11772288 | AF32: 0 | AG32: 0.165670399 | AH32: 1.518954536 | AI32: 0.008421363526 | AJ32: 0.02040192 | AK32: 0.0288719117 | AL32: 0.02040192 | AM32: 0.0315744 | AN32: 0.009240167463 | AO32: 0.00084 | AP32: 0.0374 | AQ32: 0.17952 | AR32: 0.14212 | AS32: 0.03824 | AT32: 0.5560759633 | AU32: 24.84 | AV32: 0.9781038628 | AW32: 9.325475149 | AX32: 1.964573185 | AZ32: 97.81038628 | BA32: 0.259431943 | BB32: 0.2261167107 | BC32: 0.186509503 | BD32: 0.0392914637 | BE32: 0.009240167463
A33: Deadtime | B33: =Deadtime*1000000000 -> 14 | C33: ns | D33: Total Deadtime | G33: 24 | H33: 24 | I33: 1 | J33: 2.16 | K33: 2.16 | L33: 1.2 | M33: 0.5006366841 | N33: 2.005551895 | O33: 3.162775948 | P33: 1.157224052 | Q33: 0 | R33: 2.236243845 | S33: 0.01000157307 | T33: 0.25 | U33: 0.2602097736 | V33: 0.5789529633 | W33: 0.0003351865337 | X33: 0.0003351865337 | Y33: 1.118121016 | Z33: 0.002500389213 | AA33: 0.002500389213 | AB33: 1.582269632 | AC33: 0.01126609735 | AD33: 0.03881195461 | AE33: 0.11772288 | AF33: 0 | AG33: 0.1681798781 | AH33: 1.580256101 | AI33: 0.009114814111 | AJ33: 0.02128896 | AK33: 0.03045930028 | AL33: 0.02128896 | AM33: 0.0329472 | AN33: 0.01000157307 | AO33: 0.00084 | AP33: 0.0374 | AQ33: 0.17952 | AR33: 0.14212 | AS33: 0.03824 | AT33: 0.5641622609 | AU33: 25.92 | AV33: 0.978698127 | AW33: 9.496251507 | AX33: 2.066593814 | AZ33: 97.8698127 | BA33: 0.2602097736 | BB33: 0.2315863784 | BC33: 0.1899250301 | BD33: 0.04133187628 | BE33: 0.01000157307
A34: IQ | B34: Input Value | C34: Units | D34: Description | G34: 25 | H34: 24 | I34: 1 | J34: 2.25 | K34: 2.25 | L34: 1.25 | M34: 0.5006632097 | N34: 2.005560267 | O34: 3.252780133 | P34: 1.247219867 | Q34: 0 | R34: 2.323292778 | S34: 0.01079537866 | T34: 0.25 | U34: 0.2610208041 | V34: 0.5789553799 | W34: 0.0003351893319 | X34: 0.0003351893319 | Y34: 1.161645367 | Z34: 0.002698839918 | AA34: 0.002698839918 | AB34: 1.643905249 | AC34: 0.0121609101 | AD34: 0.04042911939 | AE34: 0.11772288 | AF34: 0 | AG34: 0.1707281514 | AH34: 1.641726185 | AI34: 0.00983771676 | AJ34: 0.022176 | AK34: 0.03207682931 | AL34: 0.022176 | AM34: 0.03432 | AN34: 0.01079537866 | AO34: 0.00084 | AP34: 0.0374 | AQ34: 0.17952 | AR34: 0.14212 | AS34: 0.03824 | AT34: 0.5723911928 | AU34: 27 | AV34: 0.9792404225 | AW34: 9.668967571 | AX34: 2.170121466 | AZ34: 97.92404225 | BA34: 0.2610208041 | BB34: 0.2371249807 | BC34: 0.1933793514 | BD34: 0.04340242931 | BE34: 0.01079537866
A35: IQ | B35: =Iq*1000 -> 0.035 | C35: mA | D35: Quiescent Current Of Controller (Not Switching!) | G35: 26 | H35: 24 | I35: 1 | J35: 2.34 | K35: 2.34 | L35: 1.3 | M35: 0.5006897352 | N35: 2.005568627 | O35: 3.342784313 | P35: 1.337215687 | Q35: 0 | R35: 2.410558468 | S35: 0.01162158425 | T35: 0.25 | U35: 0.2618650472 | V35: 0.5789577933 | W35: 0.0003351921264 | X35: 0.0003351921264 | Y35: 1.205278087 | Z35: 0.002905390534 | AA35: 0.002905390534 | AB35: 1.705697503 | AC35: 0.01309231787 | AD35: 0.04204628417 | AE35: 0.11772288 | AF35: 0 | AG35: 0.1733153018 | AH35: 1.703346164 | AI35: 0.01059006677 | AJ35: 0.02306304 | AK35: 0.03372453578 | AL35: 0.02306304 | AM35: 0.0356928 | AN35: 0.01162158425 | AO35: 0.00084 | AP35: 0.0374 | AQ35: 0.17952 | AR35: 0.14212 | AS35: 0.03824 | AT35: 0.5807628917 | AU35: 28.08 | AV35: 0.9797366562 | AW35: 9.843627492 | AX35: 2.275157989 | AZ35: 97.97366562 | BA35: 0.2618650472 | BB35: 0.2427326376 | BC35: 0.1968725498 | BD35: 0.04550315978 | BE35: 0.01162158425
A36: High-side FET | B36: Input Value | C36: Units | D36: Description | G36: 27 | H36: 24 | I36: 1 | J36: 2.43 | K36: 2.43 | L36: 1.35 | M36: 0.5007162604 | N36: 2.005576976 | O36: 3.432788488 | P36: 1.427211512 | Q36: 0 | R36: 2.498018198 | S36: 0.01248018983 | T36: 0.25 | U36: 0.262742516 | V36: 0.5789602034 | W36: 0.0003351949171 | X36: 0.0003351949171 | Y36: 1.249007817 | Z36: 0.003120041056 | AA36: 0.003120041056 | AB36: 1.767630332 | AC36: 0.01406032646 | AD36: 0.04366344894 | AE36: 0.11772288 | AF36: 0 | AG36: 0.1759414141 | AH36: 1.765099976 | AI36: 0.01137185943 | AJ36: 0.02395008 | AK36: 0.03540245778 | AL36: 0.02395008 | AM36: 0.0370656 | AN36: 0.01248018983 | AO36: 0.00084 | AP36: 0.0374 | AQ36: 0.17952 | AR36: 0.14212 | AS36: 0.03824 | AT36: 0.5892774937 | AU36: 29.16 | AV36: 0.9801918721 | AW36: 10.02023551 | AX36: 2.381705289 | AZ36: 98.01918721 | BA36: 0.262742516 | BB36: 0.2484094719 | BC36: 0.2004047101 | BD36: 0.04763410578 | BE36: 0.01248018983
A37: RdsonTop | B37: =Rdson1*1000 -> 4.5 | C37: mW | D37: Drain-Source Resistance of Top FET | G37: 28 | H37: 24 | I37: 1 | J37: 2.52 | K37: 2.52 | L37: 1.4 | M37: 0.5007427853 | N37: 2.005585313 | O37: 3.522792657 | P37: 1.517207343 | Q37: 0 | R37: 2.585652278 | S37: 0.01337119541 | T37: 0.25 | U37: 0.2636532241 | V37: 0.5789626102 | W37: 0.000335197704 | X37: 0.000335197704 | Y37: 1.292824713 | Z37: 0.003342791475 | AA37: 0.003342791475 | AB37: 1.829689814 | AC37: 0.01506494167 | AD37: 0.04528061372 | AE37: 0.11772288 | AF37: 0 | AG37: 0.1786065749 | AH37: 1.826973697 | AI37: 0.01218309004 | AJ37: 0.02483712 | AK37: 0.03711063448 | AL37: 0.02483712 | AM37: 0.0384384 | AN37: 0.01337119541 | AO37: 0.00084 | AP37: 0.0374 | AQ37: 0.17952 | AR37: 0.14212 | AS37: 0.03824 | AT37: 0.5979351381 | AU37: 30.24 | AV37: 0.9806104029 | AW37: 10.19879595 | AX37: 2.489765324 | AZ37: 98.06104029 | BA37: 0.2636532241 | BB37: 0.2541556094 | BC37: 0.2039759189 | BD37: 0.04979530648 | BE37: 0.01337119541
A38: RdsonTopTc | B38: =RdsonTopTc*1000000 -> 4000 | C38: ppm | D38: Drain to Source Resistance Temp Co | G38: 29 | H38: 24 | I38: 1 | J38: 2.61 | K38: 2.61 | L38: 1.45 | M38: 0.50076931 | N38: 2.005593639 | O38: 3.61279682 | P38: 1.60720318 | Q38: 0 | R38: 2.673443563 | S38: 0.01429460097 | T38: 0.25 | U38: 0.2645971859 | V38: 0.5789650138 | W38: 0.0003352004872 | X38: 0.0003352004872 | Y38: 1.3367202 | Z38: 0.003573641784 | AA38: 0.003573641784 | AB38: 1.891863825 | AC38: 0.0161061693 | AD38: 0.04689777849 | AE38: 0.11772288 | AF38: 0 | AG38: 0.1813108725 | AH38: 1.888955202 | AI38: 0.0130237539 | AJ38: 0.02572416 | AK38: 0.03884910614 | AL38: 0.02572416 | AM38: 0.0398112 | AN38: 0.01429460097 | AO38: 0.00084 | AP38: 0.0374 | AQ38: 0.17952 | AR38: 0.14212 | AS38: 0.03824 | AT38: 0.6067359678 | AU38: 31.32 | AV38: 0.9809959913 | AW38: 10.37931323 | AX38: 2.599340107 | AZ38: 98.09959913 | BA38: 0.2645971859 | BB38: 0.2599711787 | BC38: 0.2075862645 | BD38: 0.05198680214 | BE38: 0.01429460097
A39: QgTop | B39: =Qg_Q1*1000000000 -> 8 | C39: nC | D39: Gate Charge Of Top FET | G39: 30 | H39: 24 | I39: 1 | J39: 2.7 | K39: 2.7 | L39: 1.5 | M39: 0.5007958345 | N39: 2.005601954 | O39: 3.702800977 | P39: 1.697199023 | Q39: 0 | R39: 2.76137706 | S39: 0.01525040653 | T39: 0.25 | U39: 0.265574416 | V39: 0.5789674141 | W39: 0.0003352032666 | X39: 0.0003352032666 | Y39: 1.380686781 | Z39: 0.003812591974 | AA39: 0.003812591974 | AB39: 1.954141764 | AC39: 0.01718401515 | AD39: 0.04851494327 | AE39: 0.11772288 | AF39: 0 | AG39: 0.1840543971 | AH39: 1.951033888 | AI39: 0.0138938463 | AJ39: 0.0266112 | AK39: 0.04061791411 | AL39: 0.0266112 | AM39: 0.041184 | AN39: 0.01525040653 | AO39: 0.00084 | AP39: 0.0374 | AQ39: 0.17952 | AR39: 0.14212 | AS39: 0.03824 | AT39: 0.615680129 | AU39: 32.4 | AV39: 0.9813518871 | AW39: 10.56179186 | AX39: 2.710431706 | AZ39: 98.13518871 | BA39: 0.265574416 | BB39: 0.2658563112 | BC39: 0.2112358371 | BD39: 0.05420863411 | BE39: 0.01525040653
A40: QgdTop | B40: =Qgd_Q1*1000000000 -> 3.1 | C40: nC | D40: Gate to Drain Charge | G40: 31 | H40: 24 | I40: 1 | J40: 2.79 | K40: 2.79 | L40: 1.55 | M40: 0.5008223588 | N40: 2.005610258 | O40: 3.792805129 | P40: 1.787194871 | Q40: 0 | R40: 2.849439601 | S40: 0.01623861208 | T40: 0.25 | U40: 0.2665849296 | V40: 0.5789698112 | W40: 0.0003352060423 | X40: 0.0003352060423 | Y40: 1.424717874 | Z40: 0.004059642039 | AA40: 0.004059642039 | AB40: 2.01651432 | AC40: 0.01829848502 | AD40: 0.05013210804 | AE40: 0.11772288 | AF40: 0 | AG40: 0.1868372408 | AH40: 2.013200447 | AI40: 0.01479336254 | AJ40: 0.02749824 | AK40: 0.04241710085 | AL40: 0.02749824 | AM40: 0.0425568 | AN40: 0.01623861208 | AO40: 0.00084 | AP40: 0.0374 | AQ40: 0.17952 | AR40: 0.14212 | AS40: 0.03824 | AT40: 0.6247677714 | AU40: 33.48 | AV40: 0.9816809258 | AW40: 10.74623644 | AX40: 2.823042242 | AZ40: 98.16809258 | BA40: 0.2665849296 | BB40: 0.2718111416 | BC40: 0.2149247288 | BD40: 0.05646084485 | BE40: 0.01623861208
A41: QgsTop | B41: =Qgs_Q1*1000000000 -> 2.9 | C41: nC | G41: 32 | H41: =Vin -> 24 | I41: =MODE -> 1 | J41: 2.88 | K41: =Iout*G41/100/Number_of_Phases -> 2.88 | L41: =Vout*K41/(Vin*Efficiency) -> 1.6 | M41: =(Vout+(Rdson2+Rs+Rdcr)*K41)/(Vin+(Rs+Rdson2-Rdson1)*K41) -> 0.5008488829 | N41: =(Vin-(Rdson1+Rdcr)*K41-Vout)*M41/(Fsw*Lf) -> 2.005618551 | O41: 3.882809275 | P41: 1.877190725 | Q41: =IF(MIN(Vin, -P41/(Coss_Q1+Coss_Q2)*0.00000002)<0, 0, MIN(Vin, -P41/(Coss_Q1+Coss_Q2)*0.00000002)) -> 0 | R41: 2.937619583 | S41: =R41^2*Rdcr -> 0.01725921763 | T41: =Core_Loss_Ch1 -> 0.25 | U41: =(T41+S41*(1+Ltc*(Ta-25)))/(1-S41*Ltc*ThetaCa) -> 0.2676287426 | V41: 0.578972205 | W41: 0.0003352088142 | X41: 0.0003352088142 | Y41: 1.468807675 | Z41: 0.00431479197 | AA41: 0.00431479197 | AB41: 2.078973288 | AC41: =Rdson1*AB41^2 -> 0.0194495847 | AD41: =(Vin*K41/2)*Fsw*(Tr_buck+Tf_buck) -> 0.05174927282 | AE41: =(0.5*Coss_Q1*(Vin-Q41)^2-0.5*Coss_Q2*(Vin-Q41)^2+(Qoss_Q2*(Vin-Q41)/Vin)*Vin)*Fsw -> 0.11772288 | AF41: =IF(K41>N41/2,0,ABS(K41-N41/2)*Vsd_Q1*Deadtime*Fsw) -> 0 | AG41: =(AF41+AE41+AD41+AC41*(1+RdsonTopTc*Ta-RdsonTopTc*25))/(1-AC41*RdsonTopTc*ThetaJA_Q1) -> 0.1896594972 | AH41: =SQRT((1-M41))*SQRT(K41^2+(N41^2)/12) -> 2.07544667 | AI41: =Rdson2*AH41^2 -> 0.01572229791 | AJ41: =IF(K41<N41/2,Deadtime*Fsw*IF(VfdSky_Q2>0,0,Vsd_Q2)*(K41+N41/2),2*Deadtime*Fsw*IF(VfdSky_Q2>0,0,Vsd_Q2)*K41) -> 0.02838528 | AK41: =(AJ41+AI41*(1+RdsonBotTc*Ta-RdsonBotTc*25))/(1-AI41*RdsonBotTc*ThetaJA_Q2) -> 0.0442467099 | AL41: =2*Deadtime*Fsw*IF(VfdSky_Q2>0,VfdSky_Q2,Vsd_Q2)*K41 -> 0.02838528 | AM41: =IF(QrrSky_Q2>0,QrrSky_Q2,Qrr_Q2*K41/(Iout/Number_of_Phases))*Fsw*Vin -> 0.0439296 | AN41: =Rs*R41^2 -> 0.01725921763 | AO41: =Iq*Vin -> 0.00084 | AP41: =IF(Ext_VCC=1, (Qg_Q1+Qg_Q2)*Fsw*VCC, (Qg_Q1+Qg_Q2)*Fsw*Vin) -> 0.0374 | AQ41: 0.17952 | AR41: =(Qg_Q1+Qg_Q2)*Fsw*(Vin-VCC) -> 0.14212 | AS41: =SUM(AO41:AP41) -> 0.03824 | AT41: =SUM(U41,X41,AA41,AG41,AK41,AL41,AM41,AS41,AN41) -> 0.6339990482 | AU41: =Vout*K41 -> 34.56 | AV41: 0.9819855923 | AW41: =ThetaJA_Q1*BC41 -> 10.93265166 | AX41: =ThetaJA_Q2*BD41 -> 2.937173895 | AZ41: 98.19855923 | BA41: =U41 -> 0.2676287426 | BB41: =AG41+AK41+AM41 -> 0.2778358071 | BC41: =AG41+AM41*0.66 -> 0.2186530332 | BD41: =AK41+AM41*0.33 -> 0.0587434779 | BE41: =AN41 -> 0.01725921763
A42: RGateTop | B42: =Rgate1 -> 0 | C42: W | D42: Gate Resistance | G42: 33 | H42: 24 | I42: 1 | J42: =Iout*G42/100 -> 2.97 | K42: 2.97 | L42: 1.65 | M42: 0.5008754067 | N42: 2.005626832 | O42: 3.972813416 | P42: 1.967186584 | Q42: 0 | R42: 3.025906737 | S42: 0.01831222316 | T42: 0.25 | U42: 0.2687058713 | V42: 0.5789745956 | W42: 0.0003352115823 | X42: 0.0003352115823 | Y42: 1.51295105 | Z42: 0.004578041758 | AA42: 0.004578041758 | AB42: 2.141511408 | AC42: 0.02063732001 | AD42: 0.0533664376 | AE42: 0.11772288 | AF42: 0 | AG42: 0.1925212622 | AH42: 2.137765298 | AI42: 0.01668064772 | AJ42: 0.02927232 | AK42: 0.04610678593 | AL42: 0.02927232 | AM42: 0.0453024 | AN42: 0.01831222316 | AO42: 0.00084 | AP42: 0.0374 | AQ42: 0.17952 | AR42: 0.14212 | AS42: 0.03824 | AT42: 0.6433741159 | AU42: 35.64 | AV42: 0.9822680737 | AW42: 11.12104231 | AX42: 3.052828896 | AZ42: 98.22680737 | BA42: 0.2687058713 | BB42: 0.2839304481 | BC42: 0.2224208462 | BD42: 0.06105657793 | BE42: 0.01831222316
A43: GfsTop | B43: =Gfs_Q1 -> 71 | C43: S | D43: Transconductance of Top FET | G43: 34 | H43: 24 | I43: 1 | J43: 3.06 | K43: 3.06 | L43: 1.7 | M43: 0.5009019303 | N43: 2.005635101 | O43: 4.062817551 | P43: 2.057182449 | Q43: 0 | R43: 3.114291949 | S43: 0.01939762869 | T43: 0.25 | U43: 0.2698163325 | V43: 0.5789769829 | W43: 0.0003352143467 | X43: 0.0003352143467 | Y43: 1.557143441 | Z43: 0.004849391394 | AA43: 0.004849391394 | AB43: 2.204122235 | AC43: 0.02186169672 | AD43: 0.05498360237 | AE43: 0.11772288 | AF43: 0 | AG43: 0.1954226332 | AH43: 2.200149886 | AI43: 0.01766840725 | AJ43: 0.03015936 | AK43: 0.04799737468 | AL43: 0.03015936 | AM43: 0.0466752 | AN43: 0.01939762869 | AO43: 0.00084 | AP43: 0.0374 | AQ43: 0.17952 | AR43: 0.14212 | AS43: 0.03824 | AT43: 0.6528931347 | AU43: 36.72 | AV43: 0.9825303026 | AW43: 11.31141326 | AX43: 3.170009534 | AZ43: 98.25303026 | BA43: 0.2698163325 | BB43: 0.2900952078 | BC43: 0.2262282652 | BD43: 0.06340019068 | BE43: 0.01939762869
A44: VthTop | B44: =Vth_Q1 -> 3.2 | C44: V | D44: Threshold Voltage of Top FET | G44: 35 | H44: 24 | I44: 1 | J44: 3.15 | K44: 3.15 | L44: 1.75 | M44: 0.5009284536 | N44: 2.00564336 | O44: 4.15282168 | P44: 2.14717832 | Q44: 0 | R44: 3.202767102 | S44: 0.02051543421 | T44: 0.25 | U44: 0.2709601434 | V44: 0.5789793669 | W44: 0.0003352171073 | X44: 0.0003352171073 | Y44: 1.60138079 | Z44: 0.005128840869 | AA44: 0.005128840869 | AB44: 2.266800028 | AC44: 0.02312272066 | AD44: 0.05660076715 | AE44: 0.11772288 | AF44: 0 | AG44: 0.1983637095 | AH44: 2.262594692 | AI44: 0.0186855718 | AJ44: 0.0310464 | AK44: 0.04991852303 | AL44: 0.0310464 | AM44: 0.048048 | AN44: 0.02051543421 | AO44: 0.00084 | AP44: 0.0374 | AQ44: 0.17952 | AR44: 0.14212 | AS44: 0.03824 | AT44: 0.6625562682 | AU44: 37.8 | AV44: 0.9827739929 | AW44: 11.50376948 | AX44: 3.288718151 | AZ44: 98.27739929 | BA44: 0.2709601434 | BB44: 0.2963302326 | BC44: 0.2300753895 | BD44: 0.06577436303 | BE44: 0.02051543421
A45: VspTop | B45: =Vsp_Q1 -> 3.326760563 | C45: V | G45: 36 | H45: 24 | I45: 1 | J45: 3.24 | K45: 3.24 | L45: 1.8 | M45: 0.5009549767 | N45: 2.005651607 | O45: 4.242825804 | P45: 2.237174196 | Q45: 0 | R45: 3.291324941 | S45: 0.02166563973 | T45: 0.25 | U45: 0.2721373221 | V45: 0.5789817477 | W45: 0.0003352198642 | X45: 0.0003352198642 | Y45: 1.645659469 | Z45: 0.005416390173 | AA45: 0.005416390173 | AB45: 2.329539659 | AC45: 0.0244203976 | AD45: 0.05821793192 | AE45: 0.11772288 | AF45: 0 | AG45: 0.2013445925 | AH45: 2.325094588 | AI45: 0.01973213667 | AJ45: 0.03193344 | AK45: 0.05187027896 | AL45: 0.03193344 | AM45: 0.0494208 | AN45: 0.02166563973 | AO45: 0.00084 | AP45: 0.0374 | AQ45: 0.17952 | AR45: 0.14212 | AS45: 0.03824 | AT45: 0.6723636833 | AU45: 38.88 | AV45: 0.98300067 | AW45: 11.69811603 | AX45: 3.408957148 | AZ45: 98.300067 | BA45: 0.2721373221 | BB45: 0.3026356715 | BC45: 0.2339623205 | BD45: 0.06817914296 | BE45: 0.02166563973
A46: VsdTop | B46: =Vsd_Q1 -> 0.8 | C46: V | G46: 37 | H46: 24 | I46: 1 | J46: 3.33 | K46: 3.33 | L46: 1.85 | M46: 0.5009814996 | N46: 2.005659843 | O46: 4.332829922 | P46: 2.327170078 | Q46: 0 | R46: 3.379958967 | S46: 0.02284824523 | T46: 0.25 | U46: 0.2733478868 | V46: 0.5789841252 | W46: 0.0003352226172 | X46: 0.0003352226172 | Y46: 1.689976227 | Z46: 0.005712039298 | AA46: 0.005712039298 | AB46: 2.392336532 | AC46: 0.02575473336 | AD46: 0.0598350967 | AE46: 0.11772288 | AF46: 0 | AG46: 0.2043653853 | AH46: 2.387644977 | AI46: 0.02080809716 | AJ46: 0.03282048 | AK46: 0.05385269157 | AL46: 0.03282048 | AM46: 0.0507936 | AN46: 0.02284824523 | AO46: 0.00084 | AP46: 0.0374 | AQ46: 0.17952 | AR46: 0.14212 | AS46: 0.03824 | AT46: 0.6823155508 | AU46: 39.96 | AV46: 0.9832116959 | AW46: 11.89445806 | AX46: 3.530728978 | AZ46: 98.32116959 | BA46: 0.2733478868 | BB46: 0.3090116768 | BC46: 0.2378891613 | BD46: 0.07061457957 | BE46: 0.02284824523
A47: θJATop | B47: =ThetaJA_Q1 -> 50 | C47: °C/W | D47: Junction to Ambient Resistance | G47: 38 | H47: 24 | I47: 1 | J47: 3.42 | K47: 3.42 | L47: 1.9 | M47: 0.5010080223 | N47: 2.005668068 | O47: 4.422834034 | P47: 2.417165966 | Q47: 0 | R47: 3.46866334 | S47: 0.02406325073 | T47: 0.25 | U47: 0.2745918565 | V47: 0.5789864995 | W47: 0.0003352253666 | X47: 0.0003352253666 | Y47: 1.734328145 | Z47: 0.006015788232 | AA47: 0.006015788232 | AB47: 2.455186516 | AC47: 0.02712573374 | AD47: 0.06145226147 | AE47: 0.11772288 | AF47: 0 | AG47: 0.2074261927 | AH47: 2.45024173 | AI47: 0.02191344856 | AJ47: 0.03370752 | AK47: 0.05586581107 | AL47: 0.03370752 | AM47: 0.0521664 | AN47: 0.02406325073 | AO47: 0.00084 | AP47: 0.0374 | AQ47: 0.17952 | AR47: 0.14212 | AS47: 0.03824 | AT47: 0.6924120447 | AU47: 41.04 | AV47: 0.9834082908 | AW47: 12.09280084 | AX47: 3.654036154 | AZ47: 98.34082908 | BA47: 0.2745918565 | BB47: 0.3154584038 | BC47: 0.2418560167 | BD47: 0.07308072307 | BE47: 0.02406325073
A48: Low-side FET | B48: Input Value | C48: Units | D48: Description | G48: 39 | H48: 24 | I48: 1 | J48: 3.51 | K48: 3.51 | L48: 1.95 | M48: 0.5010345448 | N48: 2.005676281 | O48: 4.512838141 | P48: 2.507161859 | Q48: 0 | R48: 3.557432798 | S48: 0.02531065622 | T48: 0.25 | U48: 0.2758692508 | V48: 0.5789888705 | W48: 0.0003352281121 | X48: 0.0003352281121 | Y48: 1.778712592 | Z48: 0.006327636967 | AA48: 0.006327636967 | AB48: 2.518085892 | AC48: 0.02853340452 | AD48: 0.06306942625 | AE48: 0.11772288 | AF48: 0 | AG48: 0.2105271219 | AH48: 2.512881126 | AI48: 0.02304818617 | AJ48: 0.03459456 | AK48: 0.05790968883 | AL48: 0.03459456 | AM48: 0.0535392 | AN48: 0.02531065622 | AO48: 0.00084 | AP48: 0.0374 | AQ48: 0.17952 | AR48: 0.14212 | AS48: 0.03824 | AT48: 0.7026533428 | AU48: 42.12 | AV48: 0.9835915505 | AW48: 12.29314969 | AX48: 3.778881241 | AZ48: 98.35915505 | BA48: 0.2758692508 | BB48: 0.3219760107 | BC48: 0.2458629939 | BD48: 0.07557762483 | BE48: 0.02531065622
A49: RdsonBot | B49: =Rdson2*1000 -> 3.65 | C49: mW | D49: Drain-Source Resistance of Low-side FET | G49: 40 | H49: 24 | I49: 1 | J49: 3.6 | K49: 3.6 | L49: 2 | M49: 0.501061067 | N49: 2.005684483 | O49: 4.602842242 | P49: 2.597157758 | Q49: 0 | R49: 3.646262587 | S49: 0.02659046171 | T49: 0.25 | U49: 0.2771800894 | V49: 0.5789912382 | W49: 0.0003352308539 | X49: 0.0003352308539 | Y49: 1.823127188 | Z49: 0.00664758549 | AA49: 0.00664758549 | AB49: 2.581031297 | AC49: 0.02997775151 | AD49: 0.06468659102 | AE49: 0.11772288 | AF49: 0 | AG49: 0.2136682815 | AH49: 2.575559803 | AI49: 0.02421230528 | AJ49: 0.0354816 | AK49: 0.05998437729 | AL49: 0.0354816 | AM49: 0.054912 | AN49: 0.02659046171 | AO49: 0.00084 | AP49: 0.0374 | AQ49: 0.17952 | AR49: 0.14212 | AS49: 0.03824 | AT49: 0.7130396262 | AU49: 43.2 | AV49: 0.9837624625 | AW49: 12.49551007 | AX49: 3.905266865 | AZ49: 98.37624625 | BA49: 0.2771800894 | BB49: 0.3285646588 | BC49: 0.2499102015 | BD49: 0.07810533729 | BE49: 0.02659046171
A50: RdsonBotTc | B50: =RdsonBotTc*1000000 -> 4000 | C50: ppm | D50: Drain To Source Resitance Temp Co | G50: 41 | H50: 24 | I50: 1 | J50: 3.69 | K50: 3.69 | L50: 2.05 | M50: 0.501087589 | N50: 2.005692674 | O50: 4.692846337 | P50: 2.687153663 | Q50: 0 | R50: 3.735148403 | S50: 0.02790266718 | T50: 0.25 | U50: 0.2785243931 | V50: 0.5789936027 | W50: 0.000335233592 | X50: 0.000335233592 | Y50: 1.867569783 | Z50: 0.006975633791 | AA50: 0.006975633791 | AB50: 2.644019688 | AC50: 0.03145878051 | AD50: 0.0663037558 | AE50: 0.11772288 | AF50: 0 | AG50: 0.2168497822 | AH50: 2.638274717 | AI50: 0.0254058012 | AJ50: 0.03636864 | AK50: 0.06208993009 | AL50: 0.03636864 | AM50: 0.0562848 | AN50: 0.02790266718 | AO50: 0.00084 | AP50: 0.0374 | AQ50: 0.17952 | AR50: 0.14212 | AS50: 0.03824 | AT50: 0.72357108 | AU50: 44.28 | AV50: 0.9839219186 | AW50: 12.69988751 | AX50: 4.033195704 | AZ50: 98.39219186 | BA50: 0.2785243931 | BB50: 0.3352245123 | BC50: 0.2539977502 | BD50: 0.08066391409 | BE50: 0.02790266718
A51: QgBot | B51: =Qg_Q2*1000000000 -> 9 | C51: nC | D51: Gate Charge Of Top FET | G51: 42 | H51: 24 | I51: 1 | J51: 3.78 | K51: 3.78 | L51: 2.1 | M51: 0.5011141107 | N51: 2.005700854 | O51: 4.782850427 | P51: 2.777149573 | Q51: 0 | R51: 3.824086339 | S51: 0.02924727265 | T51: 0.25 | U51: 0.2799021827 | V51: 0.5789959639 | W51: 0.0003352363263 | X51: 0.0003352363263 | Y51: 1.912038423 | Z51: 0.00731178186 | AA51: 0.00731178186 | AB51: 2.707048303 | AC51: 0.03297649731 | AD51: 0.06792092058 | AE51: 0.11772288 | AF51: 0 | AG51: 0.2200717369 | AH51: 2.701023105 | AI51: 0.02662866922 | AJ51: 0.03725568 | AK51: 0.06422640194 | AL51: 0.03725568 | AM51: 0.0576576 | AN51: 0.02924727265 | AO51: 0.00084 | AP51: 0.0374 | AQ51: 0.17952 | AR51: 0.14212 | AS51: 0.03824 | AT51: 0.7342478924 | AU51: 45.36 | AV51: 0.9840707263 | AW51: 12.90628764 | AX51: 4.162670497 | AZ51: 98.40707263 | BA51: 0.2799021827 | BB51: 0.3419557388 | BC51: 0.2581257529 | BD51: 0.08325340994 | BE51: 0.02924727265
A52: RGateBot | B52: =Rgate2 -> 0 | C52: W | D52: Gate Resistance | G52: 43 | H52: 24 | I52: 1 | J52: 3.87 | K52: 3.87 | L52: 2.15 | M52: 0.5011406322 | N52: 2.005709022 | O52: 4.872854511 | P52: 2.867145489 | Q52: 0 | R52: 3.913072841 | S52: 0.03062427811 | T52: 0.25 | U52: 0.2813134799 | V52: 0.5789983219 | W52: 0.0003352390568 | X52: 0.0003352390568 | Y52: 1.956531329 | Z52: 0.007656029685 | AA52: 0.007656029685 | AB52: 2.770114627 | AC52: 0.03453090771 | AD52: 0.06953808535 | AE52: 0.11772288 | AF52: 0 | AG52: 0.22333426 | AH52: 2.763802455 | AI52: 0.02788090463 | AJ52: 0.03814272 | AK52: 0.06639384875 | AL52: 0.03814272 | AM52: 0.0590304 | AN52: 0.03062427811 | AO52: 0.00084 | AP52: 0.0374 | AQ52: 0.17952 | AR52: 0.14212 | AS52: 0.03824 | AT52: 0.7450702555 | AU52: 46.44 | AV52: 0.9842096186 | AW52: 13.1147162 | AX52: 4.293694037 | AZ52: 98.42096186 | BA52: 0.2813134799 | BB52: 0.3487585088 | BC52: 0.262294324 | BD52: 0.08587388075 | BE52: 0.03062427811
A53: VsdBot | B53: =Vsd_Q2 -> 0.8 | C53: V | D53: Diode Forward Voltage of Bottom FET Body Diode | G53: 44 | H53: 24 | I53: 1 | J53: 3.96 | K53: 3.96 | L53: 2.2 | M53: 0.5011671535 | N53: 2.005717179 | O53: 4.96285859 | P53: 2.95714141 | Q53: 0 | R53: 4.002104669 | S53: 0.03203368357 | T53: 0.25 | U53: 0.2827583068 | V53: 0.5790006766 | W53: 0.0003352417835 | X53: 0.0003352417835 | Y53: 2.001046883 | Z53: 0.008008377254 | AA53: 0.008008377254 | AB53: 2.833216371 | AC53: 0.03612201752 | AD53: 0.07115525013 | AE53: 0.11772288 | AF53: 0 | AG53: 0.2266374682 | AH53: 2.826610475 | AI53: 0.02916250274 | AJ53: 0.03902976 | AK53: 0.06859232753 | AL53: 0.03902976 | AM53: 0.0604032 | AN53: 0.03203368357 | AO53: 0.00084 | AP53: 0.0374 | AQ53: 0.17952 | AR53: 0.14212 | AS53: 0.03824 | AT53: 0.7560383651 | AU53: 47.52 | AV53: 0.9843392625 | AW53: 13.32517901 | AX53: 4.426269176 | AZ53: 98.43392625 | BA53: 0.2827583068 | BB53: 0.3556329957 | BC53: 0.2665035802 | BD53: 0.08852538353 | BE53: 0.03203368357
A54: QrrBot | B54: =Qrr_Q2*1000000000 -> 13 | C54: nC | D54: Reverse Recovery Charge of Body Diode | G54: 45 | H54: 24 | I54: 1 | J54: 4.05 | K54: 4.05 | L54: 2.25 | M54: 0.5011936746 | N54: 2.005725325 | O54: 5.052862662 | P54: 3.047137338 | Q54: 0 | R54: 4.091178865 | S54: 0.03347548901 | T54: 0.25 | U54: 0.284236686 | V54: 0.5790030281 | W54: 0.0003352445065 | X54: 0.0003352445065 | Y54: 2.045583603 | Z54: 0.008368824555 | AA54: 0.008368824555 | AB54: 2.896351442 | AC54: 0.03774983253 | AD54: 0.0727724149 | AE54: 0.11772288 | AF54: 0 | AG54: 0.2299814799 | AH54: 2.889445073 | AI54: 0.03047345884 | AJ54: 0.0399168 | AK54: 0.07082189647 | AL54: 0.0399168 | AM54: 0.061776 | AN54: 0.03347548901 | AO54: 0.00084 | AP54: 0.0374 | AQ54: 0.17952 | AR54: 0.14212 | AS54: 0.03824 | AT54: 0.7671524204 | AU54: 48.6 | AV54: 0.9844602659 | AW54: 13.537682 | AX54: 4.560398823 | AZ54: 98.44602659 | BA54: 0.284236686 | BB54: 0.3625793764 | BC54: 0.2707536399 | BD54: 0.09120797647 | BE54: 0.03347548901
A55: TrrBot | B55: =Trr_Q2*1000000000 -> 40 | C55: ns | D55: Reverse Recovery Time of Body Diode | G55: 46 | H55: 24 | I55: 1 | J55: 4.14 | K55: 4.14 | L55: 2.3 | M55: 0.5012201954 | N55: 2.005733459 | O55: 5.14286673 | P55: 3.13713327 | Q55: 0 | R55: 4.18029272 | S55: 0.03494969445 | T55: 0.25 | U55: 0.2857486407 | V55: 0.5790053763 | W55: 0.0003352472258 | X55: 0.0003352472258 | Y55: 2.090140136 | Z55: 0.008737371577 | AA55: 0.008737371577 | AB55: 2.959517924 | AC55: 0.03941435854 | AD55: 0.07438957968 | AE55: 0.11772288 | AF55: 0 | AG55: 0.2333664157 | AH55: 2.952304335 | AI55: 0.03181376823 | AJ55: 0.04080384 | AK55: 0.0730826149 | AL55: 0.04080384 | AM55: 0.0631488 | AN55: 0.03494969445 | AO55: 0.00084 | AP55: 0.0374 | AQ55: 0.17952 | AR55: 0.14212 | AS55: 0.03824 | AT55: 0.7784126246 | AU55: 49.68 | AV55: 0.9845731844 | AW55: 13.75223119 | AX55: 4.696085945 | AZ55: 98.45731844 | BA55: 0.2857486407 | BB55: 0.3695978306 | BC55: 0.2750446237 | BD55: 0.0939217189 | BE55: 0.03494969445
A56: θJABot | B56: =ThetaJA_Q2 -> 50 | C56: °C/W | D56: Junction to Ambient Resistance | G56: 47 | H56: 24 | I56: 1 | J56: 4.23 | K56: 4.23 | L56: 2.35 | M56: 0.5012467161 | N56: 2.005741582 | O56: 5.232870791 | P56: 3.227129209 | Q56: 0 | R56: 4.269443751 | S56: 0.03645629988 | T56: 0.25 | U56: 0.2872941945 | V56: 0.5790077212 | W56: 0.0003352499412 | X56: 0.0003352499412 | Y56: 2.134715239 | Z56: 0.009114018307 | AA56: 0.009114018307 | AB56: 3.022714062 | AC56: 0.04111560134 | AD56: 0.07600674445 | AE56: 0.11772288 | AF56: 0 | AG56: 0.2367923982 | AH56: 3.015186502 | AI56: 0.0331834262 | AJ56: 0.04169088 | AK56: 0.07537454332 | AL56: 0.04169088 | AM56: 0.0645216 | AN56: 0.03645629988 | AO56: 0.00084 | AP56: 0.0374 | AQ56: 0.17952 | AR56: 0.14212 | AS56: 0.03824 | AT56: 0.7898191842 | AU56: 50.76 | AV56: 0.9846785266 | AW56: 13.96883271 | AX56: 4.833333566 | AZ56: 98.46785266 | BA56: 0.2872941945 | BB56: 0.3766885415 | BC56: 0.2793766542 | BD56: 0.09666667132 | BE56: 0.03645629988
A57: Bottom Schottky | B57: Input Value | C57: Units | D57: Std Units | G57: 48 | H57: 24 | I57: 1 | J57: 4.32 | K57: 4.32 | L57: 2.4 | M57: 0.5012732364 | N57: 2.005749694 | O57: 5.322874847 | P57: 3.317125153 | Q57: 0 | R57: 4.358629676 | S57: 0.03799530531 | T57: 0.25 | U57: 0.2888733719 | V57: 0.5790100629 | W57: 0.000335252653 | X57: 0.000335252653 | Y57: 2.179307772 | Z57: 0.009498764731 | AA57: 0.009498764731 | AB57: 3.085938241 | AC57: 0.04285356674 | AD57: 0.07762390923 | AE57: 0.11772288 | AF57: 0 | AG57: 0.2402595517 | AH57: 3.078089963 | AI57: 0.03458242805 | AJ57: 0.04257792 | AK57: 0.07769774338 | AL57: 0.04257792 | AM57: 0.0658944 | AN57: 0.03799530531 | AO57: 0.00084 | AP57: 0.0374 | AQ57: 0.17952 | AR57: 0.14212 | AS57: 0.03824 | AT57: 0.8013723096 | AU57: 51.84 | AV57: 0.9847767588 | AW57: 14.18749279 | AX57: 4.972144769 | AZ57: 98.47767588 | BA57: 0.2888733719 | BB57: 0.3838516951 | BC57: 0.2837498557 | BD57: 0.09944289538 | BE57: 0.03799530531
A58: VfdSky | B58: =VfdSky_Q2 -> 0 | C58: V | D58: Diode Forward Voltage | G58: 49 | H58: 24 | I58: 1 | J58: 4.41 | K58: 4.41 | L58: 2.45 | M58: 0.5012997566 | N58: 2.005757795 | O58: 5.412878897 | P58: 3.407121103 | Q58: 0 | R58: 4.447848397 | S58: 0.03956671072 | T58: 0.25 | U58: 0.2904861974 | V58: 0.5790124013 | W58: 0.0003352553609 | X58: 0.0003352553609 | Y58: 2.223916684 | Z58: 0.009891610838 | AA58: 0.009891610838 | AB58: 3.149188979 | AC58: 0.04462826052 | AD58: 0.07924107401 | AE58: 0.11772288 | AF58: 0 | AG58: 0.2437680029 | AH58: 3.141013234 | AI58: 0.03601076909 | AJ58: 0.04346496 | AK58: 0.08005227791 | AL58: 0.04346496 | AM58: 0.0672672 | AN58: 0.03956671072 | AO58: 0.00084 | AP58: 0.0374 | AQ58: 0.17952 | AR58: 0.14212 | AS58: 0.03824 | AT58: 0.8130722151 | AU58: 52.92 | AV58: 0.9848683096 | AW58: 14.40821775 | AX58: 5.112522695 | AZ58: 98.48683096 | BA58: 0.2904861974 | BB58: 0.3910874808 | BC58: 0.2881643549 | BD58: 0.1022504539 | BE58: 0.03956671072
A59: QrrSky | B59: =QrrSky_Q2*1000000000 -> 0 | C59: nC | D59: Diode Reverse Recovery Charge | G59: 50 | H59: 24 | I59: 1 | J59: 4.5 | K59: 4.5 | L59: 2.5 | M59: 0.5013262765 | N59: 2.005765884 | O59: 5.502882942 | P59: 3.497117058 | Q59: 0 | R59: 4.537097978 | S59: 0.04117051613 | T59: 0.25 | U59: 0.2921326964 | V59: 0.5790147365 | W59: 0.0003352580651 | X59: 0.0003352580651 | Y59: 2.268541008 | Z59: 0.01029255661 | AA59: 0.01029255661 | AB59: 3.212464907 | AC59: 0.0464396885 | AD59: 0.08085823878 | AE59: 0.11772288 | AF59: 0 | AG59: 0.2473178803 | AH59: 3.203954945 | AI59: 0.0374684446 | AJ59: 0.044352 | AK59: 0.08243821091 | AL59: 0.044352 | AM59: 0.06864 | AN59: 0.04117051613 | AO59: 0.00084 | AP59: 0.0374 | AQ59: 0.17952 | AR59: 0.14212 | AS59: 0.03824 | AT59: 0.8249191185 | AU59: 54 | AV59: 0.9849535735 | AW59: 14.63101402 | AX59: 5.254470545 | AZ59: 98.49535735 | BA59: 0.2921326964 | BB59: 0.3983960913 | BC59: 0.2926202803 | BD59: 0.1050894109 | BE59: 0.04117051613
A60: Ireverse | B60: =Ireverse -> 0 | C60: mA | D60: Reverse Leakage Current | G60: 51 | H60: 24 | I60: 1 | J60: 4.59 | K60: 4.59 | L60: 2.55 | M60: 0.5013527962 | N60: 2.005773962 | O60: 5.592886981 | P60: 3.587113019 | Q60: 0 | R60: 4.626376635 | S60: 0.04280672153 | T60: 0.25 | U60: 0.2938128949 | V60: 0.5790170684 | W60: 0.0003352607655 | X60: 0.0003352607655 | Y60: 2.313179851 | Z60: 0.01070160204 | AA60: 0.01070160204 | AB60: 3.275764761 | AC60: 0.04828785646 | AD60: 0.08247540356 | AE60: 0.11772288 | AF60: 0 | AG60: 0.2509093146 | AH60: 3.266913834 | AI60: 0.03895544989 | AJ60: 0.04523904 | AK60: 0.08485560756 | AL60: 0.04523904 | AM60: 0.0700128 | AN60: 0.04280672153 | AO60: 0.00084 | AP60: 0.0374 | AQ60: 0.17952 | AR60: 0.14212 | AS60: 0.03824 | AT60: 0.8369132414 | AU60: 55.08 | AV60: 0.9850329141 | AW60: 14.85588813 | AX60: 5.397991578 | AZ60: 98.50329141 | BA60: 0.2938128949 | BB60: 0.4057777222 | BC60: 0.2971177626 | BD60: 0.1079598316 | BE60: 0.04280672153
A61: Controller | B61: Input Value | C61: Units | D61: Std Units | G61: 52 | H61: 24 | I61: 1 | J61: 4.68 | K61: 4.68 | L61: 2.6 | M61: 0.5013793157 | N61: 2.005782029 | O61: 5.682891014 | P61: 3.677108986 | Q61: 0 | R61: 4.715682714 | S61: 0.04447532692 | T61: 0.25 | U61: 0.2955268191 | V61: 0.5790193971 | W61: 0.0003352634622 | X61: 0.0003352634622 | Y61: 2.357832386 | Z61: 0.01111874712 | AA61: 0.01111874712 | AB61: 3.339087374 | AC61: 0.0501727702 | AD61: 0.08409256833 | AE61: 0.11772288 | AF61: 0 | AG61: 0.2545424384 | AH61: 3.329888733 | AI61: 0.04047178025 | AJ61: 0.04612608 | AK61: 0.08730453424 | AL61: 0.04612608 | AM61: 0.0713856 | AN61: 0.04447532692 | AO61: 0.00084 | AP61: 0.0374 | AQ61: 0.17952 | AR61: 0.14212 | AS61: 0.03824 | AT61: 0.8490548092 | AU61: 56.16 | AV61: 0.9851066675 | AW61: 15.08284672 | AX61: 5.543089112 | AZ61: 98.51066675 | BA61: 0.2955268191 | BB61: 0.4132325726 | BC61: 0.3016569344 | BD61: 0.1108617822 | BE61: 0.04447532692
A62: θJA | B62: 30 | C62: °C/W | D62: Junction to Ambient Resistance | G62: 53 | H62: 24 | I62: 1 | J62: 4.77 | K62: 4.77 | L62: 2.65 | M62: 0.5014058349 | N62: 2.005790084 | O62: 5.772895042 | P62: 3.767104958 | Q62: 0 | R62: 4.805014688 | S62: 0.04617633231 | T62: 0.25 | U62: 0.297274496 | V62: 0.5790217225 | W62: 0.0003352661551 | X62: 0.0003352661551 | Y62: 2.402497848 | Z62: 0.01154399182 | AA62: 0.01154399182 | AB62: 3.402431664 | AC62: 0.05209443553 | AD62: 0.08570973311 | AE62: 0.11772288 | AF62: 0 | AG62: 0.2582173864 | AH62: 3.392878561 | AI62: 0.04201743098 | AJ62: 0.04701312 | AK62: 0.08978505848 | AL62: 0.04701312 | AM62: 0.0727584 | AN62: 0.04617633231 | AO62: 0.00084 | AP62: 0.0374 | AQ62: 0.17952 | AR62: 0.14212 | AS62: 0.03824 | AT62: 0.8613440512 | AU62: 57.24 | AV62: 0.9851751441 | AW62: 15.31189652 | AX62: 5.689766524 | AZ62: 98.51751441 | BA62: 0.297274496 | BB62: 0.4207608449 | BC62: 0.3062379304 | BD62: 0.1137953305 | BE62: 0.04617633231
A63: Theta Ja | B63: 2 | C63: °C/W | D63: Junction to Ambient Resistance | G63: 54 | H63: 24 | I63: 1 | J63: 4.86 | K63: 4.86 | L63: 2.7 | M63: 0.5014323539 | N63: 2.005798128 | O63: 5.862899064 | P63: 3.857100936 | Q63: 0 | R63: 4.894371139 | S63: 0.04790973769 | T63: 0.25 | U63: 0.2990559531 | V63: 0.5790240446 | W63: 0.0003352688442 | X63: 0.0003352688442 | Y63: 2.447175528 | Z63: 0.01197733613 | AA63: 0.01197733613 | AB63: 3.465796629 | AC63: 0.05405285823 | AD63: 0.08732689788 | AE63: 0.11772288 | AF63: 0 | AG63: 0.2619342956 | AH63: 3.455882314 | AI63: 0.04359239739 | AJ63: 0.04790016 | AK63: 0.09229724906 | AL63: 0.04790016 | AM63: 0.0741312 | AN63: 0.04790973769 | AO63: 0.00084 | AP63: 0.0374 | AQ63: 0.17952 | AR63: 0.14212 | AS63: 0.03824 | AT63: 0.8737812004 | AU63: 58.32 | AV63: 0.9852386318 | AW63: 15.54304438 | AX63: 5.838027253 | AZ63: 98.52386318 | BA63: 0.2990559531 | BB63: 0.4283627446 | BC63: 0.3108608876 | BD63: 0.1167605451 | BE63: 0.04790973769
G64: 55 | H64: 24 | I64: 1 | J64: 4.95 | K64: 4.95 | L64: 2.75 | M64: 0.5014588727 | N64: 2.005806161 | O64: 5.95290308 | P64: 3.94709692 | Q64: 0 | R64: 4.983750749 | S64: 0.04967554306 | T64: 0.25 | U64: 0.3008712184 | V64: 0.5790263635 | W64: 0.0003352715296 | X64: 0.0003352715296 | Y64: 2.491864768 | Z64: 0.01241878004 | AA64: 0.01241878004 | AB64: 3.529181337 | AC64: 0.0560480441 | AD64: 0.08894406266 | AE64: 0.11772288 | AF64: 0 | AG64: 0.2656933048 | AH64: 3.518899063 | AI64: 0.04519667475 | AJ64: 0.0487872 | AK64: 0.09484117591 | AL64: 0.0487872 | AM64: 0.075504 | AN64: 0.04967554306 | AO64: 0.00084 | AP64: 0.0374 | AQ64: 0.17952 | AR64: 0.14212 | AS64: 0.03824 | AT64: 0.8863664937 | AU64: 59.4 | AV64: 0.9852973973 | AW64: 15.77629724 | AX64: 5.987874795 | AZ64: 98.52973973 | BA64: 0.3008712184 | BB64: 0.4360384807 | BC64: 0.3155259448 | BD64: 0.1197574959 | BE64: 0.04967554306
G65: 56 | H65: 24 | I65: 1 | J65: 5.04 | K65: 5.04 | L65: 2.8 | M65: 0.5014853913 | N65: 2.005814182 | O65: 6.042907091 | P65: 4.037092909 | Q65: 0 | R65: 5.073152295 | S65: 0.05147374842 | T65: 0.25 | U65: 0.3027203204 | V65: 0.5790286791 | W65: 0.0003352742112 | X65: 0.0003352742112 | Y65: 2.536564954 | Z65: 0.01286832353 | AA65: 0.01286832353 | AB65: 3.592584924 | AC65: 0.05807999895 | AD65: 0.09056122743 | AE65: 0.11772288 | AF65: 0 | AG65: 0.2694945551 | AH65: 3.581927941 | AI65: 0.04683025839 | AJ65: 0.04967424 | AK65: 0.0974169102 | AL65: 0.04967424 | AM65: 0.0768768 | AN65: 0.05147374842 | AO65: 0.00084 | AP65: 0.0374 | AQ65: 0.17952 | AR65: 0.14212 | AS65: 0.03824 | AT65: 0.8991001718 | AU65: 60.48 | AV65: 0.9853516886 | AW65: 16.01166215 | AX65: 6.13931271 | AZ65: 98.53516886 | BA65: 0.3027203204 | BB65: 0.4437882653 | BC65: 0.3202332431 | BD65: 0.1227862542 | BE65: 0.05147374842
A66: Outputs | G66: 57 | H66: 24 | I66: 1 | J66: 5.13 | K66: 5.13 | L66: 2.85 | M66: 0.5015119096 | N66: 2.005822193 | O66: 6.132911096 | P66: 4.127088904 | Q66: 0 | R66: 5.162574638 | S66: 0.05330435378 | T66: 0.25 | U66: 0.3046032883 | V66: 0.5790309915 | W66: 0.0003352768891 | X66: 0.0003352768891 | Y66: 2.581275518 | Z66: 0.0133259666 | AA66: 0.0133259666 | AB66: 3.656006582 | AC66: 0.06014872857 | AD66: 0.09217839221 | AE66: 0.11772288 | AF66: 0 | AG66: 0.2733381897 | AH66: 3.644968143 | AI66: 0.04849314358 | AJ66: 0.05056128 | AK66: 0.1000245243 | AL66: 0.05056128 | AM66: 0.0782496 | AN66: 0.05330435378 | AO66: 0.00084 | AP66: 0.0374 | AQ66: 0.17952 | AR66: 0.14212 | AS66: 0.03824 | AT66: 0.9119824796 | AU66: 61.56 | AV66: 0.9854017362 | AW66: 16.24914628 | AX66: 6.292344615 | AZ66: 98.54017362 | BA66: 0.3046032883 | BB66: 0.451612314 | BC66: 0.3249829257 | BD66: 0.1258468923 | BE66: 0.05330435378
A67: Design | B67: Value | C67: Units | G67: 58 | H67: 24 | I67: 1 | J67: 5.22 | K67: 5.22 | L67: 2.9 | M67: 0.5015384277 | N67: 2.005830192 | O67: 6.222915096 | P67: 4.217084904 | Q67: 0 | R67: 5.252016714 | S67: 0.05516735913 | T67: 0.25 | U67: 0.3065201517 | V67: 0.5790333006 | W67: 0.0003352795632 | X67: 0.0003352795632 | Y67: 2.625995927 | Z67: 0.01379170921 | AA67: 0.01379170921 | AB67: 3.719445561 | AC67: 0.06225423875 | AD67: 0.09379555699 | AE67: 0.11772288 | AF67: 0 | AG67: 0.277224354 | AH67: 3.708018916 | AI67: 0.05018532564 | AJ67: 0.05144832 | AK67: 0.1026640918 | AL67: 0.05144832 | AM67: 0.0796224 | AN67: 0.05516735913 | AO67: 0.00084 | AP67: 0.0374 | AQ67: 0.17952 | AR67: 0.14212 | AS67: 0.03824 | AT67: 0.9250136654 | AU67: 62.64 | AV67: 0.9854477548 | AW67: 16.4887569 | AX67: 6.446974191 | AZ67: 98.54477548 | BA67: 0.3065201517 | BB67: 0.4595108458 | BC67: 0.329775138 | BD67: 0.1289394838 | BE67: 0.05516735913
A68: Dmax | B68: =D1_Vinmin -> 0.75 | C68: index | G68: 59 | H68: 24 | I68: 1 | J68: 5.31 | K68: 5.31 | L68: 2.95 | M68: 0.5015649456 | N68: 2.005838179 | O68: 6.31291909 | P68: 4.30708091 | Q68: 0 | R68: 5.341477533 | S68: 0.05706276447 | T68: 0.25 | U68: 0.3084709408 | V68: 0.5790356064 | W68: 0.0003352822335 | X68: 0.0003352822335 | Y68: 2.670725685 | Z68: 0.01426555137 | AA68: 0.01426555137 | AB68: 3.782901159 | AC68: 0.0643965353 | AD68: 0.09541272176 | AE68: 0.11772288 | AF68: 0 | AG68: 0.2811531954 | AH68: 3.771079561 | AI68: 0.05190679986 | AJ68: 0.05233536 | AK68: 0.1053356875 | AL68: 0.05233536 | AM68: 0.0809952 | AN68: 0.05706276447 | AO68: 0.00084 | AP68: 0.0374 | AQ68: 0.17952 | AR68: 0.14212 | AS68: 0.03824 | AT68: 0.9381939818 | AU68: 63.72 | AV68: 0.9854899445 | AW68: 16.73050137 | AX68: 6.603205177 | AZ68: 98.54899445 | BA68: 0.3084709408 | BB68: 0.4674840829 | BC68: 0.3346100274 | BD68: 0.1320641035 | BE68: 0.05706276447
A69: Dprime | B69: =1-B68 -> 0.25 | C69: index | G69: 60 | H69: 24 | I69: 1 | J69: 5.4 | K69: 5.4 | L69: 3 | M69: 0.5015914632 | N69: 2.005846156 | O69: 6.402923078 | P69: 4.397076922 | Q69: 0 | R69: 5.430956168 | S69: 0.0589905698 | T69: 0.25 | U69: 0.3104556864 | V69: 0.579037909 | W69: 0.0003352849001 | X69: 0.0003352849001 | Y69: 2.715464329 | Z69: 0.01474749304 | AA69: 0.01474749304 | AB69: 3.846372721 | AC69: 0.066575624 | AD69: 0.09702988654 | AE69: 0.11772288 | AF69: 0 | AG69: 0.2851248637 | AH69: 3.834149422 | AI69: 0.05365756153 | AJ69: 0.0532224 | AK69: 0.1080393875 | AL69: 0.0532224 | AM69: 0.082368 | AN69: 0.0589905698 | AO69: 0.00084 | AP69: 0.0374 | AQ69: 0.17952 | AR69: 0.14212 | AS69: 0.03824 | AT69: 0.9515236854 | AU69: 64.8 | AV69: 0.9855284922 | AW69: 16.97438718 | AX69: 6.761041377 | AZ69: 98.55284922 | BA69: 0.3104556864 | BB69: 0.4755322512 | BC69: 0.3394877437 | BD69: 0.1352208275 | BE69: 0.0589905698
A70: Ipp | B70: =Iripple_Vinnom -> 2.009856244 | C70: A | G70: 61 | H70: 24 | I70: 1 | J70: 5.49 | K70: 5.49 | L70: 3.05 | M70: 0.5016179806 | N70: 2.005854121 | O70: 6.49292706 | P70: 4.48707294 | Q70: 0 | R70: 5.520451754 | S70: 0.06095077513 | T70: 0.25 | U70: 0.3124744198 | V70: 0.5790402083 | W70: 0.0003352875629 | X70: 0.0003352875629 | Y70: 2.760211425 | Z70: 0.01523753422 | AA70: 0.01523753422 | AB70: 3.909859635 | AC70: 0.06879151066 | AD70: 0.09864705131 | AE70: 0.11772288 | AF70: 0 | AG70: 0.2891395107 | AH70: 3.897227886 | AI70: 0.05543760596 | AJ70: 0.05410944 | AK70: 0.1107752691 | AL70: 0.05410944 | AM70: 0.0837408 | AN70: 0.06095077513 | AO70: 0.00084 | AP70: 0.0374 | AQ70: 0.17952 | AR70: 0.14212 | AS70: 0.03824 | AT70: 0.9650030365 | AU70: 65.88 | AV70: 0.9855635726 | AW70: 17.22042194 | AX70: 6.920486655 | AZ70: 98.55635726 | BA70: 0.3124744198 | BB70: 0.4836555798 | BC70: 0.3444084387 | BD70: 0.1384097331 | BE70: 0.06095077513
A71: Top FET | B71: Value | C71: Units | G71: 62 | H71: 24 | I71: 1 | J71: 5.58 | K71: 5.58 | L71: 3.1 | M71: 0.5016444978 | N71: 2.005862075 | O71: 6.582931037 | P71: 4.577068963 | Q71: 0 | R71: 5.609963478 | S71: 0.06294338044 | T71: 0.25 | U71: 0.3145271727 | V71: 0.5790425044 | W71: 0.0003352902219 | X71: 0.0003352902219 | Y71: 2.804966567 | Z71: 0.01573567489 | AA71: 0.01573567489 | AB71: 3.973361327 | AC71: 0.07104420106 | AD71: 0.1002642161 | AE71: 0.11772288 | AF71: 0 | AG71: 0.2931972906 | AH71: 3.96031438 | AI71: 0.05724692845 | AJ71: 0.05499648 | AK71: 0.1135434107 | AL71: 0.05499648 | AM71: 0.0851136 | AN71: 0.06294338044 | AO71: 0.00084 | AP71: 0.0374 | AQ71: 0.17952 | AR71: 0.14212 | AS71: 0.03824 | AT71: 0.9786322996 | AU71: 66.96 | AV71: 0.9855953488 | AW71: 17.46861333 | AX71: 7.081544937 | AZ71: 98.55953488 | BA71: 0.3145271727 | BB71: 0.4918543014 | BC71: 0.3493722666 | BD71: 0.1416308987 | BE71: 0.06294338044
A72: Tr | B72: =(Qgd_Q1+Qgs_Q1/2)*(RdsonDRT+Rgate1)/(VCC-Vsp_Q1)*1000000000 -> 2.719276094 | C72: ns | D72: Turn on of MOSFET -> Rise time of current | G72: 63 | H72: 24 | I72: 1 | J72: 5.67 | K72: 5.67 | L72: 3.15 | M72: 0.5016710148 | N72: 2.005870017 | O72: 6.672935009 | P72: 4.667064991 | Q72: 0 | R72: 5.69949058 | S72: 0.06496838575 | T72: 0.25 | U72: 0.3166139777 | V72: 0.5790447972 | W72: 0.0003352928772 | X72: 0.0003352928772 | Y72: 2.849729376 | Z72: 0.01624191503 | AA72: 0.01624191503 | AB72: 4.036877259 | AC72: 0.07333370102 | AD72: 0.1018813809 | AE72: 0.11772288 | AF72: 0 | AG72: 0.2972983597 | AH72: 4.023408365 | AI72: 0.05908552429 | AJ72: 0.05588352 | AK72: 0.1163438923 | AL72: 0.05588352 | AM72: 0.0864864 | AN72: 0.06496838575 | AO72: 0.00084 | AP72: 0.0374 | AQ72: 0.17952 | AR72: 0.14212 | AS72: 0.03824 | AT72: 0.9924117433 | AU72: 68.04 | AV72: 0.985623974 | AW72: 17.71896918 | AX72: 7.244220213 | AZ72: 98.5623974 | BA72: 0.3166139777 | BB72: 0.5001286519 | BC72: 0.3543793837 | BD72: 0.1448844043 | BE72: 0.06496838575
A73: Tf | B73: =(Qgd_Q1+Qgs_Q1/2)*(RdsonDRT2+Rgate1)/(Vsp_Q1)*1000000000 -> 0.6838484335 | C73: ns | D73: Turn off of MOSFET -> Fall time of current | G73: 64 | H73: =Vin -> 24 | I73: =MODE -> 1 | J73: 5.76 | K73: =Iout*G73/100/Number_of_Phases -> 5.76 | L73: =Vout*K73/(Vin*Efficiency) -> 3.2 | M73: =(Vout+(Rdson2+Rs+Rdcr)*K73)/(Vin+(Rs+Rdson2-Rdson1)*K73) -> 0.5016975315 | N73: =(Vin-(Rdson1+Rdcr)*K73-Vout)*M73/(Fsw*Lf) -> 2.005877949 | O73: 6.762938974 | P73: 4.757061026 | Q73: =IF(MIN(Vin, -P73/(Coss_Q1+Coss_Q2)*0.00000002)<0, 0, MIN(Vin, -P73/(Coss_Q1+Coss_Q2)*0.00000002)) -> 0 | R73: 5.789032348 | S73: =R73^2*Rdcr -> 0.06702579106 | T73: =Core_Loss_Ch1 -> 0.25 | U73: =(T73+S73*(1+Ltc*(Ta-25)))/(1-S73*Ltc*ThetaCa) -> 0.3187348676 | V73: 0.5790470868 | W73: 0.0003352955287 | X73: 0.0003352955287 | Y73: 2.894499492 | Z73: 0.01675625462 | AA73: 0.01675625462 | AB73: 4.100406926 | AC73: =Rdson1*AB73^2 -> 0.07566001632 | AD73: =(Vin*K73/2)*Fsw*(Tr_buck+Tf_buck) -> 0.1034985456 | AE73: =(0.5*Coss_Q1*(Vin-Q73)^2-0.5*Coss_Q2*(Vin-Q73)^2+(Qoss_Q2*(Vin-Q73)/Vin)*Vin)*Fsw -> 0.11772288 | AF73: =IF(K73>N73/2,0,ABS(K73-N73/2)*Vsd_Q1*Deadtime*Fsw) -> 0 | AG73: =(AF73+AE73+AD73+AC73*(1+RdsonTopTc*Ta-RdsonTopTc*25))/(1-AC73*RdsonTopTc*ThetaJA_Q1) -> 0.3014428765 | AH73: =SQRT((1-M73))*SQRT(K73^2+(N73^2)/12) -> 4.086509338 | AI73: =Rdson2*AH73^2 -> 0.06095338878 | AJ73: =IF(K73<N73/2,Deadtime*Fsw*IF(VfdSky_Q2>0,0,Vsd_Q2)*(K73+N73/2),2*Deadtime*Fsw*IF(VfdSky_Q2>0,0,Vsd_Q2)*K73) -> 0.05677056 | AK73: =(AJ73+AI73*(1+RdsonBotTc*Ta-RdsonBotTc*25))/(1-AI73*RdsonBotTc*ThetaJA_Q2) -> 0.1191767947 | AL73: =2*Deadtime*Fsw*IF(VfdSky_Q2>0,VfdSky_Q2,Vsd_Q2)*K73 -> 0.05677056 | AM73: =IF(QrrSky_Q2>0,QrrSky_Q2,Qrr_Q2*K73/(Iout/Number_of_Phases))*Fsw*Vin -> 0.0878592 | AN73: =Rs*R73^2 -> 0.06702579106 | AO73: =Iq*Vin -> 0.00084 | AP73: =IF(Ext_VCC=1, (Qg_Q1+Qg_Q2)*Fsw*VCC, (Qg_Q1+Qg_Q2)*Fsw*Vin) -> 0.0374 | AQ73: =(Vin-VCC)*Fsw*(Qg_Q1+Qg_Q2)+(RdsonDRT+RdsonDRT2)*Fsw*Qg_Q1*VCC/(RdsonDRT+2*Rgate1+RdsonDRT2)+(RdsonDRB+RdsonDRB2)*Fsw*Qg_Q2*VCC/(RdsonDRB+2*Rgate2+RdsonDRB2) -> 0.17952 | AR73: =(Qg_Q1+Qg_Q2)*Fsw*(Vin-VCC) -> 0.14212 | AS73: 0.03824 | AT73: =SUM(U73,X73,AA73,AG73,AK73,AL73,AM73,AS73,AN73) -> 1.00634164 | AU73: =Vout*K73 -> 69.12 | AV73: 0.9856495916 | AW73: =ThetaJA_Q1*BC73 -> 17.97149743 | AX73: =ThetaJA_Q2*BD73 -> 7.408516534 | AZ73: 98.56495916 | BA73: =U73 -> 0.3187348676 | BB73: 0.5084788712 | BC73: 0.3594299485 | BD73: 0.1481703307 | BE73: 0.06702579106
A74: Part Power | B74: Value | C74: Units | G74: 65 | H74: 24 | I74: 1 | J74: =Iout*G74/100 -> 5.85 | K74: 5.85 | L74: 3.25 | M74: 0.501724048 | N74: 2.005885869 | O74: =K74+N74/2 -> 6.852942934 | P74: =K74-N74/2 -> 4.847057066 | Q74: 0 | R74: =SQRT(K74^2+(N74^2)/12) -> 5.878588111 | S74: 0.06911559635 | T74: 0.25 | U74: 0.320889876 | V74: =N74/SQRT(12) -> 0.5790493731 | W74: =RCoutEsr*V74^2 -> 0.0003352981765 | X74: =W74 -> 0.0003352981765 | Y74: =SQRT(M74*(1-M74))*SQRT(K74^2+(N74^2)/12) -> 2.939276582 | Z74: =RCinEsr*Y74^2 -> 0.01727869365 | AA74: =Z74 -> 0.01727869365 | AB74: =SQRT(M74)*SQRT(K74^2+(N74^2)/12) -> 4.163949854 | AC74: 0.07802315276 | AD74: 0.1051157104 | AE74: 0.11772288 | AF74: 0 | AG74: 0.305631002 | AH74: 4.149616824 | AI74: 0.06285051722 | AJ74: 0.0576576 | AK74: 0.1220422003 | AL74: 0.0576576 | AM74: 0.089232 | AN74: 0.06911559635 | AO74: 0.00084 | AP74: 0.0374 | AQ74: 0.17952 | AR74: 0.14212 | AS74: 0.03824 | AT74: 1.020422266 | AU74: 70.2 | AV74: =AU74/(AU74+AT74) -> 0.9856723362 | AW74: 18.2262061 | AX74: 7.574438015 | AZ74: =AV74*100 -> 98.56723362 | BA74: 0.320889876 | BB74: =AG74+AK74+AM74 -> 0.5169052023 | BC74: =AG74+AM74*0.66 -> 0.364524122 | BD74: =AK74+AM74*0.33 -> 0.1514887603 | BE74: =AN74 -> 0.06911559635
A75: Power Dis | B75: =AS9 -> 0.03824 | C75: W | G75: 66 | H75: 24 | I75: 1 | J75: 5.94 | K75: 5.94 | L75: 3.3 | M75: 0.5017505642 | N75: 2.005893777 | O75: 6.942946889 | P75: 4.937053111 | Q75: 0 | R75: 5.968157238 | S75: 0.07123780164 | T75: 0.25 | U75: 0.3230790369 | V75: 0.5790516561 | W75: 0.0003353008205 | X75: 0.0003353008205 | Y75: 2.98406033 | Z75: 0.0178092321 | AA75: 0.0178092321 | AB75: 4.227505598 | AC75: 0.08042311613 | AD75: 0.1067328752 | AE75: 0.11772288 | AF75: 0 | AG75: 0.3098628993 | AH75: 4.212730378 | AI75: 0.06477690491 | AJ75: 0.05854464 | AK75: 0.1249401927 | AL75: 0.05854464 | AM75: 0.0906048 | AN75: 0.07123780164 | AO75: 0.00084 | AP75: 0.0374 | AQ75: 0.17952 | AR75: 0.14212 | AS75: =SUM(AO75:AP75) -> 0.03824 | AT75: 1.034653903 | AU75: 71.28 | AV75: 0.9856923342 | AW75: 18.48310337 | AX75: 7.741988835 | AZ75: 98.56923342 | BA75: 0.3230790369 | BB75: 0.525407892 | BC75: 0.3696620673 | BD75: 0.1548397767 | BE75: 0.07123780164
A76: Temp rise | B76: =B75*B62 -> 1.1472 | C76: °C | G76: 67 | H76: 24 | I76: 1 | J76: 6.03 | K76: 6.03 | L76: 3.35 | M76: 0.5017770803 | N76: 2.005901675 | O76: 7.032950837 | P76: 5.027049163 | Q76: 0 | R76: 6.057739138 | S76: 0.07339240692 | T76: 0.25 | U76: 0.3253023849 | V76: 0.5790539359 | W76: 0.0003353034607 | X76: 0.0003353034607 | Y76: 3.028850438 | Z76: 0.01834786996 | AA76: 0.01834786996 | AB76: 4.291073739 | AC76: 0.08285991224 | AD76: 0.10835004 | AE76: 0.11772288 | AF76: 0 | AG76: 0.3141387338 | AH76: 4.27584958 | AI76: 0.06673254715 | AJ76: 0.05943168 | AK76: 0.1278708567 | AL76: 0.05943168 | AM76: 0.0919776 | AN76: 0.07339240692 | AO76: 0.00084 | AP76: 0.0374 | AQ76: 0.17952 | AR76: 0.14212 | AS76: 0.03824 | AT76: 1.049036836 | AU76: 72.36 | AV76: 0.9857097044 | AW76: 18.74219749 | AX76: 7.911173237 | AZ76: 98.57097044 | BA76: 0.3253023849 | BB76: 0.5339871905 | BC76: 0.3748439498 | BD76: 0.1582234647 | BE76: 0.07339240692
A77: Current (switching) | B77: =(Qg_Q1+Qg_Q2)*Fsw+Iq -> 0.007515 | C77: A | G77: 68 | H77: 24 | I77: 1 | J77: 6.12 | K77: 6.12 | L77: 3.4 | M77: 0.5018035961 | N77: 2.005909561 | O77: 7.12295478 | P77: 5.11704522 | Q77: 0 | R77: 6.147333251 | S77: 0.07557941219 | T77: 0.25 | U77: 0.3275599553 | V77: 0.5790562125 | W77: 0.0003353060972 | X77: 0.0003353060972 | Y77: 3.073646628 | Z77: 0.01889460719 | AA77: 0.01889460719 | AB77: 4.35465388 | AC77: 0.08533354687 | AD77: 0.1099672047 | AE77: 0.11772288 | AF77: 0 | AG77: 0.3184586732 | AH77: 4.338974036 | AI77: 0.06871743924 | AJ77: 0.06031872 | AK77: 0.1308342786 | AL77: 0.06031872 | AM77: 0.0933504 | AN77: 0.07557941219 | AO77: 0.00084 | AP77: 0.0374 | AQ77: 0.17952 | AR77: 0.14212 | AS77: 0.03824 | AT77: 1.063571353 | AU77: 73.44 | AV77: 0.9857245588 | AW77: 19.00349686 | AX77: 8.081995528 | AZ77: 98.57245588 | BA77: 0.3275599553 | BB77: 0.5426433518 | BC77: 0.3800699372 | BD77: 0.1616399106 | BE77: 0.07557941219
A78: Qrr Current | B78: =Qrr_Q2*Fsw -> 0.00572 | C78: A | G78: 69 | H78: 24 | I78: 1 | J78: 6.21 | K78: 6.21 | L78: 3.45 | M78: 0.5018301117 | N78: 2.005917436 | O78: 7.212958718 | P78: 5.207041282 | Q78: 0 | R78: 6.236939051 | S78: 0.07779881746 | T78: 0.25 | U78: 0.3298517838 | V78: 0.5790584857 | W78: 0.0003353087299 | X78: 0.0003353087299 | Y78: 3.118448636 | Z78: 0.01944944379 | AA78: 0.01944944379 | AB78: 4.41824565 | AC78: 0.08784402582 | AD78: 0.1115843695 | AE78: 0.11772288 | AF78: 0 | AG78: 0.3228228878 | AH78: 4.402103373 | AI78: 0.07073157648 | AJ78: 0.06120576 | AK78: 0.1338305456 | AL78: 0.06120576 | AM78: 0.0947232 | AN78: 0.07779881746 | AO78: 0.00084 | AP78: 0.0374 | AQ78: 0.17952 | AR78: 0.14212 | AS78: 0.03824 | AT78: 1.078257747 | AU78: 74.52 | AV78: 0.9857370027 | AW78: 19.26700999 | AX78: 8.254460078 | AZ78: 98.57370027 | BA78: 0.3298517838 | BB78: 0.5513766333 | BC78: 0.3853401998 | BD78: 0.1650892016 | BE78: 0.07779881746
A79: Diode Current | B79: =Deadtime*Fsw*(Iripple_Vinnom/2)*(Vsd_Q2)/Vin -> 0.0002063452411 | G79: 70 | H79: 24 | I79: 1 | J79: 6.3 | K79: 6.3 | L79: 3.5 | M79: 0.501856627 | N79: 2.005925299 | O79: 7.30296265 | P79: 5.29703735 | Q79: 0 | R79: 6.326556042 | S79: 0.08005062272 | T79: 0.25 | U79: 0.3321779066 | V79: 0.5790607558 | W79: 0.0003353113589 | X79: 0.0003353113589 | Y79: 3.163256213 | Z79: 0.02001237974 | AA79: 0.02001237974 | AB79: 4.481848698 | AC79: 0.09039135489 | AD79: 0.1132015343 | AE79: 0.11772288 | AF79: 0 | AG79: 0.3272315498 | AH79: 4.465237239 | AI79: 0.07277495416 | AJ79: 0.0620928 | AK79: 0.1368597465 | AL79: 0.0620928 | AM79: 0.096096 | AN79: 0.08005062272 | AO79: 0.00084 | AP79: 0.0374 | AQ79: 0.17952 | AR79: 0.14212 | AS79: 0.03824 | AT79: 1.093096317 | AU79: 75.6 | AV79: 0.9857471354 | AW79: 19.53274549 | AX79: 8.428571326 | AZ79: 98.57471354 | BA79: 0.3321779066 | BB79: 0.5601872963 | BC79: 0.3906549098 | BD79: 0.1685714265 | BE79: 0.08005062272
A80: Total | B80: =SUM(B77:B79) -> 0.01344134524 | C80: A | G80: 71 | H80: 24 | I80: 1 | J80: 6.39 | K80: 6.39 | L80: 3.55 | M80: 0.5018831422 | N80: 2.005933152 | O80: 7.392966576 | P80: 5.387033424 | Q80: 0 | R80: 6.416183755 | S80: 0.08233482797 | T80: 0.25 | U80: 0.3345383606 | V80: 0.5790630225 | W80: 0.0003353139841 | X80: 0.0003353139841 | Y80: 3.208069124 | Z80: 0.02058341501 | AA80: 0.02058341501 | AB80: 4.545462692 | AC80: 0.09297553988 | AD80: 0.1148186991 | AE80: 0.11772288 | AF80: 0 | AG80: 0.3316848343 | AH80: 4.528375305 | AI80: 0.07484756758 | AJ80: 0.06297984 | AK80: 0.1399219714 | AL80: 0.06297984 | AM80: 0.0974688 | AN80: 0.08233482797 | AO80: 0.00084 | AP80: 0.0374 | AQ80: 0.17952 | AR80: 0.14212 | AS80: 0.03824 | AT80: 1.108087363 | AU80: 76.68 | AV80: 0.9857550507 | AW80: 19.80071211 | AX80: 8.604333771 | AZ80: 98.57550507 | BA80: 0.3345383606 | BB80: 0.5690756057 | BC80: 0.3960142423 | BD80: 0.1720866754 | BE80: 0.08233482797
G81: 72 | H81: 24 | I81: 1 | J81: 6.48 | K81: 6.48 | L81: 3.6 | M81: 0.5019096571 | N81: 2.005940993 | O81: 7.482970496 | P81: 5.477029504 | Q81: 0 | R81: 6.505821747 | S81: 0.08465143321 | T81: 0.25 | U81: 0.3369331834 | V81: 0.579065286 | W81: 0.0003353166055 | X81: 0.0003353166055 | Y81: 3.252887148 | Z81: 0.0211625496 | AA81: 0.0211625496 | AB81: 4.609087318 | AC81: 0.09559658658 | AD81: 0.1164358638 | AE81: 0.11772288 | AF81: 0 | AG81: 0.3361829183 | AH81: 4.591517255 | AI81: 0.07694941205 | AJ81: 0.06386688 | AK81: 0.1430173117 | AL81: 0.06386688 | AM81: 0.0988416 | AN81: 0.08465143321 | AO81: 0.00084 | AP81: 0.0374 | AQ81: 0.17952 | AR81: 0.14212 | AS81: 0.03824 | AT81: 1.123231193 | AU81: 77.76 | AV81: 0.9857608369 | AW81: 20.07091872 | AX81: 8.781751983 | AZ81: 98.57608369 | BA81: 0.3369331834 | BB81: 0.57804183 | BC81: 0.4014183743 | BD81: 0.1756350397 | BE81: 0.08465143321
G82: 73 | H82: 24 | I82: 1 | J82: 6.57 | K82: 6.57 | L82: 3.65 | M82: 0.5019361717 | N82: 2.005948822 | O82: 7.572974411 | P82: 5.567025589 | Q82: 0 | R82: 6.595469598 | S82: 0.08700043845 | T82: 0.25 | U82: 0.3393624127 | V82: 0.5790675463 | W82: 0.0003353192232 | X82: 0.0003353192232 | Y82: 3.297710074 | Z82: 0.02174978347 | AA82: 0.02174978347 | AB82: 4.67272228 | AC82: 0.09825450078 | AD82: 0.1180530286 | AE82: 0.11772288 | AF82: 0 | AG82: 0.3407259816 | AH82: 4.654662793 | AI82: 0.07908048287 | AJ82: 0.06475392 | AK82: 0.1461458599 | AL82: 0.06475392 | AM82: 0.1002144 | AN82: 0.08700043845 | AO82: 0.00084 | AP82: 0.0374 | AQ82: 0.17952 | AR82: 0.14212 | AS82: 0.03824 | AT82: 1.138528115 | AU82: 78.84 | AV82: 0.9857645778 | AW82: 20.34337428 | AX82: 8.960830595 | AZ82: 98.57645778 | BA82: 0.3393624127 | BB82: 0.5870862415 | BC82: 0.4068674856 | BD82: 0.1792166119 | BE82: 0.08700043845
G83: 74 | H83: 24 | I83: 1 | J83: 6.66 | K83: 6.66 | L83: 3.7 | M83: 0.5019626862 | N83: 2.005956641 | O83: 7.66297832 | P83: 5.65702168 | Q83: 0 | R83: 6.685126913 | S83: 0.08938184367 | T83: 0.25 | U83: 0.3418260873 | V83: 0.5790698033 | W83: 0.0003353218371 | X83: 0.0003353218371 | Y83: 3.342537704 | Z83: 0.02234511661 | AA83: 0.02234511661 | AB83: 4.736367297 | AC83: 0.1009492883 | AD83: 0.1196701934 | AE83: 0.11772288 | AF83: 0 | AG83: 0.3453142063 | AH83: 4.717811639 | AI83: 0.08124077533 | AJ83: 0.06564096 | AK83: 0.1493077102 | AL83: 0.06564096 | AM83: 0.1015872 | AN83: 0.08938184367 | AO83: 0.00084 | AP83: 0.0374 | AQ83: 0.17952 | AR83: 0.14212 | AS83: 0.03824 | AT83: 1.153978446 | AU83: 79.92 | AV83: 0.9857663523 | AW83: 20.61808792 | AX83: 9.141574308 | AZ83: 98.57663523 | BA83: 0.3418260873 | BB83: 0.5962091165 | BC83: 0.4123617583 | BD83: 0.1828314862 | BE83: 0.08938184367
G84: 75 | H84: 24 | I84: 1 | J84: 6.75 | K84: 6.75 | L84: 3.75 | M84: 0.5019892004 | N84: 2.005964448 | O84: 7.752982224 | P84: 5.747017776 | Q84: 0 | R84: 6.774793314 | S84: 0.09179564889 | T84: 0.25 | U84: 0.3443242463 | V84: 0.579072057 | W84: 0.0003353244472 | X84: 0.0003353244472 | Y84: 3.38736985 | Z84: 0.022948549 | AA84: 0.022948549 | AB84: 4.800022103 | AC84: 0.1036809549 | AD84: 0.1212873582 | AE84: 0.11772288 | AF84: 0 | AG84: 0.349947777 | AH84: 4.780963528 | AI84: 0.08343028473 | AJ84: 0.066528 | AK84: 0.1525029578 | AL84: 0.066528 | AM84: 0.10296 | AN84: 0.09179564889 | AO84: 0.00084 | AP84: 0.0374 | AQ84: 0.17952 | AR84: 0.14212 | AS84: 0.03824 | AT84: 1.169582503 | AU84: 81 | AV84: 0.9857662353 | AW84: 20.89506885 | AX84: 9.323987888 | AZ84: 98.57662353 | BA84: 0.3443242463 | BB84: 0.6054107347 | BC84: 0.417901377 | BD84: 0.1864797578 | BE84: 0.09179564889
G85: 76 | H85: 24 | I85: 1 | J85: 6.84 | K85: 6.84 | L85: 3.8 | M85: 0.5020157143 | N85: 2.005972244 | O85: 7.842986122 | P85: 5.837013878 | Q85: 0 | R85: 6.864468447 | S85: 0.09424185411 | T85: 0.25 | U85: 0.3468569293 | V85: 0.5790743075 | W85: 0.0003353270536 | X85: 0.0003353270536 | Y85: 3.432206332 | Z85: 0.02356008061 | AA85: 0.02356008061 | AB85: 4.863686447 | AC85: 0.1064495064 | AD85: 0.1229045229 | AE85: 0.11772288 | AF85: 0 | AG85: 0.3546268806 | AH85: 4.844118206 | AI85: 0.08564900637 | AJ85: 0.06741504 | AK85: 0.1557316994 | AL85: 0.06741504 | AM85: 0.1043328 | AN85: 0.09424185411 | AO85: 0.00084 | AP85: 0.0374 | AQ85: 0.17952 | AR85: 0.14212 | AS85: 0.03824 | AT85: 1.185340611 | AU85: 82.08 | AV85: 0.9857642976 | AW85: 21.17432643 | AX85: 9.508076172 | AZ85: 98.57642976 | BA85: 0.3468569293 | BB85: 0.61469138 | BC85: 0.4234865286 | BD85: 0.1901615234 | BE85: 0.09424185411
G86: 77 | H86: 24 | I86: 1 | J86: 6.93 | K86: 6.93 | L86: 3.85 | M86: 0.5020422281 | N86: 2.005980028 | O86: 7.932990014 | P86: 5.927009986 | Q86: 0 | R86: 6.954151972 | S86: 0.09672045931 | T86: 0.25 | U86: 0.3494241767 | V86: 0.5790765547 | W86: 0.0003353296562 | X86: 0.0003353296562 | Y86: 3.477046982 | Z86: 0.02417971144 | AA86: 0.02417971144 | AB86: 4.927360089 | AC86: 0.1092549485 | AD86: 0.1245216877 | AE86: 0.11772288 | AF86: 0 | AG86: 0.3593517067 | AH86: 4.907275436 | AI86: 0.08789693556 | AJ86: 0.06830208 | AK86: 0.1589940332 | AL86: 0.06830208 | AM86: 0.1057056 | AN86: 0.09672045931 | AO86: 0.00084 | AP86: 0.0374 | AQ86: 0.17952 | AR86: 0.14212 | AS86: 0.03824 | AT86: 1.201253097 | AU86: 83.16 | AV86: 0.9857606063 | AW86: 21.45587013 | AX86: 9.693844061 | AZ86: 98.57606063 | BA86: 0.3494241767 | BB86: 0.6240513399 | BC86: 0.4291174027 | BD86: 0.1938768812 | BE86: 0.09672045931
G87: 78 | H87: 24 | I87: 1 | J87: 7.02 | K87: 7.02 | L87: 3.9 | M87: 0.5020687416 | N87: 2.005987802 | O87: 8.022993901 | P87: 6.017006099 | Q87: 0 | R87: 7.043843571 | S87: 0.09923146451 | T87: 0.25 | U87: 0.3520260292 | V87: 0.5790787987 | W87: 0.0003353322551 | X87: 0.0003353322551 | Y87: 3.52189164 | Z87: 0.02480744145 | AA87: 0.02480744145 | AB87: 4.991042803 | AC87: 0.1120972872 | AD87: 0.1261388525 | AE87: 0.11772288 | AF87: 0 | AG87: 0.3641224474 | AH87: 4.970434991 | AI87: 0.09017406759 | AJ87: 0.06918912 | AK87: 0.1622900585 | AL87: 0.06918912 | AM87: 0.1070784 | AN87: 0.09923146451 | AO87: 0.00084 | AP87: 0.0374 | AQ87: 0.17952 | AR87: 0.14212 | AS87: 0.03824 | AT87: 1.217320293 | AU87: 84.24 | AV87: 0.9857552251 | AW87: 21.73970957 | AX87: 9.881296526 | AZ87: 98.57552251 | BA87: 0.3520260292 | BB87: 0.6334909059 | BC87: 0.4347941914 | BD87: 0.1976259305 | BE87: 0.09923146451
G88: 79 | H88: 24 | I88: 1 | J88: 7.11 | K88: 7.11 | L88: 3.95 | M88: 0.5020952549 | N88: 2.005995564 | O88: 8.112997782 | P88: 6.107002218 | Q88: 0 | R88: 7.133542938 | S88: 0.1017748697 | T88: 0.25 | U88: 0.3546625283 | V88: 0.5790810394 | W88: 0.0003353348502 | X88: 0.0003353348502 | Y88: 3.566740152 | Z88: 0.02544327062 | AA88: 0.02544327062 | AB88: 5.054734372 | AC88: 0.1149765281 | AD88: 0.1277560173 | AE88: 0.11772288 | AF88: 0 | AG88: 0.3689392972 | AH88: 5.033596654 | AI88: 0.09248039776 | AJ88: 0.07007616 | AK88: 0.1656198762 | AL88: 0.07007616 | AM88: 0.1084512 | AN88: 0.1017748697 | AO88: 0.00084 | AP88: 0.0374 | AQ88: 0.17952 | AR88: 0.14212 | AS88: 0.03824 | AT88: 1.233542537 | AU88: 85.32 | AV88: 0.9857482143 | AW88: 22.02585446 | AX88: 10.07043861 | AZ88: 98.57482143 | BA88: 0.3546625283 | BB88: 0.6430103734 | BC88: 0.4405170892 | BD88: 0.2014087722 | BE88: 0.1017748697
G89: 80 | H89: 24 | I89: 1 | J89: 7.2 | K89: 7.2 | L89: 4 | M89: 0.502121768 | N89: 2.006003315 | O89: 8.203001657 | P89: 6.196998343 | Q89: 0 | R89: 7.223249784 | S89: 0.1043506749 | T89: 0.25 | U89: 0.357333716 | V89: 0.5790832768 | W89: 0.0003353374415 | X89: 0.0003353374415 | Y89: 3.611592373 | Z89: 0.02608719894 | AA89: 0.02608719894 | AB89: 5.118434593 | AC89: 0.1178926771 | AD89: 0.129373182 | AE89: 0.11772288 | AF89: 0 | AG89: 0.3738024535 | AH89: 5.096760222 | AI89: 0.09481592137 | AJ89: 0.0709632 | AK89: 0.1689835883 | AL89: 0.0709632 | AM89: 0.109824 | AN89: 0.1043506749 | AO89: 0.00084 | AP89: 0.0374 | AQ89: 0.17952 | AR89: 0.14212 | AS89: 0.03824 | AT89: 1.249920169 | AU89: 86.4 | AV89: 0.9857396314 | AW89: 22.31431468 | AX89: 10.26127541 | AZ89: 98.57396314 | BA89: 0.357333716 | BB89: 0.6526100418 | BC89: 0.4462862935 | BD89: 0.2052255083 | BE89: 0.1043506749
G90: 81 | H90: 24 | I90: 1 | J90: 7.29 | K90: 7.29 | L90: 4.05 | M90: 0.5021482808 | N90: 2.006011054 | O90: 8.293005527 | P90: 6.286994473 | Q90: 0 | R90: 7.312963833 | S90: 0.1069588801 | T90: 0.25 | U90: 0.3600396349 | V90: 0.579085511 | W90: 0.0003353400291 | X90: 0.0003353400291 | Y90: 3.656448166 | Z90: 0.02673922639 | AA90: 0.02673922639 | AB90: 5.18214327 | AC90: 0.1208457399 | AD90: 0.1309903468 | AE90: 0.11772288 | AF90: 0 | AG90: 0.3787121159 | AH90: 5.159925499 | AI90: 0.09718063373 | AJ90: 0.07185024 | AK90: 0.1723812985 | AL90: 0.07185024 | AM90: 0.1111968 | AN90: 0.1069588801 | AO90: 0.00084 | AP90: 0.0374 | AQ90: 0.17952 | AR90: 0.14212 | AS90: 0.03824 | AT90: 1.266453536 | AU90: 87.48 | AV90: 0.9857295308 | AW90: 22.6051002 | AX90: 10.45381212 | AZ90: 98.57295308 | BA90: 0.3600396349 | BB90: 0.6622902144 | BC90: 0.4521020039 | BD90: 0.2090762425 | BE90: 0.1069588801
G91: 82 | H91: 24 | I91: 1 | J91: 7.38 | K91: 7.38 | L91: 4.1 | M91: 0.5021747934 | N91: 2.006018782 | O91: 8.383009391 | P91: 6.376990609 | Q91: 0 | R91: 7.402684825 | S91: 0.1095994852 | T91: 0.25 | U91: 0.3627803282 | V91: 0.579087742 | W91: 0.0003353426129 | X91: 0.0003353426129 | Y91: 3.701307399 | Z91: 0.02739935293 | AA91: 0.02739935293 | AB91: 5.245860218 | AC91: 0.1238357224 | AD91: 0.1326075116 | AE91: 0.11772288 | AF91: 0 | AG91: 0.3836684869 | AH91: 5.223092301 | AI91: 0.09957453013 | AJ91: 0.07273728 | AK91: 0.1758131117 | AL91: 0.07273728 | AM91: 0.1125696 | AN91: 0.1095994852 | AO91: 0.00084 | AP91: 0.0374 | AQ91: 0.17952 | AR91: 0.14212 | AS91: 0.03824 | AT91: 1.283142988 | AU91: 88.56 | AV91: 0.9857179642 | AW91: 22.89822114 | AX91: 10.64805399 | AZ91: 98.57179642 | BA91: 0.3627803282 | BB91: 0.6720511986 | BC91: 0.4579644229 | BD91: 0.2129610797 | BE91: 0.1095994852
G92: 83 | H92: 24 | I92: 1 | J92: 7.47 | K92: 7.47 | L92: 4.15 | M92: 0.5022013058 | N92: 2.006026499 | O92: 8.47301325 | P92: 6.46698675 | Q92: 0 | R92: 7.492412508 | S92: 0.1122724904 | T92: 0.25 | U92: 0.3655558395 | V92: 0.5790899696 | W92: 0.0003353451929 | X92: 0.0003353451929 | Y92: 3.746169948 | Z92: 0.02806757855 | AA92: 0.02806757855 | AB92: 5.309585261 | AC92: 0.1268626304 | AD92: 0.1342246764 | AE92: 0.11772288 | AF92: 0 | AG92: 0.3886717714 | AH92: 5.286260451 | AI92: 0.1019976059 | AJ92: 0.07362432 | AK92: 0.1792791344 | AL92: 0.07362432 | AM92: 0.1139424 | AN92: 0.1122724904 | AO92: 0.00084 | AP92: 0.0374 | AQ92: 0.17952 | AR92: 0.14212 | AS92: 0.03824 | AT92: 1.299988879 | AU92: 89.64 | AV92: 0.9857049809 | AW92: 23.19368777 | AX92: 10.84400632 | AZ92: 98.57049809 | BA92: 0.3655558395 | BB92: 0.6818933058 | BC92: 0.4638737554 | BD92: 0.2168801264 | BE92: 0.1122724904
G93: 84 | H93: 24 | I93: 1 | J93: 7.56 | K93: 7.56 | L93: 4.2 | M93: 0.502227818 | N93: 2.006034205 | O93: 8.563017102 | P93: 6.556982898 | Q93: 0 | R93: 7.582146647 | S93: 0.1149778955 | T93: 0.25 | U93: 0.3683662133 | V93: 0.5790921941 | W93: 0.0003353477692 | X93: 0.0003353477692 | Y93: 3.791035692 | Z93: 0.02874390323 | AA93: 0.02874390323 | AB93: 5.37331823 | AC93: 0.1299264696 | AD93: 0.1358418412 | AE93: 0.11772288 | AF93: 0 | AG93: 0.3937221772 | AH93: 5.34942978 | AI93: 0.1044498563 | AJ93: 0.07451136 | AK93: 0.1827794742 | AL93: 0.07451136 | AM93: 0.1153152 | AN93: 0.1149778955 | AO93: 0.00084 | AP93: 0.0374 | AQ93: 0.17952 | AR93: 0.14212 | AS93: 0.03824 | AT93: 1.316991571 | AU93: 90.72 | AV93: 0.9856906278 | AW93: 23.49151046 | AX93: 11.04167451 | AZ93: 98.56906278 | BA93: 0.3683662133 | BB93: 0.6918168514 | BC93: 0.4698302092 | BD93: 0.2208334902 | BE93: 0.1149778955
G94: 85 | H94: 24 | I94: 1 | J94: 7.65 | K94: 7.65 | L94: 4.25 | M94: 0.5022543299 | N94: 2.006041899 | O94: 8.65302095 | P94: 6.64697905 | Q94: 0 | R94: 7.671887013 | S94: 0.1177157007 | T94: 0.25 | U94: 0.3712114944 | V94: 0.5790944152 | W94: 0.0003353503418 | X94: 0.0003353503418 | Y94: 3.835904518 | Z94: 0.02942832694 | AA94: 0.02942832694 | AB94: 5.437058964 | AC94: 0.1330272458 | AD94: 0.1374590059 | AE94: 0.11772288 | AF94: 0 | AG94: 0.3988199147 | AH94: 5.412600129 | AI94: 0.1069312766 | AJ94: 0.0753984 | AK94: 0.1863142405 | AL94: 0.0753984 | AM94: 0.116688 | AN94: 0.1177157007 | AO94: 0.00084 | AP94: 0.0374 | AQ94: 0.17952 | AR94: 0.14212 | AS94: 0.03824 | AT94: 1.334151428 | AU94: 91.8 | AV94: 0.9856749494 | AW94: 23.79169974 | AX94: 11.24106402 | AZ94: 98.56749494 | BA94: 0.3712114944 | BB94: 0.7018221552 | BC94: 0.4758339947 | BD94: 0.2248212805 | BE94: 0.1177157007
G95: 86 | H95: 24 | I95: 1 | J95: 7.74 | K95: 7.74 | L95: 4.3 | M95: 0.5022808416 | N95: 2.006049582 | O95: 8.743024791 | P95: 6.736975209 | Q95: 0 | R95: 7.761633392 | S95: 0.1204859058 | T95: 0.25 | U95: 0.3740917283 | V95: 0.5790966331 | W95: 0.0003353529105 | X95: 0.0003353529105 | Y95: 3.880776318 | Z95: 0.03012084966 | AA95: 0.03012084966 | AB95: 5.500807312 | AC95: 0.1361649649 | AD95: 0.1390761707 | AE95: 0.11772288 | AF95: 0 | AG95: 0.403965197 | AH95: 5.475771345 | AI95: 0.1094418622 | AJ95: 0.07628544 | AK95: 0.1898835439 | AL95: 0.07628544 | AM95: 0.1180608 | AN95: 0.1204859058 | AO95: 0.00084 | AP95: 0.0374 | AQ95: 0.17952 | AR95: 0.14212 | AS95: 0.03824 | AT95: 1.351468818 | AU95: 92.88 | AV95: 0.9856579884 | AW95: 24.09426625 | AX95: 11.44218039 | AZ95: 98.56579884 | BA95: 0.3740917283 | BB95: 0.7119095409 | BC95: 0.481885325 | BD95: 0.2288436079 | BE95: 0.1204859058
G96: 87 | H96: 24 | I96: 1 | J96: 7.83 | K96: 7.83 | L96: 4.35 | M96: 0.5023073531 | N96: 2.006057254 | O96: 8.833028627 | P96: 6.826971373 | Q96: 0 | R96: 7.851385577 | S96: 0.123288511 | T96: 0.25 | U96: 0.3770069611 | V96: 0.5790988478 | W96: 0.0003353554755 | X96: 0.0003353554755 | Y96: 3.925650988 | Z96: 0.03082147136 | AA96: 0.03082147136 | AB96: 5.564563127 | AC96: 0.1393396326 | AD96: 0.1406933355 | AE96: 0.11772288 | AF96: 0 | AG96: 0.4091582398 | AH96: 5.538943282 | AI96: 0.1119816083 | AJ96: 0.07717248 | AK96: 0.1934874965 | AL96: 0.07717248 | AM96: 0.1194336 | AN96: 0.123288511 | AO96: 0.00084 | AP96: 0.0374 | AQ96: 0.17952 | AR96: 0.14212 | AS96: 0.03824 | AT96: 1.368944115 | AU96: 93.96 | AV96: 0.9856397852 | AW96: 24.39922079 | AX96: 11.64502922 | AZ96: 98.56397852 | BA96: 0.3770069611 | BB96: 0.7220793363 | BC96: 0.4879844158 | BD96: 0.2329005845 | BE96: 0.123288511
G97: 88 | H97: 24 | I97: 1 | J97: 7.92 | K97: 7.92 | L97: 4.4 | M97: 0.5023338643 | N97: 2.006064915 | O97: 8.923032457 | P97: 6.916967543 | Q97: 0 | R97: 7.941143371 | S97: 0.1261235161 | T97: 0.25 | U97: 0.3799572395 | V97: 0.5791010592 | W97: 0.0003353580368 | X97: 0.0003353580368 | Y97: 3.97052843 | Z97: 0.03153019203 | AA97: 0.03153019203 | AB97: 5.62832627 | AC97: 0.1425512547 | AD97: 0.1423105003 | AE97: 0.11772288 | AF97: 0 | AG97: 0.4143992619 | AH97: 5.6021158 | AI97: 0.1145505102 | AJ97: 0.07805952 | AK97: 0.1971262119 | AL97: 0.07805952 | AM97: 0.1208064 | AN97: 0.1261235161 | AO97: 0.00084 | AP97: 0.0374 | AQ97: 0.17952 | AR97: 0.14212 | AS97: 0.03824 | AT97: 1.386577699 | AU97: 95.04 | AV97: 0.9856203784 | AW97: 24.7065743 | AX97: 11.84961619 | AZ97: 98.56203784 | BA97: 0.3799572395 | BB97: 0.7323318738 | BC97: 0.4941314859 | BD97: 0.2369923239 | BE97: 0.1261235161
G98: 89 | H98: 24 | I98: 1 | J98: 8.01 | K98: 8.01 | L98: 4.45 | M98: 0.5023603753 | N98: 2.006072564 | O98: 9.013036282 | P98: 7.006963718 | Q98: 0 | R98: 8.030906586 | S98: 0.1289909212 | T98: 0.25 | U98: 0.3829426108 | V98: 0.5791032673 | W98: 0.0003353605943 | X98: 0.0003353605943 | Y98: 4.01540855 | Z98: 0.03224701164 | AA98: 0.03224701164 | AB98: 5.692096608 | AC98: 0.1457998371 | AD98: 0.143927665 | AE98: 0.11772288 | AF98: 0 | AG98: 0.4196884846 | AH98: 5.665288766 | AI98: 0.1171485633 | AJ98: 0.07894656 | AK98: 0.2007998051 | AL98: 0.07894656 | AM98: 0.1221792 | AN98: 0.1289909212 | AO98: 0.00084 | AP98: 0.0374 | AQ98: 0.17952 | AR98: 0.14212 | AS98: 0.03824 | AT98: 1.404369954 | AU98: 96.12 | AV98: 0.9855998049 | AW98: 25.01633783 | AX98: 12.05594705 | AZ98: 98.55998049 | BA98: 0.3829426108 | BB98: 0.7426674897 | BC98: 0.5003267566 | BD98: 0.2411189411 | BE98: 0.1289909212
G99: 90 | H99: 24 | I99: 1 | J99: 8.1 | K99: 8.1 | L99: 4.5 | M99: 0.5023868861 | N99: 2.006080202 | O99: 9.103040101 | P99: 7.096959899 | Q99: 0 | R99: 8.120675043 | S99: 0.1318907263 | T99: 0.25 | U99: 0.3859631228 | V99: 0.5791054722 | W99: 0.000335363148 | X99: 0.000335363148 | Y99: 4.060291256 | Z99: 0.03297193016 | AA99: 0.03297193016 | AB99: 5.755874012 | AC99: 0.1490853854 | AD99: 0.1455448298 | AE99: 0.11772288 | AF99: 0 | AG99: 0.4250261321 | AH99: 5.728462054 | AI99: 0.1197757629 | AJ99: 0.0798336 | AK99: 0.2045083926 | AL99: 0.0798336 | AM99: 0.123552 | AN99: 0.1318907263 | AO99: 0.00084 | AP99: 0.0374 | AQ99: 0.17952 | AR99: 0.14212 | AS99: 0.03824 | AT99: 1.422321267 | AU99: 97.2 | AV99: 0.9855780999 | AW99: 25.32852261 | AX99: 12.26402763 | AZ99: 98.55780999 | BA99: 0.3859631228 | BB99: 0.7530865248 | BC99: 0.5065704521 | BD99: 0.2452805526 | BE99: 0.1318907263
G100: 91 | H100: 24 | I100: 1 | J100: 8.19 | K100: 8.19 | L100: 4.55 | M100: 0.5024133966 | N100: 2.006087828 | O100: 9.193043914 | P100: 7.186956086 | Q100: 0 | R100: 8.210448569 | S100: 0.1348229314 | T100: 0.25 | U100: 0.3890188241 | V100: 0.5791076739 | W100: 0.0003353656979 | X100: 0.0003353656979 | Y100: 4.105176462 | Z100: 0.03370494758 | AA100: 0.03370494758 | AB100: 5.819658362 | AC100: 0.1524079055 | AD100: 0.1471619946 | AE100: 0.11772288 | AF100: 0 | AG100: 0.4304124316 | AH100: 5.791635541 | AI100: 0.1224321042 | AJ100: 0.08072064 | AK100: 0.2082520926 | AL100: 0.08072064 | AM100: 0.1249248 | AN100: 0.1348229314 | AO100: 0.00084 | AP100: 0.0374 | AQ100: 0.17952 | AR100: 0.14212 | AS100: 0.03824 | AT100: 1.440432033 | AU100: 98.28 | AV100: 0.9855552969 | AW100: 25.64313998 | AX100: 12.47386383 | AZ100: 98.55552969 | BA100: 0.3890188241 | BB100: 0.7635893241 | BC100: 0.5128627996 | BD100: 0.2494772766 | BE100: 0.1348229314
G101: 92 | H101: 24 | I101: 1 | J101: 8.28 | K101: 8.28 | L101: 4.6 | M101: 0.502439907 | N101: 2.006095444 | O101: 9.283047722 | P101: 7.276952278 | Q101: 0 | R101: 8.300227 | S101: 0.1377875365 | T101: 0.25 | U101: 0.3921097636 | V101: 0.5791098722 | W101: 0.0003353682441 | X101: 0.0003353682441 | Y101: 4.150064087 | Z101: 0.03444606385 | AA101: 0.03444606385 | AB101: 5.883449541 | AC101: 0.1557674033 | AD101: 0.1487791594 | AE101: 0.11772288 | AF101: 0 | AG101: 0.4358476128 | AH101: 5.854809112 | AI101: 0.1251175825 | AJ101: 0.08160768 | AK101: 0.2120310244 | AL101: 0.08160768 | AM101: 0.1262976 | AN101: 0.1377875365 | AO101: 0.00084 | AP101: 0.0374 | AQ101: 0.17952 | AR101: 0.14212 | AS101: 0.03824 | AT101: 1.458702649 | AU101: 99.36 | AV101: 0.9855314281 | AW101: 25.96020144 | AX101: 12.68546162 | AZ101: 98.55314281 | BA101: 0.3921097636 | BB101: 0.7741762372 | BC101: 0.5192040288 | BD101: 0.2537092324 | BE101: 0.1377875365
G102: 93 | H102: 24 | I102: 1 | J102: 8.37 | K102: 8.37 | L102: 4.65 | M102: 0.5024664171 | N102: 2.006103048 | O102: 9.373051524 | P102: 7.366948476 | Q102: 0 | R102: 8.390010178 | S102: 0.1407845416 | T102: 0.25 | U102: 0.395235991 | V102: 0.5791120674 | W102: 0.0003353707866 | X102: 0.0003353707866 | Y102: 4.19495405 | Z102: 0.03519527897 | AA102: 0.03519527897 | AB102: 5.947247438 | AC102: 0.1591638844 | AD102: 0.1503963241 | AE102: 0.11772288 | AF102: 0 | AG102: 0.4413319087 | AH102: 5.917982654 | AI102: 0.1278321932 | AJ102: 0.08249472 | AK102: 0.2158453091 | AL102: 0.08249472 | AM102: 0.1276704 | AN102: 0.1407845416 | AO102: 0.00084 | AP102: 0.0374 | AQ102: 0.17952 | AR102: 0.14212 | AS102: 0.03824 | AT102: 1.47713352 | AU102: 100.44 | AV102: 0.9855065241 | AW102: 26.27971864 | AX102: 12.89882705 | AZ102: 98.55065241 | BA102: 0.395235991 | BB102: 0.7848476178 | BC102: 0.5255943727 | BD102: 0.2579765411 | BE102: 0.1407845416
G103: 94 | H103: 24 | I103: 1 | J103: 8.46 | K103: 8.46 | L103: 4.7 | M103: 0.5024929269 | N103: 2.006110641 | O103: 9.46305532 | P103: 7.45694468 | Q103: 0 | R103: 8.479797953 | S103: 0.1438139467 | T103: 0.25 | U103: 0.3983975566 | V103: 0.5791142592 | W103: 0.0003353733252 | X103: 0.0003353733252 | Y103: 4.239846277 | Z103: 0.0359525929 | AA103: 0.0359525929 | AB103: 6.011051946 | AC103: 0.1625973547 | AD103: 0.1520134889 | AE103: 0.11772288 | AF103: 0 | AG103: 0.4468655551 | AH103: 5.981156062 | AI103: 0.1305759316 | AJ103: 0.08338176 | AK103: 0.2196950693 | AL103: 0.08338176 | AM103: 0.1290432 | AN103: 0.1438139467 | AO103: 0.00084 | AP103: 0.0374 | AQ103: 0.17952 | AR103: 0.14212 | AS103: 0.03824 | AT103: 1.495725054 | AU103: 101.52 | AV103: 0.9854806142 | AW103: 26.60170335 | AX103: 13.11396626 | AZ103: 98.54806142 | BA103: 0.3983975566 | BB103: 0.7956038243 | BC103: 0.5320340671 | BD103: 0.2622793253 | BE103: 0.1438139467
G104: 95 | H104: 24 | I104: 1 | J104: 8.55 | K104: 8.55 | L104: 4.75 | M104: 0.5025194366 | N104: 2.006118222 | O104: 9.553059111 | P104: 7.546940889 | Q104: 0 | R104: 8.56959018 | S104: 0.1468757517 | T104: 0.25 | U104: 0.4015945114 | V104: 0.5791164478 | W104: 0.0003353758602 | X104: 0.0003353758602 | Y104: 4.284740694 | Z104: 0.03671800563 | AA104: 0.03671800563 | AB104: 6.074862961 | AC104: 0.16606782 | AD104: 0.1536306537 | AE104: 0.11772288 | AF104: 0 | AG104: 0.4524487905 | AH104: 6.044329232 | AI104: 0.1333487929 | AJ104: 0.0842688 | AK104: 0.223580429 | AL104: 0.0842688 | AM104: 0.130416 | AN104: 0.1468757517 | AO104: 0.00084 | AP104: 0.0374 | AQ104: 0.17952 | AR104: 0.14212 | AS104: 0.03824 | AT104: 1.514477664 | AU104: 102.6 | AV104: 0.9854537265 | AW104: 26.92616753 | AX104: 13.33088545 | AZ104: 98.54537265 | BA104: 0.4015945114 | BB104: 0.8064452195 | BC104: 0.5385233505 | BD104: 0.266617709 | BE104: 0.1468757517
G105: 96 | H105: 24 | I105: 1 | J105: 8.64 | K105: 8.64 | L105: =Vout*K105/(Vin*Efficiency) -> 4.8 | M105: 0.502545946 | N105: =(Vin-(Rdson1+Rdcr)*K105-Vout)*M105/(Fsw*Lf) -> 2.006125793 | O105: 9.643062896 | P105: 7.636937104 | Q105: =IF(MIN(Vin, -P105/(Coss_Q1+Coss_Q2)*0.00000002)<0, 0, MIN(Vin, -P105/(Coss_Q1+Coss_Q2)*0.00000002)) -> 0 | R105: 8.659386721 | S105: =R105^2*Rdcr -> 0.1499699568 | T105: 0.25 | U105: =(T105+S105*(1+Ltc*(Ta-25)))/(1-S105*Ltc*ThetaCa) -> 0.4048269067 | V105: 0.5791186332 | W105: 0.0003353783913 | X105: 0.0003353783913 | Y105: 4.329637232 | Z105: 0.03749151711 | AA105: 0.03749151711 | AB105: 6.138680387 | AC105: =Rdson1*AB105^2 -> 0.169575286 | AD105: 0.1552478185 | AE105: 0.11772288 | AF105: 0 | AG105: =(AF105+AE105+AD105+AC105*(1+RdsonTopTc*Ta-RdsonTopTc*25))/(1-AC105*RdsonTopTc*ThetaJA_Q1) -> 0.4580818569 | AH105: 6.107502066 | AI105: =Rdson2*AH105^2 -> 0.1361507724 | AJ105: 0.08515584 | AK105: =(AJ105+AI105*(1+RdsonBotTc*Ta-RdsonBotTc*25))/(1-AI105*RdsonBotTc*ThetaJA_Q2) -> 0.2275015138 | AL105: 0.08515584 | AM105: 0.1317888 | AN105: 0.1499699568 | AO105: 0.00084 | AP105: 0.0374 | AQ105: 0.17952 | AR105: 0.14212 | AS105: 0.03824 | AT105: =SUM(U105,X105,AA105,AG105,AK105,AL105,AM105,AS105,AN105) -> 1.53339177 | AU105: 103.68 | AV105: 0.9854258879 | AW105: 27.25312324 | AX105: 13.54959089 | AZ105: 98.54258879 | BA105: 0.4048269067 | BB105: 0.8173721707 | BC105: 0.5450624649 | BD105: 0.2709918178 | BE105: 0.1499699568
G106: 97 | H106: 24 | I106: 1 | J106: 8.73 | K106: 8.73 | L106: 4.85 | M106: 0.5025724552 | N106: 2.006133352 | O106: 9.733066676 | P106: 7.726933324 | Q106: 0 | R106: 8.749187443 | S106: 0.1530965618 | T106: 0.25 | U106: 0.4080947946 | V106: 0.5791208153 | W106: 0.0003353809187 | X106: 0.0003353809187 | Y106: 4.374535823 | Z106: 0.03827312734 | AA106: 0.03827312734 | AB106: 6.20250413 | AC106: 0.1731197587 | AD106: 0.1568649832 | AE106: 0.11772288 | AF106: 0 | AG106: 0.4637649988 | AH106: 6.170674472 | AI106: 0.1389818656 | AJ106: 0.08604288 | AK106: 0.231458451 | AL106: 0.08604288 | AM106: 0.1331616 | AN106: 0.1530965618 | AO106: 0.00084 | AP106: 0.0374 | AQ106: 0.17952 | AR106: 0.14212 | AS106: 0.03824 | AT106: 1.552467795 | AU106: 104.76 | AV106: 0.9853971239 | AW106: 27.58258274 | AX106: 13.77008895 | AZ106: 98.53971239 | BA106: 0.4080947946 | BB106: 0.8283850498 | BC106: 0.5516516548 | BD106: 0.275401779 | BE106: 0.1530965618
G107: 98 | H107: 24 | I107: 1 | J107: 8.82 | K107: 8.82 | L107: 4.9 | M107: 0.5025989641 | N107: 2.006140899 | O107: 9.82307045 | P107: 7.81692955 | Q107: 0 | R107: 8.838992219 | S107: 0.1562555669 | T107: 0.25 | U107: 0.411398228 | V107: 0.5791229941 | W107: 0.0003353834423 | X107: 0.0003353834423 | Y107: 4.419436405 | Z107: 0.03906283628 | AA107: 0.03906283628 | AB107: 6.266334098 | AC107: 0.1767012436 | AD107: 0.158482148 | AE107: 0.11772288 | AF107: 0 | AG107: 0.4694984641 | AH107: 6.233846358 | AI107: 0.1418420675 | AJ107: 0.08692992 | AK107: 0.2354513693 | AL107: 0.08692992 | AM107: 0.1345344 | AN107: 0.1562555669 | AO107: 0.00084 | AP107: 0.0374 | AQ107: 0.17952 | AR107: 0.14212 | AS107: 0.03824 | AT107: 1.571706168 | AU107: 105.84 | AV107: 0.9853674592 | AW107: 27.91455841 | AX107: 13.99238607 | AZ107: 98.53674592 | BA107: 0.411398228 | BB107: 0.8394842334 | BC107: 0.5582911681 | BD107: 0.2798477213 | BE107: 0.1562555669
G108: 99 | H108: 24 | I108: 1 | J108: 8.91 | K108: 8.91 | L108: 4.95 | M108: 0.5026254728 | N108: 2.006148436 | O108: 9.913074218 | P108: 7.906925782 | Q108: 0 | R108: 8.928800925 | S108: 0.1594469719 | T108: 0.25 | U108: 0.4147372599 | V108: 0.5791251697 | W108: 0.0003353859622 | X108: 0.0003353859622 | Y108: 4.464338915 | Z108: 0.0398606439 | AA108: 0.0398606439 | AB108: 6.330170205 | AC108: 0.1803197467 | AD108: 0.1600993128 | AE108: 0.11772288 | AF108: 0 | AG108: 0.4752825036 | AH108: 6.297017638 | AI108: 0.1447313736 | AJ108: 0.08781696 | AK108: 0.2394803991 | AL108: 0.08781696 | AM108: 0.1359072 | AN108: 0.1594469719 | AO108: 0.00084 | AP108: 0.0374 | AQ108: 0.17952 | AR108: 0.14212 | AS108: 0.03824 | AT108: 1.591107324 | AU108: 106.92 | AV108: 0.9853369174 | AW108: 28.24906278 | AX108: 14.21648875 | AZ108: 98.53369174 | BA108: 0.4147372599 | BB108: 0.8506701027 | BC108: 0.5649812556 | BD108: 0.2843297751 | BE108: 0.1594469719
G109: 100 | H109: 24 | I109: 1 | J109: 9 | K109: 9 | L109: 5 | M109: 0.5026519813 | N109: 2.006155961 | O109: 10.00307798 | P109: 7.99692202 | Q109: 0 | R109: 9.018613445 | S109: 0.162670777 | T109: 0.25 | U109: 0.4181119445 | V109: 0.579127342 | W109: 0.0003353884783 | X109: 0.0003353884783 | Y109: 4.509243294 | Z109: 0.04066655017 | AA109: 0.04066655017 | AB109: 6.394012369 | AC109: 0.1839752738 | AD109: 0.1617164776 | AE109: 0.11772288 | AF109: 0 | AG109: 0.4811173714 | AH109: 6.360188229 | AI109: 0.1476497792 | AJ109: 0.088704 | AK109: 0.2435456722 | AL109: 0.088704 | AM109: 0.13728 | AN109: 0.162670777 | AO109: 0.00084 | AP109: 0.0374 | AQ109: 0.17952 | AR109: 0.14212 | AS109: 0.03824 | AT109: 1.610671704 | AU109: 108 | AV109: 0.9853055211 | AW109: 28.58610857 | AX109: 14.44240361 | AZ109: 98.53055211 | BA109: 0.4181119445 | BB109: 0.8619430435 | BC109: 0.5717221714 | BD109: 0.2888480722 | BE109: 0.162670777

Sheet Efficiency Plot Management (hidden)
A2: =IF(PLOT_TYPE=1, "EFF_Ch1", "EFF_Ch2") -> EFF_Ch1

Sheet Schematic Management (hidden)
N1: 3.3V or 5V fixed (FB1/2)
A2: =IF(DITHER=1, CHOOSE(SCH_SETTING, "SCH_ADJ_VOUT", "SCH_5V_FIXED", "SCH_3V3_FIXED", "SCH_ADJ_VOUT_NO_RT", "SCH_5V_FIXED_NO_RT", "SCH_3V3_FIXED_NO_RT"), CHOOSE(SCH_SETTING, "SCH_ADJ_VOUT_NO_DITH", "SCH_5V_FIXED_NO_DITH", "SCH_3V3_FIXED_NO_DITH", "SCH_ADJ_VOUT_NO_RT_NO_DITH", "SCH_5V_FIXED_NO_RT_NO_DITH", "SCH_3V3_FIXED_NO_RT_NO_DITH")) -> SCH_ADJ_VOUT_NO_RT | J2: With/without dither (DITH) | N2: With/without VOUT connected to VCCX
J3: FPWM or DEM (DEMB)
J4: Shunt or inductor DCR current sensing

Sheet Standard Value Calculator (hidden)
A2: Capacitors | B2: Css | C2: Cc1ea | D2: Cc2ea | E2: Cout | F2: Cin | G2: Cres | H2: Cdither | I2: Cc3ea | J2: Cc4ea
A3: Inputs | B3: =Css -> 5.5e-08 | C3: =Cc1ea -> 1.809720505e-09 | D3: =Cc2ea -> 1.258942375e-11 | E3: =Cout -> 0.00024 | F3: =Cin -> 2e-05 | G3: =Cres -> 3.333333333e-07 | H3: =Cdither_init -> 1.041666667e-08 | I3: =Cc3ea -> 0 | J3: =Cc4ea -> 0 | M3: Resistors | N3: inputs | O3: Standard Result
A4: Standard Result | B4: =SUM(B6:B158)/1000000000000 -> 5.6e-08 | C4: =IF(C3="OPEN","OPEN",SUM(C6:C158)/1000000000000) -> 1.8e-09 | D4: =SUM(D6:D158)/1000000000000 -> 1.2e-11 | E4: =SUM(E6:E158)/1000000000000 -> 0.00022 | F4: =SUM(F6:F158)/1000000000000 -> 2.2e-05 | G4: =SUM(G6:G158)/1000000000000 -> 3.3e-07 | H4: =IF(H3="OPEN","OPEN",SUM(H6:H158)/1000000000000) -> 1e-08 | I4: 0 | J4: 0 | M4: Rt | N4: =Rfadj -> 49.9 | O4: =IF(N4>(INT(0.5+100*POWER(10,IF(96*(LOG(N4)-INT(LOG(N4)))-ROUND(96*(LOG(N4)-INT(LOG(N4))),0)<0,ROUND(96*(LOG(N4)-INT(LOG(N4))),0)-1,ROUND(96*(LOG(N4)-INT(LOG(N4))),0))/96))*POWER(10,INT(LOG(N4))-2)+INT(0.5+100*POWER(10,(IF(96*(LOG(N4)-INT(LOG(N4)))-ROUND(96*(LOG(N4)-INT(LOG(N4))),0)<0,ROUND(96*(LOG(N4)-INT(LOG(N4))),0)-1,ROUND(96*(LOG(N4)-INT(LOG(N4))),0))+1)/96))*POWER(10,INT(LOG(N4))-2))/2,INT(0.5+100*POWER(10,(IF(96*(LOG(N4)-INT(LOG(N4)))-ROUND(96*(LOG(N4)-INT(LOG(N4))),0)<0,ROUND(96*(LOG(N4)-INT(LOG(N4))),0)-1,ROUND(96*(LOG(N4)-INT(LOG(N4))),0))+1)/96))*POWER(10,INT(LOG(N4))-2),INT(0.5+100*POWER(10,IF(96*(LOG(N4)-INT(LOG(N4)))-ROUND(96*(LOG(N4)-INT(LOG(N4))),0)<0,ROUND(96*(LOG(N4)-INT(LOG(N4))),0)-1,ROUND(96*(LOG(N4)-INT(LOG(N4))),0))/96))*POWER(10,INT(LOG(N4))-2)) -> 49.9 | P4: Ω
A5: (pF)
A6: 0.47 | B6: =IF(IF((B$3*10^12-$A7)*(B$3*10^12-$A6)*-1<0,0,1)*IF(ABS(B$3*10^12-$A7)>(B$3*10^12-$A6),$A6,$A7)=B7,0,IF((B$3*10^12-$A7)*(B$3*10^12-$A6)*-1<0,0,1)*IF(ABS(B$3*10^12-$A7)>(B$3*10^12-$A6),$A6,$A7)) -> 0 | C6: 0 | D6: 0 | E6: 0 | F6: 0 | G6: 0 | H6: 0 | I6: 0 | J6: 0
A7: 0.56 | B7: =IF(IF((B$3*10^12-$A8)*(B$3*10^12-$A7)*-1<0,0,1)*IF(ABS(B$3*10^12-$A8)>(B$3*10^12-$A7),$A7,$A8)=B8,0,IF((B$3*10^12-$A8)*(B$3*10^12-$A7)*-1<0,0,1)*IF(ABS(B$3*10^12-$A8)>(B$3*10^12-$A7),$A7,$A8)) -> 0 | C7: =IF(IF((C$3*10^12-$A8)*(C$3*10^12-$A7)*-1<0,0,1)*IF(ABS(C$3*10^12-$A8)>(C$3*10^12-$A7),$A7,$A8)=C8,0,IF((C$3*10^12-$A8)*(C$3*10^12-$A7)*-1<0,0,1)*IF(ABS(C$3*10^12-$A8)>(C$3*10^12-$A7),$A7,$A8)) -> 0 | D7: =IF(IF((D$3*10^12-$A8)*(D$3*10^12-$A7)*-1<0,0,1)*IF(ABS(D$3*10^12-$A8)>(D$3*10^12-$A7),$A7,$A8)=D8,0,IF((D$3*10^12-$A8)*(D$3*10^12-$A7)*-1<0,0,1)*IF(ABS(D$3*10^12-$A8)>(D$3*10^12-$A7),$A7,$A8)) -> 0 | E7: =IF(IF((E$3*10^12-$A8)*(E$3*10^12-$A7)*-1<0,0,1)*IF(ABS(E$3*10^12-$A8)>(E$3*10^12-$A7),$A7,$A8)=E8,0,IF((E$3*10^12-$A8)*(E$3*10^12-$A7)*-1<0,0,1)*IF(ABS(E$3*10^12-$A8)>(E$3*10^12-$A7),$A7,$A8)) -> 0 | F7: =IF(IF((F$3*10^12-$A8)*(F$3*10^12-$A7)*-1<0,0,1)*IF(ABS(F$3*10^12-$A8)>(F$3*10^12-$A7),$A7,$A8)=F8,0,IF((F$3*10^12-$A8)*(F$3*10^12-$A7)*-1<0,0,1)*IF(ABS(F$3*10^12-$A8)>(F$3*10^12-$A7),$A7,$A8)) -> 0 | G7: =IF(IF((G$3*10^12-$A8)*(G$3*10^12-$A7)*-1<0,0,1)*IF(ABS(G$3*10^12-$A8)>(G$3*10^12-$A7),$A7,$A8)=G8,0,IF((G$3*10^12-$A8)*(G$3*10^12-$A7)*-1<0,0,1)*IF(ABS(G$3*10^12-$A8)>(G$3*10^12-$A7),$A7,$A8)) -> 0 | H7: 0 | I7: 0 | J7: 0 | M7: Rc1ea | N7: =Rcea1 -> 16286.0163 | O7: 16200 | P7: Ω
A8: 0.68 | B8: 0 | C8: 0 | D8: 0 | E8: 0 | F8: 0 | G8: 0 | H8: 0 | I8: 0 | J8: 0 | M8: Rc1ea | N8: =Rcea2 -> 0 | O8: =IF(N8>(INT(0.5+100*POWER(10,IF(96*(LOG(N8)-INT(LOG(N8)))-ROUND(96*(LOG(N8)-INT(LOG(N8))),0)<0,ROUND(96*(LOG(N8)-INT(LOG(N8))),0)-1,ROUND(96*(LOG(N8)-INT(LOG(N8))),0))/96))*POWER(10,INT(LOG(N8))-2)+INT(0.5+100*POWER(10,(IF(96*(LOG(N8)-INT(LOG(N8)))-ROUND(96*(LOG(N8)-INT(LOG(N8))),0)<0,ROUND(96*(LOG(N8)-INT(LOG(N8))),0)-1,ROUND(96*(LOG(N8)-INT(LOG(N8))),0))+1)/96))*POWER(10,INT(LOG(N8))-2))/2,INT(0.5+100*POWER(10,(IF(96*(LOG(N8)-INT(LOG(N8)))-ROUND(96*(LOG(N8)-INT(LOG(N8))),0)<0,ROUND(96*(LOG(N8)-INT(LOG(N8))),0)-1,ROUND(96*(LOG(N8)-INT(LOG(N8))),0))+1)/96))*POWER(10,INT(LOG(N8))-2),INT(0.5+100*POWER(10,IF(96*(LOG(N8)-INT(LOG(N8)))-ROUND(96*(LOG(N8)-INT(LOG(N8))),0)<0,ROUND(96*(LOG(N8)-INT(LOG(N8))),0)-1,ROUND(96*(LOG(N8)-INT(LOG(N8))),0))/96))*POWER(10,INT(LOG(N8))-2)) ->  | P8: Ω
A9: 0.82 | B9: 0 | C9: 0 | D9: 0 | E9: 0 | F9: 0 | G9: 0 | H9: 0 | I9: 0 | J9: 0
A10: 1 | B10: 0 | C10: 0 | D10: 0 | E10: 0 | F10: 0 | G10: 0 | H10: 0 | I10: 0 | J10: 0 | M10: Rfb1 | N10: =Rfb1_ -> 49900 | O10: =IF(N10>(INT(0.5+100*POWER(10,IF(96*(LOG(N10)-INT(LOG(N10)))-ROUND(96*(LOG(N10)-INT(LOG(N10))),0)<0,ROUND(96*(LOG(N10)-INT(LOG(N10))),0)-1,ROUND(96*(LOG(N10)-INT(LOG(N10))),0))/96))*POWER(10,INT(LOG(N10))-2)+INT(0.5+100*POWER(10,(IF(96*(LOG(N10)-INT(LOG(N10)))-ROUND(96*(LOG(N10)-INT(LOG(N10))),0)<0,ROUND(96*(LOG(N10)-INT(LOG(N10))),0)-1,ROUND(96*(LOG(N10)-INT(LOG(N10))),0))+1)/96))*POWER(10,INT(LOG(N10))-2))/2,INT(0.5+100*POWER(10,(IF(96*(LOG(N10)-INT(LOG(N10)))-ROUND(96*(LOG(N10)-INT(LOG(N10))),0)<0,ROUND(96*(LOG(N10)-INT(LOG(N10))),0)-1,ROUND(96*(LOG(N10)-INT(LOG(N10))),0))+1)/96))*POWER(10,INT(LOG(N10))-2),INT(0.5+100*POWER(10,IF(96*(LOG(N10)-INT(LOG(N10)))-ROUND(96*(LOG(N10)-INT(LOG(N10))),0)<0,ROUND(96*(LOG(N10)-INT(LOG(N10))),0)-1,ROUND(96*(LOG(N10)-INT(LOG(N10))),0))/96))*POWER(10,INT(LOG(N10))-2)) -> 49900 | P10: Ω
A11: 1.2 | B11: 0 | C11: 0 | D11: 0 | E11: 0 | F11: 0 | G11: 0 | H11: 0 | I11: 0 | J11: 0 | M11: Rfb2 | N11: =Rfb2_ -> 5544.444444 | O11: =IF(N11="OPEN","OPEN",IF(N11>(INT(0.5+100*POWER(10,IF(96*(LOG(N11)-INT(LOG(N11)))-ROUND(96*(LOG(N11)-INT(LOG(N11))),0)<0,ROUND(96*(LOG(N11)-INT(LOG(N11))),0)-1,ROUND(96*(LOG(N11)-INT(LOG(N11))),0))/96))*POWER(10,INT(LOG(N11))-2)+INT(0.5+100*POWER(10,(IF(96*(LOG(N11)-INT(LOG(N11)))-ROUND(96*(LOG(N11)-INT(LOG(N11))),0)<0,ROUND(96*(LOG(N11)-INT(LOG(N11))),0)-1,ROUND(96*(LOG(N11)-INT(LOG(N11))),0))+1)/96))*POWER(10,INT(LOG(N11))-2))/2,INT(0.5+100*POWER(10,(IF(96*(LOG(N11)-INT(LOG(N11)))-ROUND(96*(LOG(N11)-INT(LOG(N11))),0)<0,ROUND(96*(LOG(N11)-INT(LOG(N11))),0)-1,ROUND(96*(LOG(N11)-INT(LOG(N11))),0))+1)/96))*POWER(10,INT(LOG(N11))-2),INT(0.5+100*POWER(10,IF(96*(LOG(N11)-INT(LOG(N11)))-ROUND(96*(LOG(N11)-INT(LOG(N11))),0)<0,ROUND(96*(LOG(N11)-INT(LOG(N11))),0)-1,ROUND(96*(LOG(N11)-INT(LOG(N11))),0))/96))*POWER(10,INT(LOG(N11))-2))) -> 5490 | P11: Ω
A12: 1.5 | B12: 0 | C12: 0 | D12: 0 | E12: 0 | F12: 0 | G12: 0 | H12: 0 | I12: 0 | J12: 0 | M12: Rt1 | N12: ='Variable Management'!B27*1000 -> 261758.9852 | O12: =IF(N12>(INT(0.5+100*POWER(10,IF(96*(LOG(N12)-INT(LOG(N12)))-ROUND(96*(LOG(N12)-INT(LOG(N12))),0)<0,ROUND(96*(LOG(N12)-INT(LOG(N12))),0)-1,ROUND(96*(LOG(N12)-INT(LOG(N12))),0))/96))*POWER(10,INT(LOG(N12))-2)+INT(0.5+100*POWER(10,(IF(96*(LOG(N12)-INT(LOG(N12)))-ROUND(96*(LOG(N12)-INT(LOG(N12))),0)<0,ROUND(96*(LOG(N12)-INT(LOG(N12))),0)-1,ROUND(96*(LOG(N12)-INT(LOG(N12))),0))+1)/96))*POWER(10,INT(LOG(N12))-2))/2,INT(0.5+100*POWER(10,(IF(96*(LOG(N12)-INT(LOG(N12)))-ROUND(96*(LOG(N12)-INT(LOG(N12))),0)<0,ROUND(96*(LOG(N12)-INT(LOG(N12))),0)-1,ROUND(96*(LOG(N12)-INT(LOG(N12))),0))+1)/96))*POWER(10,INT(LOG(N12))-2),INT(0.5+100*POWER(10,IF(96*(LOG(N12)-INT(LOG(N12)))-ROUND(96*(LOG(N12)-INT(LOG(N12))),0)<0,ROUND(96*(LOG(N12)-INT(LOG(N12))),0)-1,ROUND(96*(LOG(N12)-INT(LOG(N12))),0))/96))*POWER(10,INT(LOG(N12))-2)) -> 261000 | P12: Ω
A13: 1.8 | B13: 0 | C13: 0 | D13: 0 | E13: 0 | F13: 0 | G13: 0 | H13: 0 | I13: 0 | J13: 0 | M13: Rt2 | N13: ='Variable Management'!B28*1000 -> 50198.38384 | O13: =IF(N13="OPEN","OPEN",IF(N13>(INT(0.5+100*POWER(10,IF(96*(LOG(N13)-INT(LOG(N13)))-ROUND(96*(LOG(N13)-INT(LOG(N13))),0)<0,ROUND(96*(LOG(N13)-INT(LOG(N13))),0)-1,ROUND(96*(LOG(N13)-INT(LOG(N13))),0))/96))*POWER(10,INT(LOG(N13))-2)+INT(0.5+100*POWER(10,(IF(96*(LOG(N13)-INT(LOG(N13)))-ROUND(96*(LOG(N13)-INT(LOG(N13))),0)<0,ROUND(96*(LOG(N13)-INT(LOG(N13))),0)-1,ROUND(96*(LOG(N13)-INT(LOG(N13))),0))+1)/96))*POWER(10,INT(LOG(N13))-2))/2,INT(0.5+100*POWER(10,(IF(96*(LOG(N13)-INT(LOG(N13)))-ROUND(96*(LOG(N13)-INT(LOG(N13))),0)<0,ROUND(96*(LOG(N13)-INT(LOG(N13))),0)-1,ROUND(96*(LOG(N13)-INT(LOG(N13))),0))+1)/96))*POWER(10,INT(LOG(N13))-2),INT(0.5+100*POWER(10,IF(96*(LOG(N13)-INT(LOG(N13)))-ROUND(96*(LOG(N13)-INT(LOG(N13))),0)<0,ROUND(96*(LOG(N13)-INT(LOG(N13))),0)-1,ROUND(96*(LOG(N13)-INT(LOG(N13))),0))/96))*POWER(10,INT(LOG(N13))-2))) -> 49900 | P13: Ω
A14: 2.2 | B14: =IF(IF((B$3*10^12-$A15)*(B$3*10^12-$A14)*-1<0,0,1)*IF(ABS(B$3*10^12-$A15)>(B$3*10^12-$A14),$A14,$A15)=B15,0,IF((B$3*10^12-$A15)*(B$3*10^12-$A14)*-1<0,0,1)*IF(ABS(B$3*10^12-$A15)>(B$3*10^12-$A14),$A14,$A15)) -> 0 | C14: 0 | D14: 0 | E14: 0 | F14: 0 | G14: 0 | H14: 0 | I14: 0 | J14: 0
A15: 2.7 | B15: 0 | C15: 0 | D15: 0 | E15: 0 | F15: 0 | G15: 0 | H15: 0 | I15: 0 | J15: 0
A16: 3.3 | B16: 0 | C16: 0 | D16: 0 | E16: 0 | F16: 0 | G16: 0 | H16: 0 | I16: 0 | J16: 0 | M16: Rs | N16: =Rs_ideal*1000 -> 5.767044562 | O16: =IF(N16=0,0,IF(N16>(INT(0.5+100*POWER(10,IF(96*(LOG(N16)-INT(LOG(N16)))-ROUND(96*(LOG(N16)-INT(LOG(N16))),0)<0,ROUND(96*(LOG(N16)-INT(LOG(N16))),0)-1,ROUND(96*(LOG(N16)-INT(LOG(N16))),0))/96))*POWER(10,INT(LOG(N16))-2)+INT(0.5+100*POWER(10,(IF(96*(LOG(N16)-INT(LOG(N16)))-ROUND(96*(LOG(N16)-INT(LOG(N16))),0)<0,ROUND(96*(LOG(N16)-INT(LOG(N16))),0)-1,ROUND(96*(LOG(N16)-INT(LOG(N16))),0))+1)/96))*POWER(10,INT(LOG(N16))-2))/2,INT(0.5+100*POWER(10,(IF(96*(LOG(N16)-INT(LOG(N16)))-ROUND(96*(LOG(N16)-INT(LOG(N16))),0)<0,ROUND(96*(LOG(N16)-INT(LOG(N16))),0)-1,ROUND(96*(LOG(N16)-INT(LOG(N16))),0))+1)/96))*POWER(10,INT(LOG(N16))-2),INT(0.5+100*POWER(10,IF(96*(LOG(N16)-INT(LOG(N16)))-ROUND(96*(LOG(N16)-INT(LOG(N16))),0)<0,ROUND(96*(LOG(N16)-INT(LOG(N16))),0)-1,ROUND(96*(LOG(N16)-INT(LOG(N16))),0))/96))*POWER(10,INT(LOG(N16))-2))) -> 5.76 | P16: mΩ
A17: 3.9 | B17: 0 | C17: 0 | D17: 0 | E17: 0 | F17: 0 | G17: 0 | H17: 0 | I17: 0 | J17: 0 | M17: Cres | N17: =Cres -> 3.333333333e-07 | O17: =G4*1000000000000 -> 330000 | P17: pF
A18: 4.7 | B18: 0 | C18: 0 | D18: 0 | E18: 0 | F18: 0 | G18: 0 | H18: 0 | I18: 0 | J18: 0
A19: 5.6 | B19: 0 | C19: 0 | D19: 0 | E19: 0 | F19: 0 | G19: 0 | H19: 0 | I19: 0 | J19: 0
A20: 6.8 | B20: 0 | C20: 0 | D20: 0 | E20: 0 | F20: 0 | G20: 0 | H20: 0 | I20: 0 | J20: 0
A21: 8.2 | B21: 0 | C21: 0 | D21: 0 | E21: 0 | F21: 0 | G21: 0 | H21: 0 | I21: 0 | J21: 0
A22: 10 | B22: 0 | C22: 0 | D22: 0 | E22: 0 | F22: 0 | G22: 0 | H22: 0 | I22: 0 | J22: 0 | M22: Cdither | N22: =Cdither_init -> 1.041666667e-08 | O22: =H4 -> 1e-08
A23: 12 | B23: 0 | C23: 0 | D23: 12 | E23: 0 | F23: 0 | G23: 0 | H23: 0 | I23: 0 | J23: 0
A24: 15 | B24: 0 | C24: 0 | D24: 0 | E24: 0 | F24: 0 | G24: 0 | H24: 0 | I24: 0 | J24: 0
A25: 18 | B25: 0 | C25: 0 | D25: 0 | E25: 0 | F25: 0 | G25: 0 | H25: 0 | I25: 0 | J25: 0
A26: 22 | B26: 0 | C26: 0 | D26: 0 | E26: 0 | F26: 0 | G26: 0 | H26: 0 | I26: 0 | J26: 0
A27: 27 | B27: 0 | C27: 0 | D27: 0 | E27: 0 | F27: 0 | G27: 0 | H27: 0 | I27: 0 | J27: 0
A28: 33 | B28: 0 | C28: 0 | D28: 0 | E28: 0 | F28: 0 | G28: 0 | H28: 0 | I28: 0 | J28: 0
A29: 39 | B29: 0 | C29: 0 | D29: 0 | E29: 0 | F29: 0 | G29: 0 | H29: 0 | I29: 0 | J29: 0
A30: 47 | B30: 0 | C30: 0 | D30: 0 | E30: 0 | F30: 0 | G30: 0 | H30: 0 | I30: 0 | J30: 0 | M30: Rc1 | N30: =O7/1000&" kΩ" -> 16.2 kΩ | O30: =O7/1000 -> 16.2 | P30: kΩ
A31: 56 | B31: 0 | C31: 0 | D31: 0 | E31: 0 | F31: 0 | G31: 0 | H31: 0 | I31: 0 | J31: 0 | M31: Cc1 | N31: =C4*1000000000&" nF" -> 1.8 nF | O31: =C4*1000000000 -> 1.8 | P31: nF
A32: 68 | B32: 0 | C32: 0 | D32: 0 | E32: 0 | F32: 0 | G32: 0 | H32: 0 | I32: 0 | J32: 0 | M32: Cc2 | N32: =D4*1000000000000&" pF" -> 12 pF | O32: =D4*1000000000000 -> 12 | P32: pF
A33: 82 | B33: 0 | C33: 0 | D33: 0 | E33: 0 | F33: 0 | G33: 0 | H33: 0 | I33: 0 | J33: 0
A34: =A22*10 -> 100 | B34: 0 | C34: 0 | D34: 0 | E34: 0 | F34: 0 | G34: 0 | H34: 0 | I34: 0 | J34: 0 | M34: Rc2 | N34: =O8/1000&" kΩ" ->  | O34: =O8/1000 ->  | P34: kΩ
A35: =A23*10 -> 120 | B35: 0 | C35: 0 | D35: 0 | E35: 0 | F35: 0 | G35: 0 | H35: 0 | I35: 0 | J35: 0 | M35: Cc3 | N35: =I4*1000000000&" nF" -> 0 nF | O35: =I4*1000000000 -> 0 | P35: nF
A36: 150 | B36: 0 | C36: 0 | D36: 0 | E36: 0 | F36: 0 | G36: 0 | H36: 0 | I36: 0 | J36: 0 | M36: Cc4 | N36: =J4*1000000000000&" pF" -> 0 pF | O36: =J4*1000000000000 -> 0 | P36: pF
A37: 180 | B37: 0 | C37: 0 | D37: 0 | E37: 0 | F37: 0 | G37: 0 | H37: 0 | I37: 0 | J37: 0
A38: 220 | B38: 0 | C38: 0 | D38: 0 | E38: 0 | F38: 0 | G38: 0 | H38: 0 | I38: 0 | J38: 0
A39: 270 | B39: 0 | C39: =IF(IF((C$3*10^12-$A40)*(C$3*10^12-$A39)*-1<0,0,1)*IF(ABS(C$3*10^12-$A40)>(C$3*10^12-$A39),$A39,$A40)=C40,0,IF((C$3*10^12-$A40)*(C$3*10^12-$A39)*-1<0,0,1)*IF(ABS(C$3*10^12-$A40)>(C$3*10^12-$A39),$A39,$A40)) -> 0 | D39: 0 | E39: 0 | F39: 0 | G39: 0 | H39: 0 | I39: 0 | J39: 0
A40: 330 | B40: 0 | C40: 0 | D40: 0 | E40: 0 | F40: 0 | G40: 0 | H40: 0 | I40: 0 | J40: 0
A41: 390 | B41: 0 | C41: 0 | D41: 0 | E41: 0 | F41: 0 | G41: 0 | H41: 0 | I41: 0 | J41: 0
A42: 470 | B42: 0 | C42: 0 | D42: 0 | E42: 0 | F42: 0 | G42: 0 | H42: 0 | I42: 0 | J42: 0
A43: 560 | B43: 0 | C43: 0 | D43: 0 | E43: 0 | F43: 0 | G43: 0 | H43: 0 | I43: 0 | J43: 0
A44: 680 | B44: 0 | C44: 0 | D44: 0 | E44: 0 | F44: 0 | G44: 0 | H44: 0 | I44: 0 | J44: 0
A45: =A33*10 -> 820 | B45: 0 | C45: 0 | D45: 0 | E45: 0 | F45: 0 | G45: 0 | H45: 0 | I45: 0 | J45: 0
A46: 1000 | B46: 0 | C46: 0 | D46: 0 | E46: 0 | F46: 0 | G46: 0 | H46: 0 | I46: 0 | J46: 0
A47: 1200 | B47: 0 | C47: 0 | D47: 0 | E47: 0 | F47: 0 | G47: 0 | H47: 0 | I47: 0 | J47: 0
A48: 1500 | B48: 0 | C48: 0 | D48: 0 | E48: 0 | F48: 0 | G48: 0 | H48: 0 | I48: 0 | J48: 0
A49: 1800 | B49: 0 | C49: 1800 | D49: 0 | E49: 0 | F49: 0 | G49: 0 | H49: 0 | I49: 0 | J49: 0
A50: 2200 | B50: 0 | C50: 0 | D50: 0 | E50: 0 | F50: 0 | G50: 0 | H50: 0 | I50: 0 | J50: 0
A51: 2700 | B51: 0 | C51: 0 | D51: 0 | E51: 0 | F51: 0 | G51: 0 | H51: 0 | I51: 0 | J51: 0
A52: 3300 | B52: 0 | C52: 0 | D52: 0 | E52: 0 | F52: 0 | G52: 0 | H52: 0 | I52: 0 | J52: 0
A53: 3900 | B53: 0 | C53: 0 | D53: 0 | E53: 0 | F53: 0 | G53: 0 | H53: 0 | I53: 0 | J53: 0
A54: 4700 | B54: 0 | C54: 0 | D54: 0 | E54: 0 | F54: 0 | G54: 0 | H54: 0 | I54: 0 | J54: 0
A55: 5600 | B55: 0 | C55: 0 | D55: 0 | E55: 0 | F55: 0 | G55: 0 | H55: 0 | I55: 0 | J55: 0
A56: 6800 | B56: 0 | C56: 0 | D56: 0 | E56: 0 | F56: 0 | G56: 0 | H56: 0 | I56: 0 | J56: 0
A57: 8200 | B57: 0 | C57: 0 | D57: 0 | E57: 0 | F57: 0 | G57: 0 | H57: 0 | I57: 0 | J57: 0
A58: 10000 | B58: 0 | C58: 0 | D58: 0 | E58: 0 | F58: 0 | G58: 0 | H58: 10000 | I58: 0 | J58: 0
A59: 12000 | B59: 0 | C59: 0 | D59: 0 | E59: 0 | F59: 0 | G59: 0 | H59: 0 | I59: 0 | J59: 0
A60: 15000 | B60: 0 | C60: 0 | D60: 0 | E60: 0 | F60: 0 | G60: 0 | H60: 0 | I60: 0 | J60: 0
A61: 18000 | B61: 0 | C61: 0 | D61: 0 | E61: 0 | F61: 0 | G61: 0 | H61: 0 | I61: 0 | J61: 0
A62: 22000 | B62: 0 | C62: 0 | D62: 0 | E62: 0 | F62: 0 | G62: 0 | H62: 0 | I62: 0 | J62: 0
A63: 27000 | B63: 0 | C63: 0 | D63: 0 | E63: 0 | F63: 0 | G63: 0 | H63: 0 | I63: 0 | J63: 0
A64: 33000 | B64: 0 | C64: 0 | D64: 0 | E64: 0 | F64: 0 | G64: 0 | H64: 0 | I64: 0 | J64: 0
A65: 39000 | B65: 0 | C65: 0 | D65: 0 | E65: 0 | F65: 0 | G65: 0 | H65: 0 | I65: 0 | J65: 0
A66: 47000 | B66: 56000 | C66: 0 | D66: 0 | E66: 0 | F66: 0 | G66: 0 | H66: 0 | I66: 0 | J66: 0
A67: 56000 | B67: 0 | C67: 0 | D67: 0 | E67: 0 | F67: 0 | G67: 0 | H67: 0 | I67: 0 | J67: 0
A68: 68000 | B68: 0 | C68: 0 | D68: 0 | E68: 0 | F68: 0 | G68: 0 | H68: 0 | I68: 0 | J68: 0
A69: 82000 | B69: 0 | C69: 0 | D69: 0 | E69: 0 | F69: 0 | G69: 0 | H69: 0 | I69: 0 | J69: =IF(IF((J$3*10^12-$A70)*(J$3*10^12-$A69)*-1<0,0,1)*IF(ABS(J$3*10^12-$A70)>(J$3*10^12-$A69),$A69,$A70)=J70,0,IF((J$3*10^12-$A70)*(J$3*10^12-$A69)*-1<0,0,1)*IF(ABS(J$3*10^12-$A70)>(J$3*10^12-$A69),$A69,$A70)) -> 0
A70: 100000 | B70: 0 | C70: 0 | D70: =IF(IF((D$3*10^12-$A71)*(D$3*10^12-$A70)*-1<0,0,1)*IF(ABS(D$3*10^12-$A71)>(D$3*10^12-$A70),$A70,$A71)=D71,0,IF((D$3*10^12-$A71)*(D$3*10^12-$A70)*-1<0,0,1)*IF(ABS(D$3*10^12-$A71)>(D$3*10^12-$A70),$A70,$A71)) -> 0 | E70: 0 | F70: 0 | G70: 0 | H70: 0 | I70: 0 | J70: 0
A71: 120000 | B71: =IF(IF((B$3*10^12-$A72)*(B$3*10^12-$A71)*-1<0,0,1)*IF(ABS(B$3*10^12-$A72)>(B$3*10^12-$A71),$A71,$A72)=B72,0,IF((B$3*10^12-$A72)*(B$3*10^12-$A71)*-1<0,0,1)*IF(ABS(B$3*10^12-$A72)>(B$3*10^12-$A71),$A71,$A72)) -> 0 | C71: =IF(IF((C$3*10^12-$A72)*(C$3*10^12-$A71)*-1<0,0,1)*IF(ABS(C$3*10^12-$A72)>(C$3*10^12-$A71),$A71,$A72)=C72,0,IF((C$3*10^12-$A72)*(C$3*10^12-$A71)*-1<0,0,1)*IF(ABS(C$3*10^12-$A72)>(C$3*10^12-$A71),$A71,$A72)) -> 0 | D71: 0 | E71: 0 | F71: =IF(IF((F$3*10^12-$A72)*(F$3*10^12-$A71)*-1<0,0,1)*IF(ABS(F$3*10^12-$A72)>(F$3*10^12-$A71),$A71,$A72)=F72,0,IF((F$3*10^12-$A72)*(F$3*10^12-$A71)*-1<0,0,1)*IF(ABS(F$3*10^12-$A72)>(F$3*10^12-$A71),$A71,$A72)) -> 0 | G71: =IF(IF((G$3*10^12-$A72)*(G$3*10^12-$A71)*-1<0,0,1)*IF(ABS(G$3*10^12-$A72)>(G$3*10^12-$A71),$A71,$A72)=G72,0,IF((G$3*10^12-$A72)*(G$3*10^12-$A71)*-1<0,0,1)*IF(ABS(G$3*10^12-$A72)>(G$3*10^12-$A71),$A71,$A72)) -> 0 | H71: =IF(IF((H$3*10^12-$A72)*(H$3*10^12-$A71)*-1<0,0,1)*IF(ABS(H$3*10^12-$A72)>(H$3*10^12-$A71),$A71,$A72)=H72,0,IF((H$3*10^12-$A72)*(H$3*10^12-$A71)*-1<0,0,1)*IF(ABS(H$3*10^12-$A72)>(H$3*10^12-$A71),$A71,$A72)) -> 0 | I71: =IF(IF((I$3*10^12-$A72)*(I$3*10^12-$A71)*-1<0,0,1)*IF(ABS(I$3*10^12-$A72)>(I$3*10^12-$A71),$A71,$A72)=I72,0,IF((I$3*10^12-$A72)*(I$3*10^12-$A71)*-1<0,0,1)*IF(ABS(I$3*10^12-$A72)>(I$3*10^12-$A71),$A71,$A72)) -> 0 | J71: 0
A72: 150000 | B72: 0 | C72: 0 | D72: 0 | E72: 0 | F72: 0 | G72: 0 | H72: 0 | I72: 0 | J72: 0
A73: 180000 | B73: 0 | C73: 0 | D73: 0 | E73: 0 | F73: 0 | G73: 0 | H73: 0 | I73: 0 | J73: 0
A74: 220000 | B74: 0 | C74: 0 | D74: 0 | E74: 0 | F74: 0 | G74: 0 | H74: 0 | I74: 0 | J74: 0
A75: 270000 | B75: 0 | C75: 0 | D75: 0 | E75: 0 | F75: 0 | G75: 0 | H75: 0 | I75: 0 | J75: 0
A76: 330000 | B76: 0 | C76: 0 | D76: 0 | E76: 0 | F76: 0 | G76: 330000 | H76: 0 | I76: 0 | J76: 0
A77: 390000 | B77: 0 | C77: 0 | D77: 0 | E77: 0 | F77: 0 | G77: 0 | H77: 0 | I77: 0 | J77: 0
A78: 470000 | B78: 0 | C78: 0 | D78: 0 | E78: 0 | F78: 0 | G78: 0 | H78: 0 | I78: 0 | J78: 0
A79: 560000 | B79: 0 | C79: 0 | D79: 0 | E79: 0 | F79: 0 | G79: 0 | H79: 0 | I79: 0 | J79: 0
A80: 680000 | B80: 0 | C80: 0 | D80: 0 | E80: 0 | F80: 0 | G80: 0 | H80: 0 | I80: 0 | J80: 0
A81: 820000 | B81: 0 | C81: 0 | D81: 0 | E81: 0 | F81: 0 | G81: 0 | H81: 0 | I81: 0 | J81: 0
A82: 1000000 | B82: 0 | C82: 0 | D82: 0 | E82: 0 | F82: 0 | G82: 0 | H82: 0 | I82: 0 | J82: 0
A83: 1200000 | B83: 0 | C83: 0 | D83: 0 | E83: 0 | F83: 0 | G83: 0 | H83: 0 | I83: 0 | J83: 0
A84: 1500000 | B84: 0 | C84: 0 | D84: 0 | E84: 0 | F84: 0 | G84: 0 | H84: 0 | I84: 0 | J84: 0
A85: 1800000 | B85: 0 | C85: 0 | D85: 0 | E85: 0 | F85: 0 | G85: 0 | H85: 0 | I85: 0 | J85: 0
A86: 2200000 | B86: 0 | C86: 0 | D86: 0 | E86: 0 | F86: 0 | G86: 0 | H86: 0 | I86: 0 | J86: 0
A87: 2700000 | B87: 0 | C87: 0 | D87: 0 | E87: 0 | F87: 0 | G87: 0 | H87: 0 | I87: 0 | J87: 0
A88: 3300000 | B88: 0 | C88: 0 | D88: 0 | E88: 0 | F88: 0 | G88: 0 | H88: 0 | I88: 0 | J88: 0
A89: 3900000 | B89: 0 | C89: 0 | D89: 0 | E89: 0 | F89: 0 | G89: 0 | H89: 0 | I89: 0 | J89: 0
A90: 4700000 | B90: 0 | C90: 0 | D90: 0 | E90: 0 | F90: 0 | G90: 0 | H90: 0 | I90: 0 | J90: 0
A91: 5600000 | B91: 0 | C91: 0 | D91: 0 | E91: 0 | F91: 0 | G91: 0 | H91: 0 | I91: 0 | J91: 0
A92: 6800000 | B92: 0 | C92: 0 | D92: 0 | E92: 0 | F92: 0 | G92: 0 | H92: 0 | I92: 0 | J92: 0
A93: 8200000 | B93: 0 | C93: 0 | D93: 0 | E93: 0 | F93: 0 | G93: 0 | H93: 0 | I93: 0 | J93: 0
A94: 10000000 | B94: 0 | C94: 0 | D94: 0 | E94: 0 | F94: 0 | G94: 0 | H94: 0 | I94: 0 | J94: 0
A95: 12000000 | B95: 0 | C95: 0 | D95: 0 | E95: 0 | F95: 0 | G95: 0 | H95: 0 | I95: 0 | J95: 0
A96: 15000000 | B96: 0 | C96: 0 | D96: 0 | E96: 0 | F96: 0 | G96: 0 | H96: 0 | I96: 0 | J96: 0
A97: 18000000 | B97: 0 | C97: 0 | D97: 0 | E97: 0 | F97: 22000000 | G97: 0 | H97: 0 | I97: 0 | J97: 0
A98: 22000000 | B98: 0 | C98: 0 | D98: 0 | E98: 0 | F98: 0 | G98: 0 | H98: 0 | I98: 0 | J98: 0
A99: =A87*10 -> 27000000 | B99: 0 | C99: 0 | D99: 0 | E99: 0 | F99: 0 | G99: 0 | H99: 0 | I99: 0 | J99: 0
A100: 33000000 | B100: 0 | C100: 0 | D100: 0 | E100: 0 | F100: 0 | G100: 0 | H100: 0 | I100: 0 | J100: 0
A101: 39000000 | B101: 0 | C101: 0 | D101: 0 | E101: 0 | F101: 0 | G101: 0 | H101: 0 | I101: 0 | J101: 0
A102: 47000000 | B102: 0 | C102: 0 | D102: 0 | E102: 0 | F102: 0 | G102: 0 | H102: 0 | I102: 0 | J102: 0
A103: 56000000 | B103: 0 | C103: 0 | D103: 0 | E103: 0 | F103: =IF(IF((F$3*10^12-$A104)*(F$3*10^12-$A103)*-1<0,0,1)*IF(ABS(F$3*10^12-$A104)>(F$3*10^12-$A103),$A103,$A104)=F104,0,IF((F$3*10^12-$A104)*(F$3*10^12-$A103)*-1<0,0,1)*IF(ABS(F$3*10^12-$A104)>(F$3*10^12-$A103),$A103,$A104)) -> 0 | G103: =IF(IF((G$3*10^12-$A104)*(G$3*10^12-$A103)*-1<0,0,1)*IF(ABS(G$3*10^12-$A104)>(G$3*10^12-$A103),$A103,$A104)=G104,0,IF((G$3*10^12-$A104)*(G$3*10^12-$A103)*-1<0,0,1)*IF(ABS(G$3*10^12-$A104)>(G$3*10^12-$A103),$A103,$A104)) -> 0 | H103: =IF(IF((H$3*10^12-$A104)*(H$3*10^12-$A103)*-1<0,0,1)*IF(ABS(H$3*10^12-$A104)>(H$3*10^12-$A103),$A103,$A104)=H104,0,IF((H$3*10^12-$A104)*(H$3*10^12-$A103)*-1<0,0,1)*IF(ABS(H$3*10^12-$A104)>(H$3*10^12-$A103),$A103,$A104)) -> 0 | I103: =IF(IF((I$3*10^12-$A104)*(I$3*10^12-$A103)*-1<0,0,1)*IF(ABS(I$3*10^12-$A104)>(I$3*10^12-$A103),$A103,$A104)=I104,0,IF((I$3*10^12-$A104)*(I$3*10^12-$A103)*-1<0,0,1)*IF(ABS(I$3*10^12-$A104)>(I$3*10^12-$A103),$A103,$A104)) -> 0 | J103: 0
A104: 68000000 | B104: 0 | C104: 0 | D104: 0 | E104: 0 | F104: 0 | G104: 0 | H104: 0 | I104: 0 | J104: 0
A105: 82000000 | B105: 0 | C105: 0 | D105: 0 | E105: 0 | F105: 0 | G105: 0 | H105: 0 | I105: 0 | J105: 0
A106: 100000000 | B106: 0 | C106: 0 | D106: 0 | E106: 0 | F106: 0 | G106: 0 | H106: 0 | I106: 0 | J106: 0
A107: 120000000 | B107: 0 | C107: 0 | D107: 0 | E107: 0 | F107: 0 | G107: 0 | H107: 0 | I107: 0 | J107: 0
A108: 150000000 | B108: 0 | C108: 0 | D108: 0 | E108: 0 | F108: 0 | G108: 0 | H108: 0 | I108: 0 | J108: 0
A109: 180000000 | B109: 0 | C109: 0 | D109: 0 | E109: 0 | F109: 0 | G109: 0 | H109: 0 | I109: 0 | J109: 0
A110: 220000000 | B110: 0 | C110: 0 | D110: 0 | E110: 220000000 | F110: 0 | G110: 0 | H110: 0 | I110: 0 | J110: 0
A111: 270000000 | B111: 0 | C111: 0 | D111: 0 | E111: 0 | F111: 0 | G111: 0 | H111: 0 | I111: 0 | J111: 0
A112: 330000000 | B112: 0 | C112: 0 | D112: 0 | E112: 0 | F112: 0 | G112: 0 | H112: 0 | I112: 0 | J112: 0
A113: 390000000 | B113: 0 | C113: 0 | D113: 0 | E113: 0 | F113: 0 | G113: 0 | H113: 0 | I113: 0 | J113: 0
A114: 470000000 | B114: 0 | C114: 0 | D114: 0 | E114: 0 | F114: 0 | G114: 0 | H114: 0 | I114: 0 | J114: 0
A115: 560000000 | B115: 0 | C115: 0 | D115: 0 | E115: 0 | F115: 0 | G115: 0 | H115: 0 | I115: 0 | J115: 0
A116: 680000000 | B116: 0 | C116: 0 | D116: 0 | E116: 0 | F116: 0 | G116: 0 | H116: 0 | I116: 0 | J116: 0
A117: 820000000 | B117: 0 | C117: 0 | D117: 0 | E117: 0 | F117: 0 | G117: 0 | H117: 0 | I117: 0 | J117: 0
A118: 1000000000 | B118: 0 | C118: 0 | D118: 0 | E118: 0 | F118: 0 | G118: 0 | H118: 0 | I118: 0 | J118: 0
A119: 1200000000 | B119: 0 | C119: 0 | D119: 0 | E119: 0 | F119: 0 | G119: 0 | H119: 0 | I119: 0 | J119: 0
A120: 1500000000 | B120: 0 | C120: 0 | D120: 0 | E120: 0 | F120: 0 | G120: 0 | H120: 0 | I120: 0 | J120: 0
A121: 1800000000 | B121: 0 | C121: 0 | D121: 0 | E121: 0 | F121: 0 | G121: 0 | H121: 0 | I121: 0 | J121: 0
A122: 2200000000 | B122: 0 | C122: 0 | D122: 0 | E122: 0 | F122: 0 | G122: 0 | H122: 0 | I122: 0 | J122: 0
A123: 2700000000 | B123: 0 | C123: 0 | D123: 0 | E123: 0 | F123: 0 | G123: 0 | H123: 0 | I123: 0 | J123: 0
A124: 3300000000 | B124: 0 | C124: 0 | D124: 0 | E124: 0 | F124: 0 | G124: 0 | H124: 0 | I124: 0 | J124: 0
A125: 3900000000 | B125: 0 | C125: 0 | D125: 0 | E125: 0 | F125: 0 | G125: 0 | H125: 0 | I125: 0 | J125: 0
A126: 4700000000 | B126: 0 | C126: 0 | D126: 0 | E126: 0 | F126: 0 | G126: 0 | H126: 0 | I126: 0 | J126: 0
A127: 5600000000 | B127: 0 | C127: 0 | D127: 0 | E127: 0 | F127: 0 | G127: 0 | H127: 0 | I127: 0 | J127: 0
A128: 6800000000 | B128: 0 | C128: 0 | D128: 0 | E128: 0 | F128: 0 | G128: 0 | H128: 0 | I128: 0 | J128: 0
A129: 8200000000 | B129: 0 | C129: 0 | D129: 0 | E129: 0 | F129: 0 | G129: 0 | H129: 0 | I129: 0 | J129: 0
A130: 10000000000 | B130: 0 | C130: 0 | D130: 0 | E130: 0 | F130: 0 | G130: 0 | H130: 0 | I130: 0 | J130: 0
A131: 12000000000 | B131: 0 | C131: 0 | D131: 0 | E131: 0 | F131: 0 | G131: 0 | H131: 0 | I131: 0 | J131: 0
A132: 15000000000 | B132: 0 | C132: 0 | D132: 0 | E132: 0 | F132: 0 | G132: 0 | H132: 0 | I132: 0 | J132: 0
A133: 18000000000 | B133: 0 | C133: 0 | D133: 0 | E133: 0 | F133: 0 | G133: 0 | H133: 0 | I133: 0 | J133: =IF(IF((J$3*10^12-$A134)*(J$3*10^12-$A133)*-1<0,0,1)*IF(ABS(J$3*10^12-$A134)>(J$3*10^12-$A133),$A133,$A134)=J134,0,IF((J$3*10^12-$A134)*(J$3*10^12-$A133)*-1<0,0,1)*IF(ABS(J$3*10^12-$A134)>(J$3*10^12-$A133),$A133,$A134)) -> 0
A134: 22000000000 | B134: 0 | C134: 0 | D134: 0 | E134: =IF(IF((E$3*10^12-$A135)*(E$3*10^12-$A134)*-1<0,0,1)*IF(ABS(E$3*10^12-$A135)>(E$3*10^12-$A134),$A134,$A135)=E135,0,IF((E$3*10^12-$A135)*(E$3*10^12-$A134)*-1<0,0,1)*IF(ABS(E$3*10^12-$A135)>(E$3*10^12-$A134),$A134,$A135)) -> 0 | F134: 0 | G134: 0 | H134: 0 | I134: 0 | J134: =IF(IF((J$3*10^12-$A135)*(J$3*10^12-$A134)*-1<0,0,1)*IF(ABS(J$3*10^12-$A135)>(J$3*10^12-$A134),$A134,$A135)=J135,0,IF((J$3*10^12-$A135)*(J$3*10^12-$A134)*-1<0,0,1)*IF(ABS(J$3*10^12-$A135)>(J$3*10^12-$A134),$A134,$A135)) -> 0
A135: 27000000000 | B135: =IF(IF((B$3*10^12-$A136)*(B$3*10^12-$A135)*-1<0,0,1)*IF(ABS(B$3*10^12-$A136)>(B$3*10^12-$A135),$A135,$A136)=B136,0,IF((B$3*10^12-$A136)*(B$3*10^12-$A135)*-1<0,0,1)*IF(ABS(B$3*10^12-$A136)>(B$3*10^12-$A135),$A135,$A136)) -> 0 | C135: =IF(IF((C$3*10^12-$A136)*(C$3*10^12-$A135)*-1<0,0,1)*IF(ABS(C$3*10^12-$A136)>(C$3*10^12-$A135),$A135,$A136)=C136,0,IF((C$3*10^12-$A136)*(C$3*10^12-$A135)*-1<0,0,1)*IF(ABS(C$3*10^12-$A136)>(C$3*10^12-$A135),$A135,$A136)) -> 0 | D135: 0 | E135: 0 | F135: 0 | G135: 0 | H135: 0 | I135: 0 | J135: 0
A136: 33000000000 | B136: 0 | C136: 0 | D136: 0 | E136: 0 | F136: 0 | G136: 0 | H136: 0 | I136: 0 | J136: 0
A137: 39000000000 | B137: 0 | C137: 0 | D137: 0 | E137: 0 | F137: 0 | G137: 0 | H137: 0 | I137: 0 | J137: 0
A138: 47000000000 | B138: 0 | C138: 0 | D138: 0 | E138: 0 | F138: 0 | G138: 0 | H138: 0 | I138: 0 | J138: 0
A139: 56000000000 | B139: 0 | C139: 0 | D139: 0 | E139: 0 | F139: 0 | G139: 0 | H139: 0 | I139: 0 | J139: 0
A140: 68000000000 | B140: 0 | C140: 0 | D140: 0 | E140: 0 | F140: 0 | G140: 0 | H140: 0 | I140: 0 | J140: 0
A141: 82000000000 | B141: 0 | C141: 0 | D141: 0 | E141: 0 | F141: 0 | G141: 0 | H141: 0 | I141: 0 | J141: 0
A142: 100000000000 | B142: 0 | C142: 0 | D142: 0 | E142: 0 | F142: 0 | G142: 0 | H142: 0 | I142: 0 | J142: 0
A143: 120000000000 | B143: 0 | C143: 0 | D143: 0 | E143: 0 | F143: 0 | G143: 0 | H143: 0 | I143: 0 | J143: 0
A144: 150000000000 | B144: 0 | C144: 0 | D144: 0 | E144: 0 | F144: 0 | G144: 0 | H144: 0 | I144: 0 | J144: 0
A145: 180000000000 | B145: 0 | C145: 0 | D145: 0 | E145: 0 | F145: 0 | G145: 0 | H145: 0 | I145: 0 | J145: 0
A146: 220000000000 | B146: 0 | C146: 0 | D146: 0 | E146: 0 | F146: 0 | G146: 0 | H146: 0 | I146: 0 | J146: 0
A147: 270000000000 | B147: 0 | C147: 0 | D147: 0 | E147: 0 | F147: 0 | G147: 0 | H147: 0 | I147: 0 | J147: 0
A148: 330000000000 | B148: 0 | C148: 0 | D148: 0 | E148: 0 | F148: 0 | G148: 0 | H148: 0 | I148: 0 | J148: 0
A149: 390000000000 | B149: 0 | C149: 0 | D149: 0 | E149: 0 | F149: 0 | G149: 0 | H149: 0 | I149: 0 | J149: 0
A150: 470000000000 | B150: 0 | C150: 0 | D150: 0 | E150: 0 | F150: 0 | G150: 0 | H150: 0 | I150: 0 | J150: 0
A151: 560000000000 | B151: 0 | C151: 0 | D151: 0 | E151: 0 | F151: 0 | G151: 0 | H151: 0 | I151: 0 | J151: 0
A152: 680000000000 | B152: 0 | C152: 0 | D152: 0 | E152: 0 | F152: 0 | G152: 0 | H152: 0 | I152: 0 | J152: 0
A153: 820000000000 | B153: 0 | C153: 0 | D153: 0 | E153: 0 | F153: 0 | G153: 0 | H153: 0 | I153: 0 | J153: 0
A154: 1000000000000 | B154: 0 | C154: 0 | D154: 0 | E154: 0 | F154: 0 | G154: 0 | H154: 0 | I154: 0 | J154: 0
A155: 1200000000000 | B155: 0 | C155: 0 | D155: 0 | E155: 0 | F155: 0 | G155: 0 | H155: 0 | I155: 0 | J155: 0
A156: 1500000000000 | B156: 0 | C156: 0 | D156: 0 | E156: 0 | F156: 0 | G156: 0 | H156: 0 | I156: 0 | J156: 0
A157: 1800000000000 | B157: 0 | C157: 0 | D157: 0 | E157: 0 | F157: 0 | G157: 0 | H157: 0 | I157: 0 | J157: 0
A158: 2200000000000 | B158: 0 | C158: 0 | D158: 0 | E158: 0 | F158: 0 | G158: 0 | H158: 0 | I158: 0 | J158: 0
A159: 2700000000000 | B159: 2700000000000 | C159: 2700000000000 | D159: 2700000000000 | E159: 2700000000000 | F159: 2700000000000 | G159: 2700000000000 | H159: 2700000000000 | I159: 2700000000000 | J159: 2700000000000

Sheet Snubber (hidden)
C1: UNITS | D1: STD UNITS
A2: Frequency of Ringing | B2: 85 | C2: MHz | D2: =B2*1000000 -> 85000000 | E2: Hz
A3: SW capacitance | B3: 3000 | C3: pF | D3: =B3*0.000000000001 -> 3e-09 | E3: F
A4: Lpar | B4: =1000000000*1/((D2*2*3.14159)^2*D3) -> 1.168643077 | C4: nH | D4: =B4/1000000000 -> 1.168643077e-09 | E4: H
A5: Csnub | B5: =4*B3 -> 12000 | C5: pF | D5: =B5*0.000000000001 -> 1.2e-08 | E5: F
A6: Rsnub | B6: =SQRT(D4/D3) -> 0.6241375589 | C6: Ω | D6: =B6 -> 0.6241375589 | E6: Ω

Sheet Parallel Output Caps (hidden)
A4: Fsw | B4: =Fsw -> 440000
A6: C1 | B6: 20 | C6: uF | D6: =B6/1000000 -> 2e-05 | E6: F
A7: R1 | B7: 0.5 | C7: mOhms | D7: =B7/1000 -> 0.0005 | E7: Ohms
A9: C2 | B9: 68 | C9: uF | D9: =B9/1000000 -> 6.8e-05 | E9: F
A10: R2 | B10: 20 | C10: mOhms | D10: =B10/1000 -> 0.02 | E10: Ohms
A13: I1 | B13: =(D6/(D6+D9))*SQRT((D10*D9*B4)^2+1)/SQRT((((D7+D10)*D6*D9/(D9+D6))*B4)^2+1) -> 0.2623198782 | C13: %
A14: I2 | B14: =1-B13 -> 0.7376801218 | C14: %
A16: I1 | B16: =B13*(Iripple1/(2*SQRT(3))) ->  | C16: A
A17: I2 | B17: =B14*(Iripple1/(2*SQRT(3))) ->  | C17: A
